{"text_format":"1","workbook":"xlsx","n_sheets":5,"sheets":["INFOS","Prepa","Particip","Donnees","Cl.J1+Gen."],"not_rendered":{"charts":0,"images":2,"macros":1,"external_links":0,"defined_names":7,"comments":0,"pivot_tables":0},"unopened":[],"bounds":{"document_bytes":16777216,"sheet_cells":100000,"rows_first":2000,"rows_last":500,"rows_between":2000,"halvings":0,"cell_chars":16384,"cell_head_chars":4096},"cells_cut":0,"cells_raw":0,"read":"whole","date_system":"1900"}

{"sheet":"INFOS","index":0,"n_rows":10,"n_cols":2,"rows_kept":10,"cut":false,"hidden":false,"merged":[[9,1,9,10],[0,1,0,10],[2,1,2,10],[4,1,4,10],[6,1,6,2]]}
[null,"CE PETIT PROGRAMME EST FAIT POUR VOUS FACILITER LA GESTION DES INTERCLUBS PAR EQUIPES PROMOTION Mid Amateurs MESSIEURS SELON LA FORME DE JEU PRECONISEE PAR LA FFGOLF"]
[]
[null,"AVANT TOUTES CHOSES, IL VOUS FAUT ACTUALISER LES TABLEAUX DES PAGES SUIVANTES COMME-SUIT:"]
[]
["1:","EN FONCTION DU NOMBRE D'EQUIPES INSCRITES ( DE 8 A 24 POSSIBLES), CLIQUEZ SUR LE BOUTON CORRESPONDANT CI-DESSOUS. SI LE PROGRAMME VOUS DEMANDE UN MOT DE PASSE, TAPER: JBDB EN LETTRES MAJUSCULES."]
[]
[null,"Nombre d'équipes:"]
[]
[]
["2:","UNE FOIS QUE VOS TABLEAUX SONT ADAPTES AU NOMBRE D'EQUIPES PARTICIPANTES ET AU NOMBRE D'EQUIPES QUALIFIEES, COPIEZ CE FICHIER SUR LE DISQUE DUR. ATTENTION: SI VOUS CHANGEZ LE NOM DE CE FICHIER, LES MACROS AFFECTEES AUX BOUTONS CI-DESSUS AINSI QUE LES CLASSEMENTS NE FONCTIONNERONT PLUS. VOUS POUVEZ FAIRE DES SAUVEGARDES AU FUR ET A MESURE QUE LA COMPETITION AVANCE. POUR PALLIER UNE PANNE TOTALE D'INFORMATIQUE PENDANT LA COMPETITION, IMPRIMEZ TOUTES LES FEUILLES VIERGES POUR POUVOIR, LE CAS ECHEANT, TRAVAILLER EN MANUEL."]

{"sheet":"Prepa","index":1,"n_rows":57,"n_cols":5,"rows_kept":57,"cut":false,"hidden":false,"merged":[[0,0,0,7],[12,3,12,5],[14,3,14,5],[16,3,16,5],[10,3,10,5],[1,3,1,7],[3,3,3,7],[5,3,5,7],[18,3,18,5],[24,3,24,5],[26,3,26,5],[20,3,20,5],[28,3,28,5],[34,3,34,5],[32,3,32,5],[22,3,22,5],[30,3,30,5],[48,3,48,5],[44,3,44,5],[46,3,46,5],[42,3,42,5],[36,3,36,5],[38,3,38,5],[40,3,40,5],[58,3,58,5],[60,3,60,5],[52,3,52,5],[56,3,56,5],[50,3,50,5],[54,3,54,5]]}
["REMPLIR CETTE FEUILLE AVEC LE TITRE DE LA COMPETITION ET LE NOM DES CLUBS PARTICIPANT DE PREFERENCE DANS L'ORDRE DES DEPARTS OU PAR ORDRE ALPHABETIQUE.RENSEIGNER LA CELLULE \"E8\". LES FEUILLES SONT PROTEGEES, EN CAS DE BESOIN UTILISER: JBDB "]
["TITRE DE LA COMPETITION :",null,null,"INTERCLUBS PROMOTION Mid Amateurs MESSIEURS"]
[]
["Sous TITRE DE LA COMPETITION :",null,null,"Ligue de"]
[]
["Date et Lieu :",null,null,"Date     Golf de …"]
[]
["Nombre d'équipes montant en 4e Division:",null,null,null,2]
[]
[]
["NOM DES CLUBS :",null,1,"ALENCON/ARCONNA"]
[]
[null,null,2,"BOIS D'O"]
[]
[null,null,3,"BREST ABERS"]
[]
[null,null,4,"BREST IROISE"]
[]
[null,null,5,"CAP MALO"]
[]
[null,null,6,"CARANTEC"]
[]
[null,null,7,"CH. AUGERVILLE"]
[]
[null,null,8,"CHARTRES FONTENAY"]
[]
[null,null,9,"GLORIETTE"]
[]
[null,null,10,"GUERANDE"]
[]
[null,null,11,"ILE D'OR"]
[]
[null,null,12,"LAC AU DUC"]
[]
[null,null,13,"LAVAL"]
[]
[null,null,14,"ORLEANS DONNERY"]
[]
[null,null,15,"VAL DE L'INDRE"]
[]
[null,null,16,"ROCHERS SEVIGNE"]
[]
[null,null,17,"SABLE SOLESMES"]
[]
[null,null,18,"SABLES D'OLONNE"]
[]
[null,null,19,"SAINT CAST"]
[]
[null,null,20,"SAINT-BRIEUC"]
[]
[null,null,21,"SARGE/LE MANS"]
[]
[null,null,22,"VAL DE L'INDRE"]
[]
[null,null,23]
[]
[null,null,24]

{"sheet":"Particip","index":2,"n_rows":649,"n_cols":8,"rows_kept":649,"cut":false,"hidden":false,"merged":[[348,0,348,7],[359,0,359,7],[360,0,360,3],[360,4,360,7],[362,2,362,6],[361,2,361,3],[349,0,349,2],[378,0,378,1],[349,3,349,7],[351,0,351,1],[351,3,351,6],[378,3,378,6],[375,0,375,7],[356,0,356,7],[355,0,355,7],[354,0,354,7],[365,2,365,6],[373,2,373,6],[363,2,363,6],[364,2,364,6],[376,3,376,7],[39,2,39,6],[127,2,127,6],[120,2,120,6],[124,2,124,6],[131,0,131,5],[241,0,241,2],[241,3,241,7],[240,0,240,7],[233,2,233,6],[229,2,229,6],[230,2,230,6],[231,2,231,6],[234,2,234,6],[235,2,235,6],[236,2,236,6],[105,0,105,7],[77,0,77,5],[63,0,63,3],[40,2,40,6],[44,2,44,6],[41,2,41,6],[42,2,42,6],[77,6,77,7],[78,0,78,7],[35,0,35,7],[31,0,31,7],[30,0,30,7],[20,2,20,6],[5,0,5,7],[227,2,227,6],[228,2,228,6],[232,2,232,6],[125,2,125,6],[126,2,126,6],[121,2,121,6],[122,2,122,6],[123,2,123,6],[21,2,21,6],[130,2,130,6],[157,2,157,6],[79,0,79,2],[79,3,79,7],[91,2,91,3],[89,0,89,7],[81,0,81,1],[108,3,108,6],[119,2,119,6],[48,2,48,6],[25,0,25,2],[25,3,25,7],[22,2,22,6],[14,2,14,6],[15,2,15,6],[16,2,16,6],[17,2,17,6],[18,2,18,6],[19,2,19,6],[84,0,84,7],[95,2,95,6],[96,2,96,6],[98,2,98,6],[99,2,99,6],[100,2,100,6],[85,0,85,7],[102,2,102,6],[104,6,104,7],[93,2,93,6],[94,2,94,6],[101,2,101,6],[90,4,90,7],[103,2,103,6],[0,0,1,6],[46,2,46,6],[73,2,73,6],[70,2,70,6],[66,2,66,6],[71,2,71,6],[72,2,72,6],[47,2,47,6],[54,3,54,6],[8,0,8,7],[9,0,9,3],[9,4,9,7],[23,6,23,7],[23,0,23,5],[10,2,10,3],[11,2,11,6],[12,2,12,6],[50,0,50,5],[13,2,13,6],[3,0,3,7],[4,0,4,7],[24,0,24,7],[27,0,27,1],[27,3,27,6],[128,2,128,6],[138,0,138,7],[133,0,133,2],[133,3,133,7],[131,6,131,7],[135,0,135,1],[140,0,140,7],[135,3,135,6],[132,0,132,7],[148,2,148,6],[149,2,149,6],[150,2,150,6],[144,0,144,3],[144,4,144,7],[143,0,143,7],[167,0,167,7],[182,2,182,6],[151,2,151,6],[153,2,153,6],[154,2,154,6],[155,2,155,6],[159,0,159,7],[176,2,176,6],[152,2,152,6],[156,2,156,6],[158,6,158,7],[162,0,162,1],[162,3,162,6],[160,0,160,2],[160,3,160,7],[166,0,166,7],[165,0,165,7],[178,2,178,6],[175,2,175,6],[170,0,170,7],[171,0,171,3],[171,4,171,7],[172,2,172,3],[174,2,174,6],[177,2,177,6],[173,2,173,6],[204,2,204,6],[205,2,205,6],[206,2,206,6],[212,0,212,5],[212,6,212,7],[211,2,211,6],[209,2,209,6],[208,2,208,6],[210,2,210,6],[106,0,106,2],[106,3,106,7],[112,0,112,7],[111,0,111,7],[108,0,108,1],[207,2,207,6],[192,0,192,7],[186,0,186,7],[199,2,199,3],[200,2,200,6],[201,2,201,6],[202,2,202,6],[193,0,193,7],[184,2,184,6],[183,2,183,6],[187,0,187,2],[214,3,214,7],[216,0,216,1],[216,3,216,6],[213,0,213,7],[214,0,214,2],[219,0,219,7],[224,0,224,7],[221,0,221,7],[220,0,220,7],[225,0,225,3],[225,4,225,7],[226,2,226,3],[239,0,239,5],[239,6,239,7],[238,2,238,6],[237,2,237,6],[254,2,254,6],[251,0,251,7],[252,0,252,3],[252,4,252,7],[253,2,253,3],[243,0,243,1],[243,3,243,6],[246,0,246,7],[273,0,273,7],[289,2,289,6],[248,0,248,7],[247,0,247,7],[262,2,262,6],[263,2,263,6],[268,0,268,2],[268,3,268,7],[270,0,270,1],[270,3,270,6],[255,2,255,6],[256,2,256,6],[257,2,257,6],[258,2,258,6],[266,0,266,5],[259,2,259,6],[260,2,260,6],[261,2,261,6],[265,2,265,6],[266,6,266,7],[267,0,267,7],[274,0,274,7],[275,0,275,7],[264,2,264,6],[294,0,294,7],[283,2,283,6],[280,2,280,3],[278,0,278,7],[279,0,279,3],[279,4,279,7],[288,2,288,6],[290,2,290,6],[286,2,286,6],[287,2,287,6],[281,2,281,6],[282,2,282,6],[292,2,292,6],[293,0,293,5],[293,6,293,7],[284,2,284,6],[285,2,285,6],[291,2,291,6],[405,3,405,6],[401,0,401,5],[401,6,401,7],[402,0,402,7],[396,2,396,6],[397,2,397,6],[398,2,398,6],[395,2,395,6],[368,2,368,6],[386,0,386,7],[369,2,369,6],[370,2,370,6],[371,2,371,6],[376,0,376,2],[374,0,374,5],[374,6,374,7],[387,0,387,3],[387,4,387,7],[383,0,383,7],[382,0,382,7],[400,2,400,6],[381,0,381,7],[295,0,295,2],[388,2,388,3],[389,2,389,6],[390,2,390,6],[391,2,391,6],[392,2,392,6],[305,0,305,7],[306,0,306,3],[306,4,306,7],[311,2,311,6],[307,2,307,3],[367,2,367,6],[329,0,329,7],[328,0,328,7],[347,0,347,5],[338,2,338,6],[339,2,339,6],[340,2,340,6],[341,2,341,6],[347,6,347,7],[343,2,343,6],[346,2,346,6],[344,2,344,6],[345,2,345,6],[322,3,322,7],[334,2,334,3],[316,2,316,6],[317,2,317,6],[324,0,324,1],[324,3,324,6],[318,2,318,6],[321,0,321,7],[327,0,327,7],[322,0,322,2],[418,2,418,6],[419,2,419,6],[428,0,428,5],[428,6,428,7],[429,0,429,7],[430,0,430,2],[430,3,430,7],[424,2,424,6],[425,2,425,6],[426,2,426,6],[421,2,421,6],[420,2,420,6],[427,2,427,6],[432,0,432,1],[432,3,432,6],[435,0,435,7],[440,0,440,7],[422,2,422,6],[441,0,441,3],[441,4,441,7],[437,0,437,7],[436,0,436,7],[423,2,423,6],[448,2,448,6],[449,2,449,6],[442,2,442,3],[443,2,443,6],[444,2,444,6],[445,2,445,6],[446,2,446,6],[447,2,447,6],[455,0,455,5],[455,6,455,7],[456,0,456,7],[450,2,450,6],[451,2,451,6],[452,2,452,6],[454,2,454,6],[453,2,453,6],[467,0,467,7],[464,0,464,7],[463,0,463,7],[462,0,462,7],[457,0,457,2],[457,3,457,7],[459,0,459,1],[459,3,459,6],[471,2,471,6],[472,2,472,6],[473,2,473,6],[474,2,474,6],[468,0,468,3],[468,4,468,7],[469,2,469,3],[470,2,470,6],[479,2,479,6],[482,0,482,5],[482,6,482,7],[475,2,475,6],[476,2,476,6],[477,2,477,6],[478,2,478,6],[481,2,481,6],[480,2,480,6],[494,0,494,7],[491,0,491,7],[490,0,490,7],[489,0,489,7],[483,0,483,7],[484,0,484,2],[484,3,484,7],[486,0,486,1],[486,3,486,6],[498,2,498,6],[499,2,499,6],[500,2,500,6],[501,2,501,6],[495,0,495,3],[495,4,495,7],[496,2,496,3],[497,2,497,6],[506,2,506,6],[509,0,509,5],[509,6,509,7],[502,2,502,6],[503,2,503,6],[504,2,504,6],[505,2,505,6],[508,2,508,6],[507,2,507,6],[521,0,521,7],[518,0,518,7],[517,0,517,7],[516,0,516,7],[510,0,510,7],[511,0,511,2],[511,3,511,7],[513,0,513,1],[513,3,513,6],[525,2,525,6],[526,2,526,6],[527,2,527,6],[528,2,528,6],[522,0,522,3],[522,4,522,7],[523,2,523,3],[524,2,524,6],[533,2,533,6],[536,0,536,5],[536,6,536,7],[529,2,529,6],[530,2,530,6],[531,2,531,6],[532,2,532,6],[535,2,535,6],[534,2,534,6],[545,0,545,7],[544,0,544,7],[543,0,543,7],[537,0,537,7],[538,0,538,2],[538,3,538,7],[540,0,540,1],[540,3,540,6],[555,2,555,6],[549,0,549,3],[549,4,549,7],[550,2,550,3],[551,2,551,6],[548,0,548,7],[552,2,552,6],[553,2,553,6],[554,2,554,6],[563,0,563,5],[563,6,563,7],[556,2,556,6],[557,2,557,6],[558,2,558,6],[559,2,559,6],[562,2,562,6],[561,2,561,6],[560,2,560,6],[575,0,575,7],[570,0,570,7],[571,0,571,7],[572,0,572,7],[564,0,564,7],[565,0,565,2],[565,3,565,7],[567,0,567,1],[567,3,567,6],[579,2,579,6],[580,2,580,6],[581,2,581,6],[582,2,582,6],[576,0,576,3],[576,4,576,7],[577,2,577,3],[578,2,578,6],[587,2,587,6],[590,0,590,5],[590,6,590,7],[583,2,583,6],[584,2,584,6],[585,2,585,6],[586,2,586,6],[589,2,589,6],[588,2,588,6],[602,0,602,7],[599,0,599,7],[598,0,598,7],[597,0,597,7],[591,0,591,7],[592,0,592,2],[592,3,592,7],[594,0,594,1],[594,3,594,6],[606,2,606,6],[607,2,607,6],[608,2,608,6],[609,2,609,6],[603,0,603,3],[603,4,603,7],[604,2,604,3],[605,2,605,6],[614,2,614,6],[617,0,617,5],[617,6,617,7],[610,2,610,6],[611,2,611,6],[612,2,612,6],[613,2,613,6],[616,2,616,6],[615,2,615,6],[625,0,625,7],[624,0,624,7],[618,0,618,7],[619,0,619,2],[619,3,619,7],[621,0,621,1],[621,3,621,6],[630,0,630,3],[630,4,630,7],[631,2,631,3],[632,2,632,6],[629,0,629,7],[626,0,626,7],[648,0,648,1],[648,3,648,6],[641,2,641,6],[644,0,644,5],[644,6,644,7],[637,2,637,6],[638,2,638,6],[639,2,639,6],[640,2,640,6],[643,2,643,6],[645,0,645,7],[646,0,646,2],[646,3,646,7],[642,2,642,6],[633,2,633,6],[634,2,634,6],[635,2,635,6],[636,2,636,6],[410,0,410,7],[409,0,409,7],[408,0,408,7],[417,2,417,6],[403,0,403,2],[372,2,372,6],[414,0,414,3],[416,2,416,6],[332,0,332,7],[335,2,335,6],[336,2,336,6],[415,2,415,3],[413,0,413,7],[414,4,414,7],[366,2,366,6],[333,0,333,3],[399,2,399,6],[337,2,337,6],[342,2,342,6],[333,4,333,7],[393,2,393,6],[394,2,394,6],[403,3,403,7],[405,0,405,1],[43,2,43,6],[116,0,116,7],[158,0,158,5],[117,0,117,3],[117,4,117,7],[147,2,147,6],[118,2,118,3],[139,0,139,7],[203,2,203,6],[185,0,185,5],[185,6,185,7],[189,0,189,1],[189,3,189,6],[194,0,194,7],[198,4,198,7],[187,3,187,7],[197,0,197,7],[198,0,198,3],[180,2,180,6],[181,2,181,6],[146,2,146,6],[129,2,129,6],[145,2,145,3],[179,2,179,6],[57,0,57,7],[97,2,97,6],[32,0,32,7],[36,0,36,3],[36,4,36,7],[37,2,37,3],[38,2,38,6],[54,0,54,1],[52,3,52,7],[45,2,45,6],[50,6,50,7],[51,0,51,7],[68,2,68,6],[58,0,58,7],[63,4,63,7],[64,2,64,3],[52,0,52,2],[49,2,49,6],[86,0,86,7],[75,2,75,6],[65,2,65,6],[62,0,62,7],[67,2,67,6],[81,3,81,6],[300,0,300,7],[319,2,319,6],[313,2,313,6],[314,2,314,6],[320,0,320,5],[320,6,320,7],[74,2,74,6],[59,0,59,7],[92,2,92,6],[104,0,104,5],[113,0,113,7],[76,2,76,6],[69,2,69,6],[90,0,90,3],[295,3,295,7],[297,0,297,1],[297,3,297,6],[308,2,308,6],[309,2,309,6],[310,2,310,6],[312,2,312,6],[315,2,315,6],[302,0,302,7],[301,0,301,7]]}
["REMPLIR CETTE FEUILLE ( par ordre d'index) AVEC LES NOMS, PRENOMS DES JOUEURS ET LEUR INDEX AVEC DECIMALE, L'ARRONDI SE FAIT AUTOMATIQUEMENT   "]
[]
[]
[{"$f":"Prepa!$D$2","v":"INTERCLUBS PROMOTION Mid Amateurs MESSIEURS"}]
[{"$f":"Prepa!$D$4","v":"Ligue de"}]
[{"$f":"Prepa!$D$6","v":"Date     Golf de …"}]
[]
[]
["Fiche de composition d'Equipe"]
["Equipiers du club de :",null,null,null,{"$f":"Prepa!$D$11","v":"ALENCON/ARCONNA"}]
[null,"Ind","NOM",null,null,"Prénom",null,"Ind. Arr."]
[1,1.3,"SAIDI Jamil",null,null,null,null,{"$f":"IF(B12=\"\",\"\",FIXED(B12,0))","v":"1"}]
[2,3.1,"COPPOLA Laurent",null,null,null,null,{"$f":"IF(B13=\"\",\"\",FIXED(B13,0))","v":"3"}]
[3,3.3,"BOUGLE Xavier",null,null,null,null,"3"]
[4,4.2,"BOUSSELET Quentin",null,null,null,null,"4"]
[5,4.7,"FAVEY Sebastien",null,null,null,null,"5"]
[6,4.9000000000000004,"BOURGOIN Eddy",null,null,null,null,"5"]
[7,6.8,"EUDIER Ronan",null,null,null,null,"7"]
[8,7.2,"BILLOUIN David",null,null,null,null,"7"]
[9,7.5,"LOISEAU Dominique",null,null,null,null,"8"]
[10,10,"BOUSSELET Hubert",null,null,null,null,"10"]
[11,null,null,null,null,null,null,""]
[12,null,null,null,null,null,null,""]
["Personne autorisée à donner des conseils :"]
["Si cette personne n'est pas le capitaine, ce dernier ne pourra pas donner de conseils dans les conditions fixées par la note de la règle de golf n°8"]
["CAPITAINE :"]
[]
["DATE :",null,null,"Signature du Capitaine"]
[]
[]
[{"$f":"Prepa!$D$2","v":"INTERCLUBS PROMOTION Mid Amateurs MESSIEURS"}]
[{"$f":"Prepa!$D$4","v":"Ligue de"}]
[{"$f":"Prepa!$D$6","v":"Date     Golf de …"}]
[]
[]
["Fiche de composition d'Equipe"]
["Equipiers du club de :",null,null,null,{"$f":"Prepa!$D$13","v":"BOIS D'O"}]
[null,"Ind","NOM",null,null,"Prénom",null,"Ind. Arr."]
[1,6,"SADKY Mounir",null,null,null,null,{"$f":"IF(B39=\"\",\"\",FIXED(B39,0))","v":"6"}]
[2,6.9,"GERBAUD Philippe",null,null,null,null,{"$f":"IF(B40=\"\",\"\",FIXED(B40,0))","v":"7"}]
[3,6.9,"MTIR Sofiane",null,null,null,null,"7"]
[4,7.2,"CHARRON Julien",null,null,null,null,"7"]
[5,7.6,"SCHOOS Olivier",null,null,null,null,"8"]
[6,8.9,"MEILLIAND Jeremy",null,null,null,null,"9"]
[7,9.3000000000000007,"LELONG Arnaud",null,null,null,null,"9"]
[8,9.9,"ANDREYS Bruno",null,null,null,null,"10"]
[9,14.4,"GOURCI Jérome",null,null,null,null,"14"]
[10,null,null,null,null,null,null,""]
[11,null,null,null,null,null,null,""]
[12,null,null,null,null,null,null,""]
["Personne autorisée à donner des conseils :"]
["Si cette personne n'est pas le capitaine, ce dernier ne pourra pas donner de conseils dans les conditions fixées par la note de la règle de golf n°8"]
["CAPITAINE :"]
[]
["DATE :",null,null,"Signature du Capitaine"]
[]
[]
[{"$f":"Prepa!$D$2","v":"INTERCLUBS PROMOTION Mid Amateurs MESSIEURS"}]
[{"$f":"Prepa!$D$4","v":"Ligue de"}]
[{"$f":"Prepa!$D$6","v":"Date     Golf de …"}]
[]
[]
["Fiche de composition d'Equipe"]
["Equipiers du club de :",null,null,null,{"$f":"Prepa!$D$15","v":"BREST ABERS"}]
[null,"Ind","NOM",null,null,"Prénom",null,"Ind. Arr."]
[1,8.1999999999999993,"PARGNY Dominique",null,null,null,null,{"$f":"IF(B66=\"\",\"\",FIXED(B66,0))","v":"8"}]
[2,9.6,"BOUVIER Mathieu",null,null,null,null,{"$f":"IF(B67=\"\",\"\",FIXED(B67,0))","v":"10"}]
[3,10,"INSAUSTI Olivier",null,null,null,null,"10"]
[4,10.1,"MADEC Guillaume",null,null,null,null,"10"]
[5,11.1,"BAUDOUIN Gilles",null,null,null,null,"11"]
[6,11.6,"FOUREL Tangi",null,null,null,null,"12"]
[7,13.8,"CONGAR Jean Francois",null,null,null,null,"14"]
[8,null,null,null,null,null,null,""]
[9,null,null,null,null,null,null,""]
[10,null,null,null,null,null,null,""]
[11,null,null,null,null,null,null,""]
[12,null,null,null,null,null,null,""]
["Personne autorisée à donner des conseils :"]
["Si cette personne n'est pas le capitaine, ce dernier ne pourra pas donner de conseils dans les conditions fixées par la note de la règle de golf n°8"]
["CAPITAINE :"]
[]
["DATE :",null,null,"Signature du Capitaine"]
[]
[]
[{"$f":"Prepa!$D$2","v":"INTERCLUBS PROMOTION Mid Amateurs MESSIEURS"}]
[{"$f":"Prepa!$D$4","v":"Ligue de"}]
[{"$f":"Prepa!$D$6","v":"Date     Golf de …"}]
[]
[]
["Fiche de composition d'Equipe"]
["Equipiers du club de :",null,null,null,{"$f":"Prepa!$D$17","v":"BREST IROISE"}]
[null,"Ind","NOM",null,null,"Prénom",null,"Ind. Arr."]
[1,5.8,"SIMON Gael",null,null,null,null,{"$f":"IF(B93=\"\",\"\",FIXED(B93,0))","v":"6"}]
[2,7.5,"LE DUFF Pierre",null,null,null,null,{"$f":"IF(B94=\"\",\"\",FIXED(B94,0))","v":"8"}]
[3,7.7,"LE MERDY Sébastien",null,null,null,null,"8"]
[4,8.1999999999999993,"DANN Nicholas",null,null,null,null,"8"]
[5,8.6,"LE BIHAN Thomas",null,null,null,null,"9"]
[6,9.1999999999999993,"ROUE Ronan",null,null,null,null,"9"]
[7,9.3000000000000007,"TROMELIN Patrick",null,null,null,null,"9"]
[8,9.8000000000000007,"DANTEC Arnaud",null,null,null,null,"10"]
[9,10.6,"BERVAS Philippe",null,null,null,null,"11"]
[10,10.8,"BONNAUD Marc",null,null,null,null,"11"]
[11,12.1,"LE BORGNE Gilles",null,null,null,null,"12"]
[12,null,null,null,null,null,null,""]
["Personne autorisée à donner des conseils :"]
["Si cette personne n'est pas le capitaine, ce dernier ne pourra pas donner de conseils dans les conditions fixées par la note de la règle de golf n°8"]
["CAPITAINE :"]
[]
["DATE :",null,null,"Signature du Capitaine"]
[]
[]
[{"$f":"Prepa!$D$2","v":"INTERCLUBS PROMOTION Mid Amateurs MESSIEURS"}]
[{"$f":"Prepa!$D$4","v":"Ligue de"}]
[{"$f":"Prepa!$D$6","v":"Date     Golf de …"}]
[]
[]
["Fiche de composition d'Equipe"]
["Equipiers du club de :",null,null,null,{"$f":"Prepa!$D$19","v":"CAP MALO"}]
[null,"Ind","NOM",null,null,"Prénom",null,"Ind. Arr."]
[1,1.5,"GOURIOU Yves",null,null,null,null,{"$f":"IF(B120=\"\",\"\",FIXED(B120,0))","v":"2"}]
[2,4.5,"LEBARBIER Bruno",null,null,null,null,{"$f":"IF(B121=\"\",\"\",FIXED(B121,0))","v":"5"}]
[3,4.8,"LASBLEIZ Yann",null,null,null,null,"5"]
[4,6.2,"THUILLIER Renaud",null,null,null,null,"6"]
[5,7.6,"LE QUENQUIS Nicolas",null,null,null,null,"8"]
[6,7.7,"FROSTIN Pierre-Gilles",null,null,null,null,"8"]
[7,9.6,"BONNIOT Samuel",null,null,null,null,"10"]
[8,10.1,"CAMBARRAT Arnaud",null,null,null,null,"10"]
[9,null,null,null,null,null,null,""]
[10,null,null,null,null,null,null,""]
[11,null,null,null,null,null,null,""]
[12,null,null,null,null,null,null,""]
["Personne autorisée à donner des conseils :"]
["Si cette personne n'est pas le capitaine, ce dernier ne pourra pas donner de conseils dans les conditions fixées par la note de la règle de golf n°8"]
["CAPITAINE :"]
[]
["DATE :",null,null,"Signature du Capitaine"]
[]
[]
[{"$f":"Prepa!$D$2","v":"INTERCLUBS PROMOTION Mid Amateurs MESSIEURS"}]
[{"$f":"Prepa!$D$4","v":"Ligue de"}]
[{"$f":"Prepa!$D$6","v":"Date     Golf de …"}]
[]
[]
["Fiche de composition d'Equipe"]
["Equipiers du club de :",null,null,null,{"$f":"Prepa!$D$21","v":"CARANTEC"}]
[null,"Ind","NOM",null,null,"Prénom",null,"Ind. Arr."]
[1,3.3,"LE BONHOMME Ronan",null,null,null,null,{"$f":"IF(B147=\"\",\"\",FIXED(B147,0))","v":"3"}]
[2,3.8,"MOSTINI Julien",null,null,null,null,{"$f":"IF(B148=\"\",\"\",FIXED(B148,0))","v":"4"}]
[3,3.9,"KERBASTARD Pierre",null,null,null,null,"4"]
[4,4.2,"BELIN Alexandre",null,null,null,null,"4"]
[5,4.4000000000000004,"LECAPITAINE Nicolas",null,null,null,null,"4"]
[6,4.5,"JAN Francois",null,null,null,null,"5"]
[7,4.5999999999999996,"BOUTTIER Nicolas",null,null,null,null,"5"]
[8,5.3,"ALLIOUX Jean-François",null,null,null,null,"5"]
[9,5.7,"GUILLAUME Thomas",null,null,null,null,"6"]
[10,6.3,"LE GUEN Jérémy",null,null,null,null,"6"]
[11,8.4,"PHILIPPE Félix",null,null,null,null,"8"]
[12,9.1,"JEGO Jean-Claude",null,null,null,null,"9"]
["Personne autorisée à donner des conseils :"]
["Si cette personne n'est pas le capitaine, ce dernier ne pourra pas donner de conseils dans les conditions fixées par la note de la règle de golf n°8"]
["CAPITAINE :"]
[]
["DATE :",null,null,"Signature du Capitaine"]
[]
[]
[{"$f":"Prepa!$D$2","v":"INTERCLUBS PROMOTION Mid Amateurs MESSIEURS"}]
[{"$f":"Prepa!$D$4","v":"Ligue de"}]
[{"$f":"Prepa!$D$6","v":"Date     Golf de …"}]
[]
[]
["Fiche de composition d'Equipe"]
["Equipiers du club de :",null,null,null,{"$f":"Prepa!$D$23","v":"CH. AUGERVILLE"}]
[null,"Ind","NOM",null,null,"Prénom",null,"Ind. Arr."]
[1,4.8,"PERICAUD Olivier",null,null,null,null,{"$f":"IF(B174=\"\",\"\",FIXED(B174,0))","v":"5"}]
[2,6.5,"GAUCHET Thomas",null,null,null,null,{"$f":"IF(B175=\"\",\"\",FIXED(B175,0))","v":"7"}]
[3,8.1,"MAUGRION Benoit",null,null,null,null,"8"]
[4,8.3000000000000007,"LECONARDEL Jérôme",null,null,null,null,"8"]
[5,9.6,"LAURENT Emmanuel",null,null,null,null,"10"]
[6,11.7,"DEVILLIERS Pierre",null,null,null,null,"12"]
[7,11.7,"LELONG Alexis",null,null,null,null,"12"]
[8,null,null,null,null,null,null,""]
[9,null,null,null,null,null,null,""]
[10,null,null,null,null,null,null,""]
[11,null,null,null,null,null,null,""]
[12,null,null,null,null,null,null,""]
["Personne autorisée à donner des conseils :"]
["Si cette personne n'est pas le capitaine, ce dernier ne pourra pas donner de conseils dans les conditions fixées par la note de la règle de golf n°8"]
["CAPITAINE :"]
[]
["DATE :",null,null,"Signature du Capitaine"]
[]
[]
[{"$f":"Prepa!$D$2","v":"INTERCLUBS PROMOTION Mid Amateurs MESSIEURS"}]
[{"$f":"Prepa!$D$4","v":"Ligue de"}]
[{"$f":"Prepa!$D$6","v":"Date     Golf de …"}]
[]
[]
["Fiche de composition d'Equipe"]
["Equipiers du club de :",null,null,null,{"$f":"Prepa!$D$25","v":"CHARTRES FONTENAY"}]
[null,"Ind","NOM",null,null,"Prénom",null,"Ind. Arr."]
[1,5.9,"MONTOYA Leonardo",null,null,null,null,{"$f":"IF(B201=\"\",\"\",FIXED(B201,0))","v":"6"}]
[2,10.4,"QUIVIGER Jean-Philippe",null,null,null,null,{"$f":"IF(B202=\"\",\"\",FIXED(B202,0))","v":"10"}]
[3,10.5,"REBOULET Sébastien",null,null,null,null,"11"]
[4,11.4,"BIZARD Philippe",null,null,null,null,"11"]
[5,11.6,"LAMOUR Stephane",null,null,null,null,"12"]
[6,11.8,"OBLIQUE Mathieu",null,null,null,null,"12"]
[7,13.3,"TARIANT Matthieu",null,null,null,null,"13"]
[8,14.9,"GODARD Alexis",null,null,null,null,"15"]
[9,15,"DOUCET Benoit",null,null,null,null,"15"]
[10,18.5,"VIGNEAU Denis",null,null,null,null,"19"]
[11,null,null,null,null,null,null,""]
[12,null,null,null,null,null,null,""]
["Personne autorisée à donner des conseils :"]
["Si cette personne n'est pas le capitaine, ce dernier ne pourra pas donner de conseils dans les conditions fixées par la note de la règle de golf n°8"]
["CAPITAINE :"]
[]
["DATE :",null,null,"Signature du Capitaine"]
[]
[]
[{"$f":"Prepa!$D$2","v":"INTERCLUBS PROMOTION Mid Amateurs MESSIEURS"}]
[{"$f":"Prepa!$D$4","v":"Ligue de"}]
[{"$f":"Prepa!$D$6","v":"Date     Golf de …"}]
[]
[]
["Fiche de composition d'Equipe"]
["Equipiers du club de :",null,null,null,{"$f":"Prepa!$D$27","v":"GLORIETTE"}]
[null,"Ind","NOM",null,null,"Prénom",null,"Ind. Arr."]
[1,3.9,"CARETTE Benjamin",null,null,null,null,{"$f":"IF(B228=\"\",\"\",FIXED(B228,0))","v":"4"}]
[2,5.3,"CHEVRIER Bertrand",null,null,null,null,{"$f":"IF(B229=\"\",\"\",FIXED(B229,0))","v":"5"}]
[3,8.8000000000000007,"GRIFFON François-Xavier",null,null,null,null,"9"]
[4,12.8,"ROGER Jeremie",null,null,null,null,"13"]
[5,13.2,"RAYNAUD Laurent",null,null,null,null,"13"]
[6,17.8,"DONADIO Jerome",null,null,null,null,"18"]
[7,21.6,"BROHAN Philippe",null,null,null,null,"22"]
[8,null,null,null,null,null,null,""]
[9,null,null,null,null,null,null,""]
[10,null,null,null,null,null,null,""]
[11,null,null,null,null,null,null,""]
[12,null,null,null,null,null,null,""]
["Personne autorisée à donner des conseils :"]
["Si cette personne n'est pas le capitaine, ce dernier ne pourra pas donner de conseils dans les conditions fixées par la note de la règle de golf n°8"]
["CAPITAINE :"]
[]
["DATE :",null,null,"Signature du Capitaine"]
[]
[]
[{"$f":"Prepa!$D$2","v":"INTERCLUBS PROMOTION Mid Amateurs MESSIEURS"}]
[{"$f":"Prepa!$D$4","v":"Ligue de"}]
[{"$f":"Prepa!$D$6","v":"Date     Golf de …"}]
[]
[]
["Fiche de composition d'Equipe"]
["Equipiers du club de :",null,null,null,{"$f":"Prepa!$D$29","v":"GUERANDE"}]
[null,"Ind","NOM",null,null,"Prénom",null,"Ind. Arr."]
[1,0.2,"LEBRETON Eric",null,null,null,null,{"$f":"IF(B255=\"\",\"\",FIXED(B255,0))","v":"0"}]
[2,0.8,"METAYER Benoist",null,null,null,null,{"$f":"IF(B256=\"\",\"\",FIXED(B256,0))","v":"1"}]
[3,3.2,"VLETTER Morne",null,null,null,null,"3"]
[4,3.5,"TOSATTO Robin",null,null,null,null,"4"]
[5,4.2,"GENTIL Florian",null,null,null,null,"4"]
[6,5.0999999999999996,"GAUVIN Ronan",null,null,null,null,"5"]
[7,5.2,"BAYLON Alexandre",null,null,null,null,"5"]
[8,5.7,"SEVIN François",null,null,null,null,"6"]
[9,6.1,"ROHEL Benjamin",null,null,null,null,"6"]
[10,6.2,"BLANDIN Erwan",null,null,null,null,"6"]
[11,6.6,"CHOPINOT Clément",null,null,null,null,"7"]
[12,8.5,"SLIMKO Greg",null,null,null,null,"9"]
["Personne autorisée à donner des conseils :"]
["Si cette personne n'est pas le capitaine, ce dernier ne pourra pas donner de conseils dans les conditions fixées par la note de la règle de golf n°8"]
["CAPITAINE :"]
[]
["DATE :",null,null,"Signature du Capitaine"]
[]
[]
[{"$f":"Prepa!$D$2","v":"INTERCLUBS PROMOTION Mid Amateurs MESSIEURS"}]
[{"$f":"Prepa!$D$4","v":"Ligue de"}]
[{"$f":"Prepa!$D$6","v":"Date     Golf de …"}]
[]
[]
["Fiche de composition d'Equipe"]
["Equipiers du club de :",null,null,null,{"$f":"Prepa!$D$31","v":"ILE D'OR"}]
[null,"Ind","NOM",null,null,"Prénom",null,"Ind. Arr."]
[1,-3.1,"COULAUD-IVANOFF Valentin",null,null,null,null,{"$f":"IF(B282=\"\",\"\",FIXED(B282,0))","v":"-3"}]
[2,-2.2000000000000002,"LUCAS Olivier",null,null,null,null,{"$f":"IF(B283=\"\",\"\",FIXED(B283,0))","v":"-2"}]
[3,-2.1,"LUCAS Benoît",null,null,null,null,"-2"]
[4,-0.3,"KLEIN Rodolphe",null,null,null,null,"0"]
[5,0.9,"LEFEBVRE Harold",null,null,null,null,"1"]
[6,6,"NOMBLOT Antoine",null,null,null,null,"6"]
[7,6.4,"TEITGEN Antoine",null,null,null,null,"6"]
[8,7.5,"MAYRAS Clement",null,null,null,null,"8"]
[9,8.1,"CHAILLOU Cyrille",null,null,null,null,"8"]
[10,9.6,"ROUX Anthony",null,null,null,null,"10"]
[11,10.3,"BLANCHARD Christophe",null,null,null,null,"10"]
[12,null,null,null,null,null,null,""]
["Personne autorisée à donner des conseils :"]
["Si cette personne n'est pas le capitaine, ce dernier ne pourra pas donner de conseils dans les conditions fixées par la note de la règle de golf n°8"]
["CAPITAINE :"]
[]
["DATE :",null,null,"Signature du Capitaine"]
[]
[]
[{"$f":"Prepa!$D$2","v":"INTERCLUBS PROMOTION Mid Amateurs MESSIEURS"}]
[{"$f":"Prepa!$D$4","v":"Ligue de"}]
[{"$f":"Prepa!$D$6","v":"Date     Golf de …"}]
[]
[]
["Fiche de composition d'Equipe"]
["Equipiers du club de :",null,null,null,{"$f":"Prepa!$D$33","v":"LAC AU DUC"}]
[null,"Ind","NOM",null,null,"Prénom",null,"Ind. Arr."]
[1,3.2,"CATOIRE Gregory",null,null,null,null,{"$f":"IF(B309=\"\",\"\",FIXED(B309,0))","v":"3"}]
[2,3.6,"TURMEAU Cédric",null,null,null,null,{"$f":"IF(B310=\"\",\"\",FIXED(B310,0))","v":"4"}]
[3,5,"URVOIS Patrice",null,null,null,null,"5"]
[4,5.4,"BOUJU Pierre",null,null,null,null,"5"]
[5,5.7,"CAPELLE Thomas",null,null,null,null,"6"]
[6,6,"BOULVAIS Bertrand",null,null,null,null,"6"]
[7,7.9,"JACQ Gilles",null,null,null,null,"8"]
[8,8.1999999999999993,"BELLEC Patrice",null,null,null,null,"8"]
[9,9.4,"RANDRIANA Mickael",null,null,null,null,"9"]
[10,9.5,"COUDE Jerome",null,null,null,null,"10"]
[11,null,null,null,null,null,null,""]
[12,null,null,null,null,null,null,""]
["Personne autorisée à donner des conseils :"]
["Si cette personne n'est pas le capitaine, ce dernier ne pourra pas donner de conseils dans les conditions fixées par la note de la règle de golf n°8"]
["CAPITAINE :"]
[]
["DATE :",null,null,"Signature du Capitaine"]
[]
[]
[{"$f":"Prepa!$D$2","v":"INTERCLUBS PROMOTION Mid Amateurs MESSIEURS"}]
[{"$f":"Prepa!$D$4","v":"Ligue de"}]
[{"$f":"Prepa!$D$6","v":"Date     Golf de …"}]
[]
[]
["Fiche de composition d'Equipe"]
["Equipiers du club de :",null,null,null,{"$f":"Prepa!$D$35","v":"LAVAL"}]
[null,"Ind","NOM",null,null,"Prénom",null,"Ind. Arr."]
[1,2.1,"CHAVETON Rémi",null,null,null,null,{"$f":"IF(B336=\"\",\"\",FIXED(B336,0))","v":"2"}]
[2,2.8,"POIRRIER-MORVAN Cyril",null,null,null,null,{"$f":"IF(B337=\"\",\"\",FIXED(B337,0))","v":"3"}]
[3,4.7,"BENOIST Stéphane",null,null,null,null,"5"]
[4,4.8,"DUBOIS Sébastien",null,null,null,null,"5"]
[5,6.4,"PETITPAS Bernard",null,null,null,null,"6"]
[6,6.5,"TOUCHAIS Julien",null,null,null,null,"7"]
[7,7.4,"DANET Laurent",null,null,null,null,"7"]
[8,7.8,"PENKACZ Oualid",null,null,null,null,"8"]
[9,9.1999999999999993,"EGERMANN Alain",null,null,null,null,"9"]
[10,9.9,"DE FONTENAY Christophe",null,null,null,null,"10"]
[11,10.199999999999999,"PAILLARD Jean-Luc",null,null,null,null,"10"]
[12,null,null,null,null,null,null,""]
["Personne autorisée à donner des conseils :"]
["Si cette personne n'est pas le capitaine, ce dernier ne pourra pas donner de conseils dans les conditions fixées par la note de la règle de golf n°8"]
["CAPITAINE :"]
[]
["DATE :",null,null,"Signature du Capitaine"]
[]
[]
[{"$f":"Prepa!$D$2","v":"INTERCLUBS PROMOTION Mid Amateurs MESSIEURS"}]
[{"$f":"Prepa!$D$4","v":"Ligue de"}]
[{"$f":"Prepa!$D$6","v":"Date     Golf de …"}]
[]
[]
["Fiche de composition d'Equipe"]
["Equipiers du club de :",null,null,null,{"$f":"Prepa!$D$37","v":"ORLEANS DONNERY"}]
[null,"Ind","NOM",null,null,"Prénom",null,"Ind. Arr."]
[1,5.4,"CUNNANE Tomas",null,null,null,null,{"$f":"IF(B363=\"\",\"\",FIXED(B363,0))","v":"5"}]
[2,7.2,"BOUTEILLY Laurent",null,null,null,null,{"$f":"IF(B364=\"\",\"\",FIXED(B364,0))","v":"7"}]
[3,9.4,"DAVODEAU Arnaud",null,null,null,null,"9"]
[4,9.6999999999999993,"BLOT Frédéric",null,null,null,null,"10"]
[5,10,"BLANC Christophe",null,null,null,null,"10"]
[6,10.6,"FERRIER Benjamin",null,null,null,null,"11"]
[7,10.9,"LASSOUDRY Stephan",null,null,null,null,"11"]
[8,11.8,"PRADIER Aymeric",null,null,null,null,"12"]
[9,13.8,"MAC NIEL Jacques",null,null,null,null,"14"]
[10,14,"GRAS Jerry",null,null,null,null,"14"]
[11,15.4,"MARECHAL Maxime",null,null,null,null,"15"]
[12,null,null,null,null,null,null,""]
["Personne autorisée à donner des conseils :"]
["Si cette personne n'est pas le capitaine, ce dernier ne pourra pas donner de conseils dans les conditions fixées par la note de la règle de golf n°8"]
["CAPITAINE :"]
[]
["DATE :",null,null,"Signature du Capitaine"]
[]
[]
[{"$f":"Prepa!$D$2","v":"INTERCLUBS PROMOTION Mid Amateurs MESSIEURS"}]
[{"$f":"Prepa!$D$4","v":"Ligue de"}]
[{"$f":"Prepa!$D$6","v":"Date     Golf de …"}]
[]
[]
["Fiche de composition d'Equipe"]
["Equipiers du club de :",null,null,null,{"$f":"Prepa!$D$39","v":"VAL DE L'INDRE"}]
[null,"Ind","NOM",null,null,"Prénom",null,"Ind. Arr."]
[1,"1,3","DORANGEON Gabriel",null,null,null,null,{"$f":"IF(B390=\"\",\"\",FIXED(B390,0))","v":"1"}]
[2,"5,8","VANDOMMELLE Loic",null,null,null,null,{"$f":"IF(B391=\"\",\"\",FIXED(B391,0))","v":"6"}]
[3,"6,4","BOUCHERON Philippe",null,null,null,null,"6"]
[4,"6,7","MARIAU Victor",null,null,null,null,"7"]
[5,"11","BRAJARD Fabrice",null,null,null,null,"11"]
[6,"11,5","DORANGEON Patrick",null,null,null,null,"12"]
[7,null,null,null,null,null,null,""]
[8,null,null,null,null,null,null,""]
[9,null,null,null,null,null,null,""]
[10,null,null,null,null,null,null,""]
[11,null,null,null,null,null,null,""]
[12,null,null,null,null,null,null,""]
["Personne autorisée à donner des conseils :"]
["Si cette personne n'est pas le capitaine, ce dernier ne pourra pas donner de conseils dans les conditions fixées par la note de la règle de golf n°8"]
["CAPITAINE :"]
[]
["DATE :",null,null,"Signature du Capitaine"]
[]
[]
[{"$f":"Prepa!$D$2","v":"INTERCLUBS PROMOTION Mid Amateurs MESSIEURS"}]
[{"$f":"Prepa!$D$4","v":"Ligue de"}]
[{"$f":"Prepa!$D$6","v":"Date     Golf de …"}]
[]
[]
["Fiche de composition d'Equipe"]
["Equipiers du club de :",null,null,null,{"$f":"Prepa!$D$41","v":"ROCHERS SEVIGNE"}]
[null,"Ind","NOM",null,null,"Prénom",null,"Ind. Arr."]
[1,4.8,"PARRY Richard",null,null,null,null,{"$f":"IF(B417=\"\",\"\",FIXED(B417,0))","v":"5"}]
[2,8,"FANSHAWE Cliff",null,null,null,null,{"$f":"IF(B418=\"\",\"\",FIXED(B418,0))","v":"8"}]
[3,9,"GONTIER Michael",null,null,null,null,"9"]
[4,9.6999999999999993,"OGER Bertrand",null,null,null,null,"10"]
[5,11.2,"CHEVALLIER Joseph",null,null,null,null,"11"]
[6,11.2,"CROIZEAN Jean Philippe",null,null,null,null,"11"]
[7,12.2,"LECOQ Hervé",null,null,null,null,"12"]
[8,13.5,"RAYNARD Philippe",null,null,null,null,"14"]
[9,14.3,"CHILOUX Jean Jacques",null,null,null,null,"14"]
[10,14.9,"HAMON Eric",null,null,null,null,"15"]
[11,16.100000000000001,"ALEXANDRE Eric",null,null,null,null,"16"]
[12,18.600000000000001,"WALLET Laurent",null,null,null,null,"19"]
["Personne autorisée à donner des conseils :"]
["Si cette personne n'est pas le capitaine, ce dernier ne pourra pas donner de conseils dans les conditions fixées par la note de la règle de golf n°8"]
["CAPITAINE :"]
[]
["DATE :",null,null,"Signature du Capitaine"]
[]
[]
[{"$f":"Prepa!$D$2","v":"INTERCLUBS PROMOTION Mid Amateurs MESSIEURS"}]
[{"$f":"Prepa!$D$4","v":"Ligue de"}]
[{"$f":"Prepa!$D$6","v":"Date     Golf de …"}]
[]
[]
["Fiche de composition d'Equipe"]
["Equipiers du club de :",null,null,null,{"$f":"Prepa!$D$43","v":"SABLE SOLESMES"}]
[null,"Ind","NOM",null,null,"Prénom",null,"Ind. Arr."]
[1,0.3,"MOREAU Romain",null,null,null,null,{"$f":"IF(B444=\"\",\"\",FIXED(B444,0))","v":"0"}]
[2,3.5,"OBIANG Jean De Dieu",null,null,null,null,{"$f":"IF(B445=\"\",\"\",FIXED(B445,0))","v":"4"}]
[3,3.8,"HOUDAYER Jean-Marc",null,null,null,null,"4"]
[4,4.0999999999999996,"RENARD Jérôme",null,null,null,null,"4"]
[5,4.5999999999999996,"DELALLE Damien",null,null,null,null,"5"]
[6,4.8,"DEZE Christophe",null,null,null,null,"5"]
[7,6.3,"POTTIER Fabien",null,null,null,null,"6"]
[8,null,null,null,null,null,null,""]
[9,null,null,null,null,null,null,""]
[10,null,null,null,null,null,null,""]
[11,null,null,null,null,null,null,""]
[12,null,null,null,null,null,null,""]
["Personne autorisée à donner des conseils :"]
["Si cette personne n'est pas le capitaine, ce dernier ne pourra pas donner de conseils dans les conditions fixées par la note de la règle de golf n°8"]
["CAPITAINE :"]
[]
["DATE :",null,null,"Signature du Capitaine"]
[]
[]
[{"$f":"Prepa!$D$2","v":"INTERCLUBS PROMOTION Mid Amateurs MESSIEURS"}]
[{"$f":"Prepa!$D$4","v":"Ligue de"}]
[{"$f":"Prepa!$D$6","v":"Date     Golf de …"}]
[]
[]
["Fiche de composition d'Equipe"]
["Equipiers du club de :",null,null,null,{"$f":"Prepa!$D$45","v":"SABLES D'OLONNE"}]
[null,"Ind","NOM",null,null,"Prénom",null,"Ind. Arr."]
[1,2.6,"CERVERA Yann",null,null,null,null,{"$f":"IF(B471=\"\",\"\",FIXED(B471,0))","v":"3"}]
[2,3.1,"RIHANI Habib",null,null,null,null,{"$f":"IF(B472=\"\",\"\",FIXED(B472,0))","v":"3"}]
[3,5.3,"BAUD Raphaël",null,null,null,null,"5"]
[4,5.3,"FONFREIDE Vincent",null,null,null,null,"5"]
[5,7.5,"SOMBRET Laurent",null,null,null,null,"8"]
[6,7.8,"TESSE Guillaume",null,null,null,null,"8"]
[7,8.3000000000000007,"DELABAUDINIERE Claude",null,null,null,null,"8"]
[8,9,"JACQUENOUD Pascal",null,null,null,null,"9"]
[9,null,null,null,null,null,null,""]
[10,null,null,null,null,null,null,""]
[11,null,null,null,null,null,null,""]
[12,null,null,null,null,null,null,""]
["Personne autorisée à donner des conseils :"]
["Si cette personne n'est pas le capitaine, ce dernier ne pourra pas donner de conseils dans les conditions fixées par la note de la règle de golf n°8"]
["CAPITAINE :"]
[]
["DATE :",null,null,"Signature du Capitaine"]
[]
[]
[{"$f":"Prepa!$D$2","v":"INTERCLUBS PROMOTION Mid Amateurs MESSIEURS"}]
[{"$f":"Prepa!$D$4","v":"Ligue de"}]
[{"$f":"Prepa!$D$6","v":"Date     Golf de …"}]
[]
[]
["Fiche de composition d'Equipe"]
["Equipiers du club de :",null,null,null,{"$f":"Prepa!$D$47","v":"SAINT CAST"}]
[null,"Ind","NOM",null,null,"Prénom",null,"Ind. Arr."]
[1,-0.1,"LEFEUVRE Philippe",null,null,null,null,{"$f":"IF(B498=\"\",\"\",FIXED(B498,0))","v":"0"}]
[2,0.8,"LETZELTER Frédéric",null,null,null,null,{"$f":"IF(B499=\"\",\"\",FIXED(B499,0))","v":"1"}]
[3,4.8,"BESNOUX Alain",null,null,null,null,"5"]
[4,5,"COUASNON Pascal",null,null,null,null,"5"]
[5,5.0999999999999996,"ESCALONA Jonathan",null,null,null,null,"5"]
[6,5.6,"LAURENT Antoine",null,null,null,null,"6"]
[7,8,"COPPEL Karig",null,null,null,null,"8"]
[8,9.5,"PITEL Jean Marie",null,null,null,null,"10"]
[9,10.3,"LEVAVASSEUR Sylvain",null,null,null,null,"10"]
[10,11.7,"LOUAIL Bruno",null,null,null,null,"12"]
[11,null,null,null,null,null,null,""]
[12,null,null,null,null,null,null,""]
["Personne autorisée à donner des conseils :"]
["Si cette personne n'est pas le capitaine, ce dernier ne pourra pas donner de conseils dans les conditions fixées par la note de la règle de golf n°8"]
["CAPITAINE :"]
[]
["DATE :",null,null,"Signature du Capitaine"]
[]
[]
[{"$f":"Prepa!$D$2","v":"INTERCLUBS PROMOTION Mid Amateurs MESSIEURS"}]
[{"$f":"Prepa!$D$4","v":"Ligue de"}]
[{"$f":"Prepa!$D$6","v":"Date     Golf de …"}]
[]
[]
["Fiche de composition d'Equipe"]
["Equipiers du club de :",null,null,null,{"$f":"Prepa!$D$49","v":"SAINT-BRIEUC"}]
[null,"Ind","NOM",null,null,"Prénom",null,"Ind. Arr."]
[1,1.5,"ROUAULT Emmanuel",null,null,null,null,{"$f":"IF(B525=\"\",\"\",FIXED(B525,0))","v":"2"}]
[2,7,"MARTEL Olivier",null,null,null,null,{"$f":"IF(B526=\"\",\"\",FIXED(B526,0))","v":"7"}]
[3,7.1,"MOURIC Joël",null,null,null,null,"7"]
[4,7.6,"SENGER Nicolas",null,null,null,null,"8"]
[5,9.4,"DURROUX Jean-Christophe",null,null,null,null,"9"]
[6,9.9,"LE BOUGEANT Xavier",null,null,null,null,"10"]
[7,10.199999999999999,"THETIOT Samuel",null,null,null,null,"10"]
[8,11.5,"BULLOCK Georges",null,null,null,null,"12"]
[9,13.2,"SOURDRILLE Kevin",null,null,null,null,"13"]
[10,null,null,null,null,null,null,""]
[11,null,null,null,null,null,null,""]
[12,null,null,null,null,null,null,""]
["Personne autorisée à donner des conseils :"]
["Si cette personne n'est pas le capitaine, ce dernier ne pourra pas donner de conseils dans les conditions fixées par la note de la règle de golf n°8"]
["CAPITAINE :"]
[]
["DATE :",null,null,"Signature du Capitaine"]
[]
[]
[{"$f":"Prepa!$D$2","v":"INTERCLUBS PROMOTION Mid Amateurs MESSIEURS"}]
[{"$f":"Prepa!$D$4","v":"Ligue de"}]
[{"$f":"Prepa!$D$6","v":"Date     Golf de …"}]
[]
[]
["Fiche de composition d'Equipe"]
["Equipiers du club de :",null,null,null,{"$f":"Prepa!$D$51","v":"SARGE/LE MANS"}]
[null,"Ind","NOM",null,null,"Prénom",null,"Ind. Arr."]
[1,4.9000000000000004,"MIRATON Vladimir",null,null,null,null,{"$f":"IF(B552=\"\",\"\",FIXED(B552,0))","v":"5"}]
[2,6.4,"MIRATON Jacques",null,null,null,null,{"$f":"IF(B553=\"\",\"\",FIXED(B553,0))","v":"6"}]
[3,6.7,"PECQUENARD Sébastien",null,null,null,null,"7"]
[4,6.8,"PELTIER Jean-Philippe",null,null,null,null,"7"]
[5,7,"ISAAC Willy",null,null,null,null,"7"]
[6,7.9,"BASSET Jonathan",null,null,null,null,"8"]
[7,7.9,"GAUTIER Sylvain",null,null,null,null,"8"]
[8,8.1,"RUNDSTADLER Philippe",null,null,null,null,"8"]
[9,9.5,"LAUDIERE Cédric",null,null,null,null,"10"]
[10,10.6,"BARRIQUAULT Laurent",null,null,null,null,"11"]
[11,null,null,null,null,null,null,""]
[12,null,null,null,null,null,null,""]
["Personne autorisée à donner des conseils :"]
["Si cette personne n'est pas le capitaine, ce dernier ne pourra pas donner de conseils dans les conditions fixées par la note de la règle de golf n°8"]
["CAPITAINE :"]
[]
["DATE :",null,null,"Signature du Capitaine"]
[]
[]
[{"$f":"Prepa!$D$2","v":"INTERCLUBS PROMOTION Mid Amateurs MESSIEURS"}]
[{"$f":"Prepa!$D$4","v":"Ligue de"}]
[{"$f":"Prepa!$D$6","v":"Date     Golf de …"}]
[]
[]
["Fiche de composition d'Equipe"]
["Equipiers du club de :",null,null,null,{"$f":"Prepa!$D$53","v":"VAL DE L'INDRE"}]
[null,"Ind","NOM",null,null,"Prénom",null,"Ind. Arr."]
[1,1.3,"DORANGEON Gabriel",null,null,null,null,{"$f":"IF(B579=\"\",\"\",FIXED(B579,0))","v":"1"}]
[2,5.8,"VANDOMMELE Loic",null,null,null,null,{"$f":"IF(B580=\"\",\"\",FIXED(B580,0))","v":"6"}]
[3,6.4,"BOUCHERON Philippe",null,null,null,null,"6"]
[4,6.7,"MARIAU Victor",null,null,null,null,"7"]
[5,11,"BRAJARD Fabrice",null,null,null,null,"11"]
[6,11.5,"DORANGEON Patrick",null,null,null,null,"12"]
[7,null,null,null,null,null,null,""]
[8,null,null,null,null,null,null,""]
[9,null,null,null,null,null,null,""]
[10,null,null,null,null,null,null,""]
[11,null,null,null,null,null,null,""]
[12,null,null,null,null,null,null,""]
["Personne autorisée à donner des conseils :"]
["Si cette personne n'est pas le capitaine, ce dernier ne pourra pas donner de conseils dans les conditions fixées par la note de la règle de golf n°8"]
["CAPITAINE :"]
[]
["DATE :",null,null,"Signature du Capitaine"]
[]
[]
[{"$f":"Prepa!$D$2","v":"INTERCLUBS PROMOTION Mid Amateurs MESSIEURS"}]
[{"$f":"Prepa!$D$4","v":"Ligue de"}]
[{"$f":"Prepa!$D$6","v":"Date     Golf de …"}]
[]
[]
["Fiche de composition d'Equipe"]
["Equipiers du club de :",null,null,null,{"$f":"Prepa!$D$55","v":0}]
[null,"Ind","NOM",null,null,"Prénom",null,"Ind. Arr."]
[1,null,null,null,null,null,null,{"$f":"IF(B606=\"\",\"\",FIXED(B606,0))","v":""}]
[2,null,null,null,null,null,null,{"$f":"IF(B607=\"\",\"\",FIXED(B607,0))","v":""}]
[3,null,null,null,null,null,null,""]
[4,null,null,null,null,null,null,""]
[5,null,null,null,null,null,null,""]
[6,null,null,null,null,null,null,""]
[7,null,null,null,null,null,null,""]
[8,null,null,null,null,null,null,""]
[9,null,null,null,null,null,null,""]
[10,null,null,null,null,null,null,""]
[11,null,null,null,null,null,null,""]
[12,null,null,null,null,null,null,""]
["Personne autorisée à donner des conseils :"]
["Si cette personne n'est pas le capitaine, ce dernier ne pourra pas donner de conseils dans les conditions fixées par la note de la règle de golf n°8"]
["CAPITAINE :"]
[]
["DATE :",null,null,"Signature du Capitaine"]
[]
[]
[{"$f":"Prepa!$D$2","v":"INTERCLUBS PROMOTION Mid Amateurs MESSIEURS"}]
[{"$f":"Prepa!$D$4","v":"Ligue de"}]
[{"$f":"Prepa!$D$6","v":"Date     Golf de …"}]
[]
[]
["Fiche de composition d'Equipe"]
["Equipiers du club de :",null,null,null,{"$f":"Prepa!$D$57","v":0}]
[null,"Ind","NOM",null,null,"Prénom",null,"Ind. Arr."]
[1,null,null,null,null,null,null,{"$f":"IF(B633=\"\",\"\",FIXED(B633,0))","v":""}]
[2,null,null,null,null,null,null,{"$f":"IF(B634=\"\",\"\",FIXED(B634,0))","v":""}]
[3,null,null,null,null,null,null,""]
[4,null,null,null,null,null,null,""]
[5,null,null,null,null,null,null,""]
[6,null,null,null,null,null,null,""]
[7,null,null,null,null,null,null,""]
[8,null,null,null,null,null,null,""]
[9,null,null,null,null,null,null,""]
[10,null,null,null,null,null,null,""]
[11,null,null,null,null,null,null,""]
[12,null,null,null,null,null,null,""]
["Personne autorisée à donner des conseils :"]
["Si cette personne n'est pas le capitaine, ce dernier ne pourra pas donner de conseils dans les conditions fixées par la note de la règle de golf n°8"]
["CAPITAINE :"]
[]
["DATE :",null,null,"Signature du Capitaine"]

{"sheet":"Donnees","index":3,"n_rows":272,"n_cols":122,"rows_kept":272,"cut":false,"hidden":false,"merged":[[0,0,0,17],[1,0,1,16],[4,0,4,17],[5,0,5,17],[6,0,6,17],[10,11,10,16],[9,2,9,4],[18,0,18,2],[18,4,18,5],[11,2,11,7],[12,2,12,7],[13,2,13,7],[14,2,14,7],[15,2,15,7],[13,11,13,16],[14,11,14,16],[15,11,15,16],[16,11,16,16],[18,14,18,16],[7,9,7,17],[9,11,9,13],[11,11,11,16],[12,11,12,16],[16,2,16,6],[29,0,29,2],[29,4,29,5],[40,0,40,2],[40,4,40,5],[183,14,183,16],[100,2,100,7],[101,2,101,7],[102,2,102,7],[22,2,22,7],[23,2,23,7],[24,2,24,7],[25,2,25,7],[26,2,26,7],[27,2,27,7],[33,2,33,7],[34,2,34,7],[35,2,35,7],[36,2,36,7],[37,2,37,7],[38,2,38,7],[159,11,159,16],[161,9,161,12],[161,14,161,16],[163,11,163,13],[165,11,165,16],[166,11,166,16],[152,11,152,13],[154,11,154,16],[155,11,155,16],[164,11,164,16],[175,11,175,16],[186,11,186,16],[233,11,233,16],[218,11,218,13],[185,11,185,13],[167,11,167,16],[168,11,168,16],[169,11,169,16],[170,11,170,16],[172,9,172,12],[172,14,172,16],[220,11,220,16],[221,11,221,16],[222,11,222,16],[223,11,223,16],[224,11,224,16],[219,11,219,16],[211,11,211,16],[236,11,236,16],[238,9,238,12],[238,14,238,16],[225,11,225,16],[227,9,227,12],[227,14,227,16],[229,11,229,13],[231,11,231,16],[232,11,232,16],[230,11,230,16],[194,0,194,2],[194,4,194,5],[180,2,180,7],[181,2,181,7],[187,2,187,7],[247,11,247,16],[249,9,249,12],[249,14,249,16],[188,2,188,7],[205,0,205,2],[205,4,205,5],[216,0,216,2],[216,4,216,5],[227,0,227,2],[227,4,227,5],[211,2,211,7],[212,2,212,7],[213,2,213,7],[214,2,214,7],[222,2,222,7],[223,2,223,7],[224,2,224,7],[234,11,234,16],[235,11,235,16],[55,2,55,7],[56,2,56,7],[57,2,57,7],[64,2,64,4],[53,2,53,4],[110,2,110,7],[111,2,111,7],[112,2,112,7],[183,0,183,2],[183,4,183,5],[73,0,73,2],[73,4,73,5],[150,0,150,2],[150,4,150,5],[161,0,161,2],[161,4,161,5],[147,2,147,7],[148,2,148,7],[154,2,154,7],[155,2,155,7],[156,2,156,7],[157,2,157,7],[134,2,134,7],[135,2,135,7],[225,2,225,7],[200,2,200,7],[201,2,201,7],[202,2,202,7],[203,2,203,7],[209,2,209,7],[210,2,210,7],[77,2,77,7],[75,2,75,4],[82,2,82,7],[88,2,88,7],[86,2,86,4],[84,0,84,2],[84,4,84,5],[89,2,89,7],[90,2,90,7],[91,2,91,7],[92,2,92,7],[93,2,93,7],[99,2,99,7],[95,4,95,5],[95,0,95,2],[103,2,103,7],[104,2,104,7],[42,2,42,4],[78,2,78,7],[79,2,79,7],[80,2,80,7],[81,2,81,7],[58,2,58,7],[59,2,59,7],[60,2,60,7],[66,2,66,7],[67,2,67,7],[68,2,68,7],[69,2,69,7],[70,2,70,7],[71,2,71,7],[44,2,44,7],[45,2,45,7],[46,2,46,7],[47,2,47,7],[48,2,48,7],[49,2,49,7],[51,0,51,2],[51,4,51,5],[62,0,62,2],[62,4,62,5],[128,0,128,2],[128,4,128,5],[136,2,136,7],[113,2,113,7],[106,0,106,2],[106,4,106,5],[114,2,114,7],[115,2,115,7],[121,2,121,7],[122,2,122,7],[123,2,123,7],[124,2,124,7],[117,0,117,2],[117,4,117,5],[231,2,231,7],[232,2,232,7],[233,2,233,7],[234,2,234,7],[235,2,235,7],[236,2,236,7],[242,2,242,7],[243,2,243,7],[244,2,244,7],[245,2,245,7],[238,0,238,2],[238,4,238,5],[240,2,240,4],[246,2,246,7],[247,2,247,7],[253,2,253,7],[254,2,254,7],[255,2,255,7],[256,2,256,7],[249,0,249,2],[249,4,249,5],[251,2,251,4],[257,2,257,7],[258,2,258,7],[264,2,264,7],[265,2,265,7],[266,2,266,7],[267,2,267,7],[260,0,260,2],[260,4,260,5],[262,2,262,4],[268,2,268,7],[269,2,269,7],[271,0,271,2],[271,4,271,5],[269,11,269,16],[271,9,271,12],[271,14,271,16],[262,11,262,13],[264,11,264,16],[265,11,265,16],[266,11,266,16],[267,11,267,16],[268,11,268,16],[263,11,263,16],[255,11,255,16],[256,11,256,16],[257,11,257,16],[258,11,258,16],[260,9,260,12],[260,14,260,16],[253,11,253,16],[254,11,254,16],[240,11,240,13],[242,11,242,16],[243,11,243,16],[244,11,244,16],[245,11,245,16],[246,11,246,16],[241,11,241,16],[252,11,252,16],[251,11,251,13],[212,11,212,16],[213,11,213,16],[214,11,214,16],[216,9,216,12],[216,14,216,16],[203,11,203,16],[205,9,205,12],[205,14,205,16],[207,11,207,13],[209,11,209,16],[210,11,210,16],[208,11,208,16],[196,11,196,13],[198,11,198,16],[199,11,199,16],[200,11,200,16],[201,11,201,16],[202,11,202,16],[197,11,197,16],[189,11,189,16],[190,11,190,16],[191,11,191,16],[192,11,192,16],[194,9,194,12],[194,14,194,16],[187,11,187,16],[188,11,188,16],[174,11,174,13],[176,11,176,16],[177,11,177,16],[178,11,178,16],[179,11,179,16],[180,11,180,16],[181,11,181,16],[183,9,183,12],[156,11,156,16],[157,11,157,16],[158,11,158,16],[145,11,145,16],[146,11,146,16],[147,11,147,16],[148,11,148,16],[150,9,150,12],[150,14,150,16],[153,11,153,16],[137,11,137,16],[139,9,139,12],[139,14,139,16],[141,11,141,13],[143,11,143,16],[144,11,144,16],[130,11,130,13],[132,11,132,16],[133,11,133,16],[134,11,134,16],[135,11,135,16],[136,11,136,16],[131,11,131,16],[142,11,142,16],[123,11,123,16],[124,11,124,16],[125,11,125,16],[126,11,126,16],[128,9,128,12],[128,14,128,16],[121,11,121,16],[122,11,122,16],[108,11,108,13],[110,11,110,16],[111,11,111,16],[112,11,112,16],[113,11,113,16],[114,11,114,16],[117,14,117,16],[119,11,119,13],[109,11,109,16],[120,11,120,16],[115,11,115,16],[117,9,117,12],[101,11,101,16],[102,11,102,16],[103,11,103,16],[104,11,104,16],[106,9,106,12],[106,14,106,16],[93,11,93,16],[95,9,95,12],[95,14,95,16],[97,11,97,13],[99,11,99,16],[100,11,100,16],[98,11,98,16],[86,11,86,13],[88,11,88,16],[89,11,89,16],[90,11,90,16],[91,11,91,16],[92,11,92,16],[79,11,79,16],[80,11,80,16],[81,11,81,16],[82,11,82,16],[84,9,84,12],[84,14,84,16],[87,11,87,16],[71,11,71,16],[73,9,73,12],[73,14,73,16],[75,11,75,13],[77,11,77,16],[78,11,78,16],[64,11,64,13],[66,11,66,16],[67,11,67,16],[68,11,68,16],[69,11,69,16],[70,11,70,16],[65,11,65,16],[76,11,76,16],[57,11,57,16],[58,11,58,16],[59,11,59,16],[60,11,60,16],[62,9,62,12],[62,14,62,16],[49,11,49,16],[51,9,51,12],[51,14,51,16],[53,11,53,13],[55,11,55,16],[56,11,56,16],[54,11,54,16],[42,11,42,13],[44,11,44,16],[45,11,45,16],[46,11,46,16],[47,11,47,16],[48,11,48,16],[35,11,35,16],[36,11,36,16],[37,11,37,16],[38,11,38,16],[40,9,40,12],[40,14,40,16],[43,11,43,16],[27,11,27,16],[29,9,29,12],[29,14,29,16],[31,11,31,13],[33,11,33,16],[34,11,34,16],[20,11,20,13],[22,11,22,16],[23,11,23,16],[24,11,24,16],[25,11,25,16],[26,11,26,16],[21,11,21,16],[32,11,32,16],[229,2,229,4],[152,2,152,4],[130,2,130,4],[119,2,119,4],[108,2,108,4],[97,2,97,4],[207,2,207,4],[218,2,218,4],[220,2,220,7],[221,2,221,7],[166,2,166,7],[167,2,167,7],[168,2,168,7],[158,2,158,7],[159,2,159,7],[163,2,163,4],[198,2,198,7],[199,2,199,7],[169,2,169,7],[170,2,170,7],[176,2,176,7],[177,2,177,7],[178,2,178,7],[179,2,179,7],[20,2,20,4],[31,2,31,4],[174,2,174,4],[185,2,185,4],[196,2,196,4],[189,2,189,7],[190,2,190,7],[191,2,191,7],[192,2,192,7],[172,0,172,2],[172,4,172,5],[137,2,137,7],[143,2,143,7],[144,2,144,7],[145,2,145,7],[146,2,146,7],[141,2,141,4],[139,0,139,2],[139,4,139,5],[165,2,165,7],[125,2,125,7],[126,2,126,7],[132,2,132,7],[133,2,133,7]]}
["Cliquez dans la cellule du nom du joueur puis sur la fléche et choisir le nom dans le menu déroulant. Vous pouvez, au choix, soit rentrer directement le score du joueur soit, en faisant \"click droit\" sur la cellule, rentrer la carte de score.En cas de forfait, abandon ou disqualification, inscrire: FOR,ABN ou DIS dans la colonne de score.LES CALCULS SONT FAITS AUTOMATIQUEMENT. POUR OBTENIR LE CLASSEMENT PROVISOIRE OU DEFINITIF, CLIQUER SUR LE BOUTON CI-DESSOUS."]
["Si le nombre de vagues complètes à la fin du 2ème Tour est inférieur à 6, inscrire le nombre de vagues complètes ci-contre (mini 3) :\nAttention à ne pas mettre de score dans les cases grises qui apparaissent si le nombre de vagues est inférieur à 6",null,null,null,null,null,null,null,null,null,null,null,null,null,null,null,null,4]
[]
[]
[{"$f":"Prepa!D2","v":"INTERCLUBS PROMOTION Mid Amateurs MESSIEURS"},null,null,null,null,null,null,null,null,null,null,null,null,null,null,null,null,null,null,null,{"$f":"Prepa!$D11","v":"ALENCON/ARCONNA"},null,{"$f":"Prepa!$D13","v":"BOIS D'O"},null,{"$f":"Prepa!$D15","v":"BREST ABERS"},null,{"$f":"Prepa!$D17","v":"BREST IROISE"},null,{"$f":"Prepa!$D19","v":"CAP MALO"},null,{"$f":"Prepa!$D21","v":"CARANTEC"},null,{"$f":"Prepa!$D23","v":"CH. AUGERVILLE"},null,{"$f":"Prepa!$D25","v":"CHARTRES FONTENAY"},null,{"$f":"Prepa!$D27","v":"GLORIETTE"},null,{"$f":"Prepa!$D29","v":"GUERANDE"},null,{"$f":"Prepa!$D31","v":"ILE D'OR"},null,{"$f":"Prepa!$D33","v":"LAC AU DUC"},null,{"$f":"Prepa!$D35","v":"LAVAL"},null,{"$f":"Prepa!$D37","v":"ORLEANS DONNERY"},null,{"$f":"Prepa!$D39","v":"VAL DE L'INDRE"},null,{"$f":"Prepa!$D41","v":"ROCHERS SEVIGNE"},null,{"$f":"Prepa!$D43","v":"SABLE SOLESMES"},null,{"$f":"Prepa!$D45","v":"SABLES D'OLONNE"},null,{"$f":"Prepa!$D47","v":"SAINT CAST"},null,{"$f":"Prepa!$D49","v":"SAINT-BRIEUC"},null,{"$f":"Prepa!$D51","v":"SARGE/LE MANS"},null,{"$f":"Prepa!$D53","v":"VAL DE L'INDRE"},null,{"$f":"Prepa!$D55","v":0},null,{"$f":"Prepa!$D57","v":0}]
[{"$f":"Prepa!D4","v":"Ligue de"},null,null,null,null,null,null,null,null,null,null,null,null,null,null,null,null,null,null,null,{"$f":"Particip!$C12","v":"SAIDI Jamil"},{"$f":"Particip!$B12","v":1.3},{"$f":"Particip!$C39","v":"SADKY Mounir"},{"$f":"Particip!$B39","v":6},{"$f":"Particip!$C66","v":"PARGNY Dominique"},{"$f":"Particip!$B66","v":8.1999999999999993},{"$f":"Particip!$C93","v":"SIMON Gael"},{"$f":"Particip!$B93","v":5.8},{"$f":"Particip!$C120","v":"GOURIOU Yves"},{"$f":"Particip!$B120","v":1.5},{"$f":"Particip!$C147","v":"LE BONHOMME Ronan"},{"$f":"Particip!$B147","v":3.3},{"$f":"Particip!$C174","v":"PERICAUD Olivier"},{"$f":"Particip!$B174","v":4.8},{"$f":"Particip!$C201","v":"MONTOYA Leonardo"},{"$f":"Particip!$B201","v":5.9},{"$f":"Particip!$C228","v":"CARETTE Benjamin"},{"$f":"Particip!$B228","v":3.9},{"$f":"Particip!$C255","v":"LEBRETON Eric"},{"$f":"Particip!$B255","v":0.2},{"$f":"Particip!$C282","v":"COULAUD-IVANOFF Valentin"},{"$f":"Particip!$B282","v":-3.1},{"$f":"Particip!$C309","v":"CATOIRE Gregory"},{"$f":"Particip!$B309","v":3.2},{"$f":"Particip!$C336","v":"CHAVETON Rémi"},{"$f":"Particip!$B336","v":2.1},{"$f":"Particip!$C363","v":"CUNNANE Tomas"},{"$f":"Particip!$B363","v":5.4},{"$f":"Particip!$C390","v":"DORANGEON Gabriel"},{"$f":"Particip!$B390","v":"1,3"},{"$f":"Particip!$C417","v":"PARRY Richard"},{"$f":"Particip!$B417","v":4.8},{"$f":"Particip!$C444","v":"MOREAU Romain"},{"$f":"Particip!$B444","v":0.3},{"$f":"Particip!$C471","v":"CERVERA Yann"},{"$f":"Particip!$B471","v":2.6},{"$f":"Particip!$C498","v":"LEFEUVRE Philippe"},{"$f":"Particip!$B498","v":-0.1},{"$f":"Particip!$C525","v":"ROUAULT Emmanuel"},{"$f":"Particip!$B525","v":1.5},{"$f":"Particip!$C552","v":"MIRATON Vladimir"},{"$f":"Particip!$B552","v":4.9000000000000004},{"$f":"Particip!$C579","v":"DORANGEON Gabriel"},{"$f":"Particip!$B579","v":1.3},{"$f":"Particip!$C606","v":0},{"$f":"Particip!$B606","v":0},{"$f":"Particip!$C633","v":0},{"$f":"Particip!$B633","v":0}]
[{"$f":"Prepa!D6","v":"Date     Golf de …"},null,null,null,null,null,null,null,null,null,null,null,null,null,null,null,null,null,null,null,{"$f":"Particip!$C13","v":"COPPOLA Laurent"},{"$f":"Particip!$B13","v":3.1},{"$f":"Particip!$C40","v":"GERBAUD Philippe"},{"$f":"Particip!$B40","v":6.9},{"$f":"Particip!$C67","v":"BOUVIER Mathieu"},{"$f":"Particip!$B67","v":9.6},{"$f":"Particip!$C94","v":"LE DUFF Pierre"},{"$f":"Particip!$B94","v":7.5},{"$f":"Particip!$C121","v":"LEBARBIER Bruno"},{"$f":"Particip!$B121","v":4.5},{"$f":"Particip!$C148","v":"MOSTINI Julien"},{"$f":"Particip!$B148","v":3.8},{"$f":"Particip!$C175","v":"GAUCHET Thomas"},{"$f":"Particip!$B175","v":6.5},{"$f":"Particip!$C202","v":"QUIVIGER Jean-Philippe"},{"$f":"Particip!$B202","v":10.4},{"$f":"Particip!$C229","v":"CHEVRIER Bertrand"},{"$f":"Particip!$B229","v":5.3},{"$f":"Particip!$C256","v":"METAYER Benoist"},{"$f":"Particip!$B256","v":0.8},{"$f":"Particip!$C283","v":"LUCAS Olivier"},{"$f":"Particip!$B283","v":-2.2000000000000002},{"$f":"Particip!$C310","v":"TURMEAU Cédric"},{"$f":"Particip!$B310","v":3.6},{"$f":"Particip!$C337","v":"POIRRIER-MORVAN Cyril"},{"$f":"Particip!$B337","v":2.8},{"$f":"Particip!$C364","v":"BOUTEILLY Laurent"},{"$f":"Particip!$B364","v":7.2},{"$f":"Particip!$C391","v":"VANDOMMELLE Loic"},{"$f":"Particip!$B391","v":"5,8"},{"$f":"Particip!$C418","v":"FANSHAWE Cliff"},{"$f":"Particip!$B418","v":8},{"$f":"Particip!$C445","v":"OBIANG Jean De Dieu"},{"$f":"Particip!$B445","v":3.5},{"$f":"Particip!$C472","v":"RIHANI Habib"},{"$f":"Particip!$B472","v":3.1},{"$f":"Particip!$C499","v":"LETZELTER Frédéric"},{"$f":"Particip!$B499","v":0.8},{"$f":"Particip!$C526","v":"MARTEL Olivier"},{"$f":"Particip!$B526","v":7},{"$f":"Particip!$C553","v":"MIRATON Jacques"},{"$f":"Particip!$B553","v":6.4},{"$f":"Particip!$C580","v":"VANDOMMELE Loic"},{"$f":"Particip!$B580","v":5.8},{"$f":"Particip!$C607","v":0},{"$f":"Particip!$B607","v":0},{"$f":"Particip!$C634","v":0},{"$f":"Particip!$B634","v":0}]
[null,null,null,null,null,null,null,null,null,null,null,null,null,null,null,null,null,null,null,null,{"$f":"Particip!$C14","v":"BOUGLE Xavier"},{"$f":"Particip!$B14","v":3.3},{"$f":"Particip!$C41","v":"MTIR Sofiane"},{"$f":"Particip!$B41","v":6.9},{"$f":"Particip!$C68","v":"INSAUSTI Olivier"},{"$f":"Particip!$B68","v":10},{"$f":"Particip!$C95","v":"LE MERDY Sébastien"},{"$f":"Particip!$B95","v":7.7},{"$f":"Particip!$C122","v":"LASBLEIZ Yann"},{"$f":"Particip!$B122","v":4.8},{"$f":"Particip!$C149","v":"KERBASTARD Pierre"},{"$f":"Particip!$B149","v":3.9},{"$f":"Particip!$C176","v":"MAUGRION Benoit"},{"$f":"Particip!$B176","v":8.1},{"$f":"Particip!$C203","v":"REBOULET Sébastien"},{"$f":"Particip!$B203","v":10.5},{"$f":"Particip!$C230","v":"GRIFFON François-Xavier"},{"$f":"Particip!$B230","v":8.8000000000000007},{"$f":"Particip!$C257","v":"VLETTER Morne"},{"$f":"Particip!$B257","v":3.2},{"$f":"Particip!$C284","v":"LUCAS Benoît"},{"$f":"Particip!$B284","v":-2.1},{"$f":"Particip!$C311","v":"URVOIS Patrice"},{"$f":"Particip!$B311","v":5},{"$f":"Particip!$C338","v":"BENOIST Stéphane"},{"$f":"Particip!$B338","v":4.7},{"$f":"Particip!$C365","v":"DAVODEAU Arnaud"},{"$f":"Particip!$B365","v":9.4},{"$f":"Particip!$C392","v":"BOUCHERON Philippe"},{"$f":"Particip!$B392","v":"6,4"},{"$f":"Particip!$C419","v":"GONTIER Michael"},{"$f":"Particip!$B419","v":9},{"$f":"Particip!$C446","v":"HOUDAYER Jean-Marc"},{"$f":"Particip!$B446","v":3.8},{"$f":"Particip!$C473","v":"BAUD Raphaël"},{"$f":"Particip!$B473","v":5.3},{"$f":"Particip!$C500","v":"BESNOUX Alain"},{"$f":"Particip!$B500","v":4.8},{"$f":"Particip!$C527","v":"MOURIC Joël"},{"$f":"Particip!$B527","v":7.1},{"$f":"Particip!$C554","v":"PECQUENARD Sébastien"},{"$f":"Particip!$B554","v":6.7},{"$f":"Particip!$C581","v":"BOUCHERON Philippe"},{"$f":"Particip!$B581","v":6.4},{"$f":"Particip!$C608","v":0},{"$f":"Particip!$B608","v":0},{"$f":"Particip!$C635","v":0},{"$f":"Particip!$B635","v":0}]
[null,null,null,null,null,null,null,null,null,null,null,null,null,null,null,null,null,null,null,null,{"$f":"Particip!$C15","v":"BOUSSELET Quentin"},{"$f":"Particip!$B15","v":4.2},{"$f":"Particip!$C42","v":"CHARRON Julien"},{"$f":"Particip!$B42","v":7.2},{"$f":"Particip!$C69","v":"MADEC Guillaume"},{"$f":"Particip!$B69","v":10.1},{"$f":"Particip!$C96","v":"DANN Nicholas"},{"$f":"Particip!$B96","v":8.1999999999999993},{"$f":"Particip!$C123","v":"THUILLIER Renaud"},{"$f":"Particip!$B123","v":6.2},{"$f":"Particip!$C150","v":"BELIN Alexandre"},{"$f":"Particip!$B150","v":4.2},{"$f":"Particip!$C177","v":"LECONARDEL Jérôme"},{"$f":"Particip!$B177","v":8.3000000000000007},{"$f":"Particip!$C204","v":"BIZARD Philippe"},{"$f":"Particip!$B204","v":11.4},{"$f":"Particip!$C231","v":"ROGER Jeremie"},{"$f":"Particip!$B231","v":12.8},{"$f":"Particip!$C258","v":"TOSATTO Robin"},{"$f":"Particip!$B258","v":3.5},{"$f":"Particip!$C285","v":"KLEIN Rodolphe"},{"$f":"Particip!$B285","v":-0.3},{"$f":"Particip!$C312","v":"BOUJU Pierre"},{"$f":"Particip!$B312","v":5.4},{"$f":"Particip!$C339","v":"DUBOIS Sébastien"},{"$f":"Particip!$B339","v":4.8},{"$f":"Particip!$C366","v":"BLOT Frédéric"},{"$f":"Particip!$B366","v":9.6999999999999993},{"$f":"Particip!$C393","v":"MARIAU Victor"},{"$f":"Particip!$B393","v":"6,7"},{"$f":"Particip!$C420","v":"OGER Bertrand"},{"$f":"Particip!$B420","v":9.6999999999999993},{"$f":"Particip!$C447","v":"RENARD Jérôme"},{"$f":"Particip!$B447","v":4.0999999999999996},{"$f":"Particip!$C474","v":"FONFREIDE Vincent"},{"$f":"Particip!$B474","v":5.3},{"$f":"Particip!$C501","v":"COUASNON Pascal"},{"$f":"Particip!$B501","v":5},{"$f":"Particip!$C528","v":"SENGER Nicolas"},{"$f":"Particip!$B528","v":7.6},{"$f":"Particip!$C555","v":"PELTIER Jean-Philippe"},{"$f":"Particip!$B555","v":6.8},{"$f":"Particip!$C582","v":"MARIAU Victor"},{"$f":"Particip!$B582","v":6.7},{"$f":"Particip!$C609","v":0},{"$f":"Particip!$B609","v":0},{"$f":"Particip!$C636","v":0},{"$f":"Particip!$B636","v":0}]
[null,null,"Equipiers du club de :",null,null,{"$f":"Prepa!D11","v":"ALENCON/ARCONNA"},null,null,null,null,null,null,null,null,null,null,null,null,null,null,{"$f":"Particip!$C16","v":"FAVEY Sebastien"},{"$f":"Particip!$B16","v":4.7},{"$f":"Particip!$C43","v":"SCHOOS Olivier"},{"$f":"Particip!$B43","v":7.6},{"$f":"Particip!$C70","v":"BAUDOUIN Gilles"},{"$f":"Particip!$B70","v":11.1},{"$f":"Particip!$C97","v":"LE BIHAN Thomas"},{"$f":"Particip!$B97","v":8.6},{"$f":"Particip!$C124","v":"LE QUENQUIS Nicolas"},{"$f":"Particip!$B124","v":7.6},{"$f":"Particip!$C151","v":"LECAPITAINE Nicolas"},{"$f":"Particip!$B151","v":4.4000000000000004},{"$f":"Particip!$C178","v":"LAURENT Emmanuel"},{"$f":"Particip!$B178","v":9.6},{"$f":"Particip!$C205","v":"LAMOUR Stephane"},{"$f":"Particip!$B205","v":11.6},{"$f":"Particip!$C232","v":"RAYNAUD Laurent"},{"$f":"Particip!$B232","v":13.2},{"$f":"Particip!$C259","v":"GENTIL Florian"},{"$f":"Particip!$B259","v":4.2},{"$f":"Particip!$C286","v":"LEFEBVRE Harold"},{"$f":"Particip!$B286","v":0.9},{"$f":"Particip!$C313","v":"CAPELLE Thomas"},{"$f":"Particip!$B313","v":5.7},{"$f":"Particip!$C340","v":"PETITPAS Bernard"},{"$f":"Particip!$B340","v":6.4},{"$f":"Particip!$C367","v":"BLANC Christophe"},{"$f":"Particip!$B367","v":10},{"$f":"Particip!$C394","v":"BRAJARD Fabrice"},{"$f":"Particip!$B394","v":"11"},{"$f":"Particip!$C421","v":"CHEVALLIER Joseph"},{"$f":"Particip!$B421","v":11.2},{"$f":"Particip!$C448","v":"DELALLE Damien"},{"$f":"Particip!$B448","v":4.5999999999999996},{"$f":"Particip!$C475","v":"SOMBRET Laurent"},{"$f":"Particip!$B475","v":7.5},{"$f":"Particip!$C502","v":"ESCALONA Jonathan"},{"$f":"Particip!$B502","v":5.0999999999999996},{"$f":"Particip!$C529","v":"DURROUX Jean-Christophe"},{"$f":"Particip!$B529","v":9.4},{"$f":"Particip!$C556","v":"ISAAC Willy"},{"$f":"Particip!$B556","v":7},{"$f":"Particip!$C583","v":"BRAJARD Fabrice"},{"$f":"Particip!$B583","v":11},{"$f":"Particip!$C610","v":0},{"$f":"Particip!$B610","v":0},{"$f":"Particip!$C637","v":0},{"$f":"Particip!$B637","v":0}]
[null,"Ind","Joueurs de la 1ère Journée",null,null,null,null,null,"Tour 1",null,"Ind","Joueurs de la 2ème Journée",null,null,null,null,null,"Tour 2","FOR ABN DIS","FOR ABN DIS",{"$f":"Particip!$C17","v":"BOURGOIN Eddy"},{"$f":"Particip!$B17","v":4.9000000000000004},{"$f":"Particip!$C44","v":"MEILLIAND Jeremy"},{"$f":"Particip!$B44","v":8.9},{"$f":"Particip!$C71","v":"FOUREL Tangi"},{"$f":"Particip!$B71","v":11.6},{"$f":"Particip!$C98","v":"ROUE Ronan"},{"$f":"Particip!$B98","v":9.1999999999999993},{"$f":"Particip!$C125","v":"FROSTIN Pierre-Gilles"},{"$f":"Particip!$B125","v":7.7},{"$f":"Particip!$C152","v":"JAN Francois"},{"$f":"Particip!$B152","v":4.5},{"$f":"Particip!$C179","v":"DEVILLIERS Pierre"},{"$f":"Particip!$B179","v":11.7},{"$f":"Particip!$C206","v":"OBLIQUE Mathieu"},{"$f":"Particip!$B206","v":11.8},{"$f":"Particip!$C233","v":"DONADIO Jerome"},{"$f":"Particip!$B233","v":17.8},{"$f":"Particip!$C260","v":"GAUVIN Ronan"},{"$f":"Particip!$B260","v":5.0999999999999996},{"$f":"Particip!$C287","v":"NOMBLOT Antoine"},{"$f":"Particip!$B287","v":6},{"$f":"Particip!$C314","v":"BOULVAIS Bertrand"},{"$f":"Particip!$B314","v":6},{"$f":"Particip!$C341","v":"TOUCHAIS Julien"},{"$f":"Particip!$B341","v":6.5},{"$f":"Particip!$C368","v":"FERRIER Benjamin"},{"$f":"Particip!$B368","v":10.6},{"$f":"Particip!$C395","v":"DORANGEON Patrick"},{"$f":"Particip!$B395","v":"11,5"},{"$f":"Particip!$C422","v":"CROIZEAN Jean Philippe"},{"$f":"Particip!$B422","v":11.2},{"$f":"Particip!$C449","v":"DEZE Christophe"},{"$f":"Particip!$B449","v":4.8},{"$f":"Particip!$C476","v":"TESSE Guillaume"},{"$f":"Particip!$B476","v":7.8},{"$f":"Particip!$C503","v":"LAURENT Antoine"},{"$f":"Particip!$B503","v":5.6},{"$f":"Particip!$C530","v":"LE BOUGEANT Xavier"},{"$f":"Particip!$B530","v":9.9},{"$f":"Particip!$C557","v":"BASSET Jonathan"},{"$f":"Particip!$B557","v":7.9},{"$f":"Particip!$C584","v":"DORANGEON Patrick"},{"$f":"Particip!$B584","v":11.5},{"$f":"Particip!$C611","v":0},{"$f":"Particip!$B611","v":0},{"$f":"Particip!$C638","v":0},{"$f":"Particip!$B638","v":0}]
["A",{"$f":"IF(C12=\"\",\"\",VLOOKUP(C12,$U$6:$V$17,2,FALSE))","v":4.2},"BOUSSELET Quentin",null,null,null,null,null,79,"A",{"$f":"IF(L12=\"\",\"\",VLOOKUP(L12,$U$6:$V$17,2,FALSE))","v":4.7},"FAVEY Sebastien",null,null,null,null,null,81,{"$f":"IF(ISTEXT(I12),1,0)","v":0},{"$f":"IF(ISTEXT(R12),1,0)","v":0},{"$f":"Particip!$C18","v":"EUDIER Ronan"},{"$f":"Particip!$B18","v":6.8},{"$f":"Particip!$C45","v":"LELONG Arnaud"},{"$f":"Particip!$B45","v":9.3000000000000007},{"$f":"Particip!$C72","v":"CONGAR Jean Francois"},{"$f":"Particip!$B72","v":13.8},{"$f":"Particip!$C99","v":"TROMELIN Patrick"},{"$f":"Particip!$B99","v":9.3000000000000007},{"$f":"Particip!$C126","v":"BONNIOT Samuel"},{"$f":"Particip!$B126","v":9.6},{"$f":"Particip!$C153","v":"BOUTTIER Nicolas"},{"$f":"Particip!$B153","v":4.5999999999999996},{"$f":"Particip!$C180","v":"LELONG Alexis"},{"$f":"Particip!$B180","v":11.7},{"$f":"Particip!$C207","v":"TARIANT Matthieu"},{"$f":"Particip!$B207","v":13.3},{"$f":"Particip!$C234","v":"BROHAN Philippe"},{"$f":"Particip!$B234","v":21.6},{"$f":"Particip!$C261","v":"BAYLON Alexandre"},{"$f":"Particip!$B261","v":5.2},{"$f":"Particip!$C288","v":"TEITGEN Antoine"},{"$f":"Particip!$B288","v":6.4},{"$f":"Particip!$C315","v":"JACQ Gilles"},{"$f":"Particip!$B315","v":7.9},{"$f":"Particip!$C342","v":"DANET Laurent"},{"$f":"Particip!$B342","v":7.4},{"$f":"Particip!$C369","v":"LASSOUDRY Stephan"},{"$f":"Particip!$B369","v":10.9},{"$f":"Particip!$C396","v":0},{"$f":"Particip!$B396","v":0},{"$f":"Particip!$C423","v":"LECOQ Hervé"},{"$f":"Particip!$B423","v":12.2},{"$f":"Particip!$C450","v":"POTTIER Fabien"},{"$f":"Particip!$B450","v":6.3},{"$f":"Particip!$C477","v":"DELABAUDINIERE Claude"},{"$f":"Particip!$B477","v":8.3000000000000007},{"$f":"Particip!$C504","v":"COPPEL Karig"},{"$f":"Particip!$B504","v":8},{"$f":"Particip!$C531","v":"THETIOT Samuel"},{"$f":"Particip!$B531","v":10.199999999999999},{"$f":"Particip!$C558","v":"GAUTIER Sylvain"},{"$f":"Particip!$B558","v":7.9},{"$f":"Particip!$C585","v":0},{"$f":"Particip!$B585","v":0},{"$f":"Particip!$C612","v":0},{"$f":"Particip!$B612","v":0},{"$f":"Particip!$C639","v":0},{"$f":"Particip!$B639","v":0},null,null,null,null,null,null,null,null,null,null,4,4,4,4,5,6,6,5,3,3,5,4,4,3,4,6,4,5,null,null,null,null,null,null,null,null,4,5,5,2,4,5,4,6,3,5,4,2,8,5,5,4,4,6]
["B",4.7,"FAVEY Sebastien",null,null,null,null,null,81,"B",3.3,"BOUGLE Xavier",null,null,null,null,null,82,0,0,{"$f":"Particip!$C19","v":"BILLOUIN David"},{"$f":"Particip!$B19","v":7.2},{"$f":"Particip!$C46","v":"ANDREYS Bruno"},{"$f":"Particip!$B46","v":9.9},{"$f":"Particip!$C73","v":0},{"$f":"Particip!$B73","v":0},{"$f":"Particip!$C100","v":"DANTEC Arnaud"},{"$f":"Particip!$B100","v":9.8000000000000007},{"$f":"Particip!$C127","v":"CAMBARRAT Arnaud"},{"$f":"Particip!$B127","v":10.1},{"$f":"Particip!$C154","v":"ALLIOUX Jean-François"},{"$f":"Particip!$B154","v":5.3},{"$f":"Particip!$C181","v":0},{"$f":"Particip!$B181","v":0},{"$f":"Particip!$C208","v":"GODARD Alexis"},{"$f":"Particip!$B208","v":14.9},{"$f":"Particip!$C235","v":0},{"$f":"Particip!$B235","v":0},{"$f":"Particip!$C262","v":"SEVIN François"},{"$f":"Particip!$B262","v":5.7},{"$f":"Particip!$C289","v":"MAYRAS Clement"},{"$f":"Particip!$B289","v":7.5},{"$f":"Particip!$C316","v":"BELLEC Patrice"},{"$f":"Particip!$B316","v":8.1999999999999993},{"$f":"Particip!$C343","v":"PENKACZ Oualid"},{"$f":"Particip!$B343","v":7.8},{"$f":"Particip!$C370","v":"PRADIER Aymeric"},{"$f":"Particip!$B370","v":11.8},{"$f":"Particip!$C397","v":0},{"$f":"Particip!$B397","v":0},{"$f":"Particip!$C424","v":"RAYNARD Philippe"},{"$f":"Particip!$B424","v":13.5},{"$f":"Particip!$C451","v":0},{"$f":"Particip!$B451","v":0},{"$f":"Particip!$C478","v":"JACQUENOUD Pascal"},{"$f":"Particip!$B478","v":9},{"$f":"Particip!$C505","v":"PITEL Jean Marie"},{"$f":"Particip!$B505","v":9.5},{"$f":"Particip!$C532","v":"BULLOCK Georges"},{"$f":"Particip!$B532","v":11.5},{"$f":"Particip!$C559","v":"RUNDSTADLER Philippe"},{"$f":"Particip!$B559","v":8.1},{"$f":"Particip!$C586","v":0},{"$f":"Particip!$B586","v":0},{"$f":"Particip!$C613","v":0},{"$f":"Particip!$B613","v":0},{"$f":"Particip!$C640","v":0},{"$f":"Particip!$B640","v":0},null,null,null,null,null,null,null,null,null,null,6,4,6,3,4,4,5,5,3,4,5,3,5,3,7,4,4,6,null,null,null,null,null,null,null,null,4,5,5,4,5,5,7,6,3,5,4,3,5,4,4,5,3,5]
["C",3.3,"BOUGLE Xavier",null,null,null,null,null,76,"C",3.1,"COPPOLA Laurent",null,null,null,null,null,76,0,0,{"$f":"Particip!$C20","v":"LOISEAU Dominique"},{"$f":"Particip!$B20","v":7.5},{"$f":"Particip!$C47","v":"GOURCI Jérome"},{"$f":"Particip!$B47","v":14.4},{"$f":"Particip!$C74","v":0},{"$f":"Particip!$B74","v":0},{"$f":"Particip!$C101","v":"BERVAS Philippe"},{"$f":"Particip!$B101","v":10.6},{"$f":"Particip!$C128","v":0},{"$f":"Particip!$B128","v":0},{"$f":"Particip!$C155","v":"GUILLAUME Thomas"},{"$f":"Particip!$B155","v":5.7},{"$f":"Particip!$C182","v":0},{"$f":"Particip!$B182","v":0},{"$f":"Particip!$C209","v":"DOUCET Benoit"},{"$f":"Particip!$B209","v":15},{"$f":"Particip!$C236","v":0},{"$f":"Particip!$B236","v":0},{"$f":"Particip!$C263","v":"ROHEL Benjamin"},{"$f":"Particip!$B263","v":6.1},{"$f":"Particip!$C290","v":"CHAILLOU Cyrille"},{"$f":"Particip!$B290","v":8.1},{"$f":"Particip!$C317","v":"RANDRIANA Mickael"},{"$f":"Particip!$B317","v":9.4},{"$f":"Particip!$C344","v":"EGERMANN Alain"},{"$f":"Particip!$B344","v":9.1999999999999993},{"$f":"Particip!$C371","v":"MAC NIEL Jacques"},{"$f":"Particip!$B371","v":13.8},{"$f":"Particip!$C398","v":0},{"$f":"Particip!$B398","v":0},{"$f":"Particip!$C425","v":"CHILOUX Jean Jacques"},{"$f":"Particip!$B425","v":14.3},{"$f":"Particip!$C452","v":0},{"$f":"Particip!$B452","v":0},{"$f":"Particip!$C479","v":0},{"$f":"Particip!$B479","v":0},{"$f":"Particip!$C506","v":"LEVAVASSEUR Sylvain"},{"$f":"Particip!$B506","v":10.3},{"$f":"Particip!$C533","v":"SOURDRILLE Kevin"},{"$f":"Particip!$B533","v":13.2},{"$f":"Particip!$C560","v":"LAUDIERE Cédric"},{"$f":"Particip!$B560","v":9.5},{"$f":"Particip!$C587","v":0},{"$f":"Particip!$B587","v":0},{"$f":"Particip!$C614","v":0},{"$f":"Particip!$B614","v":0},{"$f":"Particip!$C641","v":0},{"$f":"Particip!$B641","v":0},null,null,null,null,null,null,null,null,null,null,4,4,7,3,5,5,4,4,3,6,4,3,4,4,4,3,4,5,null,null,null,null,null,null,null,null,4,5,5,2,3,6,5,4,4,5,4,3,5,4,5,4,2,6]
["D",1.3,"SAIDI Jamil",null,null,null,null,null,81,"D",1.3,"SAIDI Jamil",null,null,null,null,null,80,0,0,{"$f":"Particip!$C21","v":"BOUSSELET Hubert"},{"$f":"Particip!$B21","v":10},{"$f":"Particip!$C48","v":0},{"$f":"Particip!$B48","v":0},{"$f":"Particip!$C75","v":0},{"$f":"Particip!$B75","v":0},{"$f":"Particip!$C102","v":"BONNAUD Marc"},{"$f":"Particip!$B102","v":10.8},{"$f":"Particip!$C129","v":0},{"$f":"Particip!$B129","v":0},{"$f":"Particip!$C156","v":"LE GUEN Jérémy"},{"$f":"Particip!$B156","v":6.3},{"$f":"Particip!$C183","v":0},{"$f":"Particip!$B183","v":0},{"$f":"Particip!$C210","v":"VIGNEAU Denis"},{"$f":"Particip!$B210","v":18.5},{"$f":"Particip!$C237","v":0},{"$f":"Particip!$B237","v":0},{"$f":"Particip!$C264","v":"BLANDIN Erwan"},{"$f":"Particip!$B264","v":6.2},{"$f":"Particip!$C291","v":"ROUX Anthony"},{"$f":"Particip!$B291","v":9.6},{"$f":"Particip!$C318","v":"COUDE Jerome"},{"$f":"Particip!$B318","v":9.5},{"$f":"Particip!$C345","v":"DE FONTENAY Christophe"},{"$f":"Particip!$B345","v":9.9},{"$f":"Particip!$C372","v":"GRAS Jerry"},{"$f":"Particip!$B372","v":14},{"$f":"Particip!$C399","v":0},{"$f":"Particip!$B399","v":0},{"$f":"Particip!$C426","v":"HAMON Eric"},{"$f":"Particip!$B426","v":14.9},{"$f":"Particip!$C453","v":0},{"$f":"Particip!$B453","v":0},{"$f":"Particip!$C480","v":0},{"$f":"Particip!$B480","v":0},{"$f":"Particip!$C507","v":"LOUAIL Bruno"},{"$f":"Particip!$B507","v":11.7},{"$f":"Particip!$C534","v":0},{"$f":"Particip!$B534","v":0},{"$f":"Particip!$C561","v":"BARRIQUAULT Laurent"},{"$f":"Particip!$B561","v":10.6},{"$f":"Particip!$C588","v":0},{"$f":"Particip!$B588","v":0},{"$f":"Particip!$C615","v":0},{"$f":"Particip!$B615","v":0},{"$f":"Particip!$C642","v":0},{"$f":"Particip!$B642","v":0},null,null,null,null,null,null,null,null,null,null,4,4,5,3,6,7,4,4,3,4,5,3,6,4,6,4,4,5,null,null,null,null,null,null,null,null,3,4,6,4,5,7,3,5,4,4,5,3,6,4,4,4,3,6]
["E",3.1,"COPPOLA Laurent",null,null,null,null,null,79,"E","",null,null,null,null,null,null,null,0,0,{"$f":"Particip!$C22","v":0},{"$f":"Particip!$B22","v":0},{"$f":"Particip!$C49","v":0},{"$f":"Particip!$B49","v":0},{"$f":"Particip!$C76","v":0},{"$f":"Particip!$B76","v":0},{"$f":"Particip!$C103","v":"LE BORGNE Gilles"},{"$f":"Particip!$B103","v":12.1},{"$f":"Particip!$C130","v":0},{"$f":"Particip!$B130","v":0},{"$f":"Particip!$C157","v":"PHILIPPE Félix"},{"$f":"Particip!$B157","v":8.4},{"$f":"Particip!$C184","v":0},{"$f":"Particip!$B184","v":0},{"$f":"Particip!$C211","v":0},{"$f":"Particip!$B211","v":0},{"$f":"Particip!$C238","v":0},{"$f":"Particip!$B238","v":0},{"$f":"Particip!$C265","v":"CHOPINOT Clément"},{"$f":"Particip!$B265","v":6.6},{"$f":"Particip!$C292","v":"BLANCHARD Christophe"},{"$f":"Particip!$B292","v":10.3},{"$f":"Particip!$C319","v":0},{"$f":"Particip!$B319","v":0},{"$f":"Particip!$C346","v":"PAILLARD Jean-Luc"},{"$f":"Particip!$B346","v":10.199999999999999},{"$f":"Particip!$C373","v":"MARECHAL Maxime"},{"$f":"Particip!$B373","v":15.4},{"$f":"Particip!$C400","v":0},{"$f":"Particip!$B400","v":0},{"$f":"Particip!$C427","v":"ALEXANDRE Eric"},{"$f":"Particip!$B427","v":16.100000000000001},{"$f":"Particip!$C454","v":0},{"$f":"Particip!$B454","v":0},{"$f":"Particip!$C481","v":0},{"$f":"Particip!$B481","v":0},{"$f":"Particip!$C508","v":0},{"$f":"Particip!$B508","v":0},{"$f":"Particip!$C535","v":0},{"$f":"Particip!$B535","v":0},{"$f":"Particip!$C562","v":0},{"$f":"Particip!$B562","v":0},{"$f":"Particip!$C589","v":0},{"$f":"Particip!$B589","v":0},{"$f":"Particip!$C616","v":0},{"$f":"Particip!$B616","v":0},{"$f":"Particip!$C643","v":0},{"$f":"Particip!$B643","v":0},null,null,null,null,null,null,null,null,null,null,4,5,5,3,5,5,4,5,4,4,5,3,4,5,5,4,3,6,null,null,null,null,null,null,null,null,4,5,4,5,4,5,5,4,4,6,5,5,8,5,4,4,4,5]
["F",6.8,"EUDIER Ronan",null,null,null,null,null,93,"F","",null,null,null,null,null,null,null,0,0,{"$f":"Particip!$C23","v":0},{"$f":"Particip!$B23","v":0},{"$f":"Particip!$C50","v":0},{"$f":"Particip!$B50","v":0},{"$f":"Particip!$C77","v":0},{"$f":"Particip!$B77","v":0},{"$f":"Particip!$C104","v":0},{"$f":"Particip!$B104","v":0},{"$f":"Particip!$C131","v":0},{"$f":"Particip!$B131","v":0},{"$f":"Particip!$C158","v":"JEGO Jean-Claude"},{"$f":"Particip!$B158","v":9.1},{"$f":"Particip!$C185","v":0},{"$f":"Particip!$B185","v":0},{"$f":"Particip!$C212","v":0},{"$f":"Particip!$B212","v":0},{"$f":"Particip!$C239","v":0},{"$f":"Particip!$B239","v":0},{"$f":"Particip!$C266","v":"SLIMKO Greg"},{"$f":"Particip!$B266","v":8.5},{"$f":"Particip!$C293","v":0},{"$f":"Particip!$B293","v":0},{"$f":"Particip!$C320","v":0},{"$f":"Particip!$B320","v":0},{"$f":"Particip!$C347","v":0},{"$f":"Particip!$B347","v":0},{"$f":"Particip!$C374","v":0},{"$f":"Particip!$B374","v":0},{"$f":"Particip!$C401","v":0},{"$f":"Particip!$B401","v":0},{"$f":"Particip!$C428","v":"WALLET Laurent"},{"$f":"Particip!$B428","v":18.600000000000001},{"$f":"Particip!$C455","v":0},{"$f":"Particip!$B455","v":0},{"$f":"Particip!$C482","v":0},{"$f":"Particip!$B482","v":0},{"$f":"Particip!$C509","v":0},{"$f":"Particip!$B509","v":0},{"$f":"Particip!$C536","v":0},{"$f":"Particip!$B536","v":0},{"$f":"Particip!$C563","v":0},{"$f":"Particip!$B563","v":0},{"$f":"Particip!$C590","v":0},{"$f":"Particip!$B590","v":0},{"$f":"Particip!$C617","v":0},{"$f":"Particip!$B617","v":0},{"$f":"Particip!$C644","v":0},{"$f":"Particip!$B644","v":0},null,null,null,null,null,null,null,null,null,null,4,5,6,4,5,6,4,5,3,4,7,7,6,6,7,3,4,7]
[]
[{"$f":"IF(SUM(R11:R17)>0,\"Classement Final : \",\"Classement 1er jour : \")","v":"Classement Final : "},null,null,{"$f":"IF(COUNT(I12:I17)<6,\"\",VLOOKUP(F10,'Cl.J1+Gen.'!$AH$11:$BL$34,31,FALSE))","v":3},{"$f":"IF(SUM(R12:R17)>0,\"Total des 2 Tours: \",\"Total du Tour 1: \")","v":"Total des 2 Tours: "},null,{"$f":"IF(OR(I19=\"DIS\",R19=\"DIS\"),\"DIS\",I19+R19)","v":633},null,{"$f":"IF(S19>1,\"DIS\",IF(OR(S19=1,COUNTA(I12:I17)<6),SUM(I12:I17),SUM(I12:I17)-MAX(I12:I17)))","v":396},null,null,null,null,null,null,null,null,{"$f":"IF(T19>1,\"DIS\",IF(T19=1,SUM(R12:R17),IF(COUNT(R12:R17)<$R$2,SUM(R12:R17),SUM(R12:R17)-MAX(R12:R17))))","v":237},{"$f":"SUM(S12:S17)","v":0},{"$f":"SUM(T12:T17)","v":0}]
[]
[null,null,"Equipiers du club de :",null,null,{"$f":"Prepa!D13","v":"BOIS D'O"}]
[null,"Ind","Joueurs de la 1ère Journée",null,null,null,null,null,"Tour 1",null,"Ind","Joueurs de la 2ème Journée",null,null,null,null,null,"Tour 2","FOR ABN DIS","FOR ABN DIS"]
["A",{"$f":"IF(C23=\"\",\"\",VLOOKUP(C23,$W$6:$X$17,2,FALSE))","v":9.9},"ANDREYS Bruno",null,null,null,null,null,102,"A",{"$f":"IF(L23=\"\",\"\",VLOOKUP(L23,$W$6:$X$17,2,FALSE))","v":8.9},"MEILLIAND Jeremy",null,null,null,null,null,80,{"$f":"IF(ISTEXT(I23),1,0)","v":0},{"$f":"IF(ISTEXT(R23),1,0)","v":0},null,null,null,null,null,null,null,null,null,null,null,null,null,null,null,null,null,null,null,null,null,null,null,null,null,null,null,null,null,null,null,null,null,null,null,null,null,null,null,null,null,null,null,null,null,null,null,null,null,null,null,null,null,null,null,null,null,null,5,6,6,6,4,6,5,5,4,5,5,4,5,7,12,8,3,6,null,null,null,null,null,null,null,null,5,7,5,2,4,6,3,5,4,3,5,3,4,6,5,5,3,5]
["B",7.6,"SCHOOS Olivier",null,null,null,null,null,93,"B",6,"SADKY Mounir",null,null,null,null,null,87,0,0,null,null,null,null,null,null,null,null,null,null,null,null,null,null,null,null,null,null,null,null,null,null,null,null,null,null,null,null,null,null,null,null,null,null,null,null,null,null,null,null,null,null,null,null,null,null,null,null,null,null,null,null,null,null,null,null,null,null,4,5,6,8,5,6,5,5,4,4,4,3,5,4,7,7,3,8,null,null,null,null,null,null,null,null,5,4,5,3,4,7,4,4,4,8,5,3,5,7,5,5,3,6]
["C",6,"SADKY Mounir",null,null,null,null,null,90,"C",7.6,"SCHOOS Olivier",null,null,null,null,null,86,0,0,null,null,null,null,null,null,null,null,null,null,null,null,null,null,null,null,null,null,null,null,null,null,null,null,null,null,null,null,null,null,null,null,null,null,null,null,null,null,null,null,null,null,null,null,null,null,null,null,null,null,null,null,null,null,null,null,null,null,4,4,6,3,5,6,4,6,3,6,5,5,6,4,9,5,3,6,null,null,null,null,null,null,null,null,4,4,6,4,4,6,6,4,4,4,4,7,7,4,3,4,4,7]
["D",7.2,"CHARRON Julien",null,null,null,null,null,107,"D",6.9,"GERBAUD Philippe",null,null,null,null,null,87,0,0,null,null,null,null,null,null,null,null,null,null,null,null,null,null,null,null,null,null,null,null,null,null,null,null,null,null,null,null,null,null,null,null,null,null,null,null,null,null,null,null,null,null,null,null,null,null,null,null,null,null,null,null,null,null,null,null,null,null,4,4,8,4,5,6,5,5,4,6,5,13,7,6,6,6,6,7,null,null,null,null,null,null,null,null,4,4,6,4,4,7,6,5,5,4,6,3,6,5,4,4,4,6]
["E",8.9,"MEILLIAND Jeremy",null,null,null,null,null,97,"E","",null,null,null,null,null,null,null,0,0,null,null,null,null,null,null,null,null,null,null,null,null,null,null,null,null,null,null,null,null,null,null,null,null,null,null,null,null,null,null,null,null,null,null,null,null,null,null,null,null,null,null,null,null,null,null,null,null,null,null,null,null,null,null,null,null,null,null,3,4,6,3,8,6,10,8,3,7,4,4,6,7,4,4,3,7,null,null,null,null,null,null,null,null,4,4,5,3,7,5,5,5,3,7,5,4,6,4,6,4,4,6]
["F",6.9,"MTIR Sofiane",null,null,null,null,null,83,"F","",null,null,null,null,null,null,null,0,0,null,null,null,null,null,null,null,null,null,null,null,null,null,null,null,null,null,null,null,null,null,null,null,null,null,null,null,null,null,null,null,null,null,null,null,null,null,null,null,null,null,null,null,null,null,null,null,null,null,null,null,null,null,null,null,null,null,null,4,4,5,5,6,6,5,5,3,3,5,4,6,4,3,4,4,7]
[]
[{"$f":"IF(SUM(R22:R28)>0,\"Classement Final : \",\"Classement 1er jour : \")","v":"Classement Final : "},null,null,{"$f":"IF(COUNT(I23:I28)<6,\"\",VLOOKUP(F21,'Cl.J1+Gen.'!$AH$11:$BL$34,31,FALSE))","v":20},{"$f":"IF(SUM(R23:R28)>0,\"Total des 2 Tours: \",\"Total du Tour 1: \")","v":"Total des 2 Tours: "},null,{"$f":"IF(OR(I30=\"DIS\",R30=\"DIS\"),\"DIS\",I30+R30)","v":718},null,{"$f":"IF(S30>1,\"DIS\",IF(OR(S30=1,COUNTA(I23:I28)<6),SUM(I23:I28),SUM(I23:I28)-MAX(I23:I28)))","v":465},null,null,null,null,null,null,null,null,{"$f":"IF(T30>1,\"DIS\",IF(T30=1,SUM(R23:R28),IF(COUNT(R23:R28)<$R$2,SUM(R23:R28),SUM(R23:R28)-MAX(R23:R28))))","v":253},{"$f":"SUM(S23:S28)","v":0},{"$f":"SUM(T23:T28)","v":0}]
[]
[null,null,"Equipiers du club de :",null,null,{"$f":"Prepa!D15","v":"BREST ABERS"}]
[null,"Ind","Joueurs de la 1ère Journée",null,null,null,null,null,"Tour 1",null,"Ind","Joueurs de la 2ème Journée",null,null,null,null,null,"Tour 2","FOR ABN DIS","FOR ABN DIS"]
["A",{"$f":"IF(C34=\"\",\"\",VLOOKUP(C34,$Y$6:$Z$17,2,FALSE))","v":9.6},"BOUVIER Mathieu",null,null,null,null,null,95,"A",{"$f":"IF(L34=\"\",\"\",VLOOKUP(L34,$Y$6:$Z$17,2,FALSE))","v":9.6},"BOUVIER Mathieu",null,null,null,null,null,89,{"$f":"IF(ISTEXT(I34),1,0)","v":0},{"$f":"IF(ISTEXT(R34),1,0)","v":0},null,null,null,null,null,null,null,null,null,null,null,null,null,null,null,null,null,null,null,null,null,null,null,null,null,null,null,null,null,null,null,null,null,null,null,null,null,null,null,null,null,null,null,null,null,null,null,null,null,null,null,null,null,null,null,null,null,null,5,5,6,4,5,7,5,5,4,5,4,6,6,9,4,5,4,6,null,null,null,null,null,null,null,null,4,5,6,5,8,7,6,4,3,4,4,4,5,6,4,4,4,6]
["B",8.1999999999999993,"PARGNY Dominique",null,null,null,null,null,89,"B",11.1,"BAUDOUIN Gilles",null,null,null,null,null,89,0,0,null,null,null,null,null,null,null,null,null,null,null,null,null,null,null,null,null,null,null,null,null,null,null,null,null,null,null,null,null,null,null,null,null,null,null,null,null,null,null,null,null,null,null,null,null,null,null,null,null,null,null,null,null,null,null,null,null,null,4,5,6,4,5,5,5,4,4,5,3,7,4,5,5,7,5,6,null,null,null,null,null,null,null,null,4,5,7,4,6,6,5,4,5,4,4,6,5,5,5,5,4,5]
["C",10,"INSAUSTI Olivier",null,null,null,null,null,94,"C",8.1999999999999993,"PARGNY Dominique",null,null,null,null,null,84,0,0,null,null,null,null,null,null,null,null,null,null,null,null,null,null,null,null,null,null,null,null,null,null,null,null,null,null,null,null,null,null,null,null,null,null,null,null,null,null,null,null,null,null,null,null,null,null,null,null,null,null,null,null,null,null,null,null,null,null,6,4,7,4,5,7,6,5,4,5,5,5,6,6,5,5,3,6,null,null,null,null,null,null,null,null,4,4,6,3,5,6,5,4,3,6,6,4,5,5,4,5,3,6]
["D",10.1,"MADEC Guillaume",null,null,null,null,null,88,"D",10.1,"MADEC Guillaume",null,null,null,null,null,90,0,0,null,null,null,null,null,null,null,null,null,null,null,null,null,null,null,null,null,null,null,null,null,null,null,null,null,null,null,null,null,null,null,null,null,null,null,null,null,null,null,null,null,null,null,null,null,null,null,null,null,null,null,null,null,null,null,null,null,null,4,6,6,3,6,5,5,6,3,6,4,3,6,4,7,5,3,6,null,null,null,null,null,null,null,null,4,5,5,5,6,7,5,4,3,6,6,4,8,5,5,4,3,5]
["E",11.1,"BAUDOUIN Gilles",null,null,null,null,null,95,"E","",null,null,null,null,null,null,null,0,0,null,null,null,null,null,null,null,null,null,null,null,null,null,null,null,null,null,null,null,null,null,null,null,null,null,null,null,null,null,null,null,null,null,null,null,null,null,null,null,null,null,null,null,null,null,null,null,null,null,null,null,null,null,null,null,null,null,null,5,5,5,4,5,6,5,6,5,5,6,7,6,6,6,4,4,5,null,null,null,null,null,null,null,null,5,5,6,3,5,7,4,4,5,5,5,3,6,6,7,5,4,5]
["F",11.6,"FOUREL Tangi",null,null,null,null,null,103,"F","",null,null,null,null,null,null,null,0,0,null,null,null,null,null,null,null,null,null,null,null,null,null,null,null,null,null,null,null,null,null,null,null,null,null,null,null,null,null,null,null,null,null,null,null,null,null,null,null,null,null,null,null,null,null,null,null,null,null,null,null,null,null,null,null,null,null,null,5,6,6,7,6,6,5,5,4,5,5,5,7,4,12,6,3,6]
[]
[{"$f":"IF(SUM(R33:R39)>0,\"Classement Final : \",\"Classement 1er jour : \")","v":"Classement Final : "},null,null,{"$f":"IF(COUNT(I34:I39)<6,\"\",VLOOKUP(F32,'Cl.J1+Gen.'!$AH$11:$BL$34,31,FALSE))","v":21},{"$f":"IF(SUM(R34:R39)>0,\"Total des 2 Tours: \",\"Total du Tour 1: \")","v":"Total des 2 Tours: "},null,{"$f":"IF(OR(I41=\"DIS\",R41=\"DIS\"),\"DIS\",I41+R41)","v":723},null,{"$f":"IF(S41>1,\"DIS\",IF(OR(S41=1,COUNTA(I34:I39)<6),SUM(I34:I39),SUM(I34:I39)-MAX(I34:I39)))","v":461},null,null,null,null,null,null,null,null,{"$f":"IF(T41>1,\"DIS\",IF(T41=1,SUM(R34:R39),IF(COUNT(R34:R39)<$R$2,SUM(R34:R39),SUM(R34:R39)-MAX(R34:R39))))","v":262},{"$f":"SUM(S34:S39)","v":0},{"$f":"SUM(T34:T39)","v":0}]
[]
[null,null,"Equipiers du club de :",null,null,{"$f":"Prepa!D17","v":"BREST IROISE"}]
[null,"Ind","Joueurs de la 1ère Journée",null,null,null,null,null,"Tour 1",null,"Ind","Joueurs de la 2ème Journée",null,null,null,null,null,"Tour 2","FOR ABN DIS","FOR ABN DIS"]
["A",{"$f":"IF(C45=\"\",\"\",VLOOKUP(C45,$AA$6:$AB$17,2,FALSE))","v":7.5},"LE DUFF Pierre",null,null,null,null,null,85,"A",{"$f":"IF(L45=\"\",\"\",VLOOKUP(L45,$AA$6:$AB$17,2,FALSE))","v":7.7},"LE MERDY Sébastien",null,null,null,null,null,99,{"$f":"IF(ISTEXT(I45),1,0)","v":0},{"$f":"IF(ISTEXT(R45),1,0)","v":0},null,null,null,null,null,null,null,null,null,null,null,null,null,null,null,null,null,null,null,null,null,null,null,null,null,null,null,null,null,null,null,null,null,null,null,null,null,null,null,null,null,null,null,null,null,null,null,null,null,null,null,null,null,null,null,null,null,null,4,4,9,3,8,4,6,5,3,4,3,3,5,4,6,4,5,5,null,null,null,null,null,null,null,null,6,5,6,3,4,6,6,6,3,7,6,4,7,9,7,5,4,5]
["B",9.3000000000000007,"TROMELIN Patrick",null,null,null,null,null,94,"B",8.6,"LE BIHAN Thomas",null,null,null,null,null,80,0,0,null,null,null,null,null,null,null,null,null,null,null,null,null,null,null,null,null,null,null,null,null,null,null,null,null,null,null,null,null,null,null,null,null,null,null,null,null,null,null,null,null,null,null,null,null,null,null,null,null,null,null,null,null,null,null,null,null,null,4,4,5,4,8,5,6,4,4,6,4,4,7,5,8,5,6,5,null,null,null,null,null,null,null,null,5,5,6,3,5,6,3,5,3,4,4,4,5,4,4,5,4,5]
["C",9.1999999999999993,"ROUE Ronan",null,null,null,null,null,91,"C",10.8,"BONNAUD Marc",null,null,null,null,null,88,0,0,null,null,null,null,null,null,null,null,null,null,null,null,null,null,null,null,null,null,null,null,null,null,null,null,null,null,null,null,null,null,null,null,null,null,null,null,null,null,null,null,null,null,null,null,null,null,null,null,null,null,null,null,null,null,null,null,null,null,6,4,5,4,5,9,6,5,3,6,5,4,6,4,4,4,4,7,null,null,null,null,null,null,null,null,4,5,7,4,5,6,6,5,5,5,5,3,4,6,5,4,3,6]
["D",9.8000000000000007,"DANTEC Arnaud",null,null,null,null,null,89,"D",9.3000000000000007,"TROMELIN Patrick",null,null,null,null,null,86,0,0,null,null,null,null,null,null,null,null,null,null,null,null,null,null,null,null,null,null,null,null,null,null,null,null,null,null,null,null,null,null,null,null,null,null,null,null,null,null,null,null,null,null,null,null,null,null,null,null,null,null,null,null,null,null,null,null,null,null,4,6,6,5,6,5,4,4,6,4,6,4,5,5,8,3,3,5,null,null,null,null,null,null,null,null,5,5,5,3,4,5,6,5,4,8,5,4,5,5,4,3,4,6]
["E",8.6,"LE BIHAN Thomas",null,null,null,null,null,90,"E","",null,null,null,null,null,null,null,0,0,null,null,null,null,null,null,null,null,null,null,null,null,null,null,null,null,null,null,null,null,null,null,null,null,null,null,null,null,null,null,null,null,null,null,null,null,null,null,null,null,null,null,null,null,null,null,null,null,null,null,null,null,null,null,null,null,null,null,4,5,5,4,5,6,4,7,3,4,4,4,6,5,6,9,4,5,null,null,null,null,null,null,null,null,4,4,5,6,4,6,5,6,4,7,6,3,7,5,5,5,3,6]
["F",7.7,"LE MERDY Sébastien",null,null,null,null,null,91,"F","",null,null,null,null,null,null,null,0,0,null,null,null,null,null,null,null,null,null,null,null,null,null,null,null,null,null,null,null,null,null,null,null,null,null,null,null,null,null,null,null,null,null,null,null,null,null,null,null,null,null,null,null,null,null,null,null,null,null,null,null,null,null,null,null,null,null,null,4,5,6,6,7,8,6,4,4,5,5,2,6,4,6,3,4,6]
[]
[{"$f":"IF(SUM(R44:R50)>0,\"Classement Final : \",\"Classement 1er jour : \")","v":"Classement Final : "},null,null,{"$f":"IF(COUNT(I45:I50)<6,\"\",VLOOKUP(F43,'Cl.J1+Gen.'!$AH$11:$BL$34,31,FALSE))","v":14},{"$f":"IF(SUM(R45:R50)>0,\"Total des 2 Tours: \",\"Total du Tour 1: \")","v":"Total des 2 Tours: "},null,{"$f":"IF(OR(I52=\"DIS\",R52=\"DIS\"),\"DIS\",I52+R52)","v":700},null,{"$f":"IF(S52>1,\"DIS\",IF(OR(S52=1,COUNTA(I45:I50)<6),SUM(I45:I50),SUM(I45:I50)-MAX(I45:I50)))","v":446},null,null,null,null,null,null,null,null,{"$f":"IF(T52>1,\"DIS\",IF(T52=1,SUM(R45:R50),IF(COUNT(R45:R50)<$R$2,SUM(R45:R50),SUM(R45:R50)-MAX(R45:R50))))","v":254},{"$f":"SUM(S45:S50)","v":0},{"$f":"SUM(T45:T50)","v":0}]
[]
[null,null,"Equipiers du club de :",null,null,{"$f":"Prepa!D19","v":"CAP MALO"}]
[null,"Ind","Joueurs de la 1ère Journée",null,null,null,null,null,"Tour 1",null,"Ind","Joueurs de la 2ème Journée",null,null,null,null,null,"Tour 2","FOR ABN DIS","FOR ABN DIS"]
["A",{"$f":"IF(C56=\"\",\"\",VLOOKUP(C56,$AC$6:$AD$17,2,FALSE))","v":7.7},"FROSTIN Pierre-Gilles",null,null,null,null,null,81,"A",{"$f":"IF(L56=\"\",\"\",VLOOKUP(L56,$AC$6:$AD$17,2,FALSE))","v":9.6},"BONNIOT Samuel",null,null,null,null,null,91,{"$f":"IF(ISTEXT(I56),1,0)","v":0},{"$f":"IF(ISTEXT(R56),1,0)","v":0},null,null,null,null,null,null,null,null,null,null,null,null,null,null,null,null,null,null,null,null,null,null,null,null,null,null,null,null,null,null,null,null,null,null,null,null,null,null,null,null,null,null,null,null,null,null,null,null,null,null,null,null,null,null,null,null,null,null,4,4,5,5,5,4,5,5,4,5,4,3,5,5,4,4,3,7,null,null,null,null,null,null,null,null,4,5,6,3,5,7,4,6,3,5,6,4,6,5,5,7,3,7]
["B",4.5,"LEBARBIER Bruno",null,null,null,null,null,78,"B",10.1,"CAMBARRAT Arnaud",null,null,null,null,null,94,0,0,null,null,null,null,null,null,null,null,null,null,null,null,null,null,null,null,null,null,null,null,null,null,null,null,null,null,null,null,null,null,null,null,null,null,null,null,null,null,null,null,null,null,null,null,null,null,null,null,null,null,null,null,null,null,null,null,null,null,3,5,5,3,5,4,4,5,4,5,5,3,5,4,4,4,4,6,null,null,null,null,null,null,null,null,5,6,7,4,6,6,6,6,3,5,5,3,6,5,4,7,4,6]
["C",4.8,"LASBLEIZ Yann",null,null,null,null,null,84,"C",7.6,"LE QUENQUIS Nicolas",null,null,null,null,null,91,0,0,null,null,null,null,null,null,null,null,null,null,null,null,null,null,null,null,null,null,null,null,null,null,null,null,null,null,null,null,null,null,null,null,null,null,null,null,null,null,null,null,null,null,null,null,null,null,null,null,null,null,null,null,null,null,null,null,null,null,4,6,5,5,5,6,4,5,3,5,4,4,6,4,4,4,4,6,null,null,null,null,null,null,null,null,5,6,6,2,6,7,5,6,5,5,5,5,5,5,6,3,3,6]
["D",1.5,"GOURIOU Yves",null,null,null,null,null,76,"D",1.5,"GOURIOU Yves",null,null,null,null,null,79,0,0,null,null,null,null,null,null,null,null,null,null,null,null,null,null,null,null,null,null,null,null,null,null,null,null,null,null,null,null,null,null,null,null,null,null,null,null,null,null,null,null,null,null,null,null,null,null,null,null,null,null,null,null,null,null,null,null,null,null,4,4,7,4,4,5,5,4,3,3,4,5,5,4,4,3,3,5,null,null,null,null,null,null,null,null,5,4,6,4,4,4,6,4,3,4,4,6,5,3,4,4,4,5]
["E",10.1,"CAMBARRAT Arnaud",null,null,null,null,null,99,"E","",null,null,null,null,null,null,null,0,0,null,null,null,null,null,null,null,null,null,null,null,null,null,null,null,null,null,null,null,null,null,null,null,null,null,null,null,null,null,null,null,null,null,null,null,null,null,null,null,null,null,null,null,null,null,null,null,null,null,null,null,null,null,null,null,null,null,null,5,6,10,4,4,8,5,4,2,5,5,2,5,4,16,5,4,5,null,null,null,null,null,null,null,null,0,0,0,0,0,0,0,0,0,0,0,0,0,0,0,0,0,0]
["F",9.6,"BONNIOT Samuel",null,null,null,null,null,93,"F","",null,null,null,null,null,null,null,0,0,null,null,null,null,null,null,null,null,null,null,null,null,null,null,null,null,null,null,null,null,null,null,null,null,null,null,null,null,null,null,null,null,null,null,null,null,null,null,null,null,null,null,null,null,null,null,null,null,null,null,null,null,null,null,null,null,null,null,3,5,5,4,6,6,4,5,3,6,6,7,9,5,4,4,5,6]
[]
[{"$f":"IF(SUM(R55:R61)>0,\"Classement Final : \",\"Classement 1er jour : \")","v":"Classement Final : "},null,null,{"$f":"IF(COUNT(I56:I61)<6,\"\",VLOOKUP(F54,'Cl.J1+Gen.'!$AH$11:$BL$34,31,FALSE))","v":9},{"$f":"IF(SUM(R56:R61)>0,\"Total des 2 Tours: \",\"Total du Tour 1: \")","v":"Total des 2 Tours: "},null,{"$f":"IF(OR(I63=\"DIS\",R63=\"DIS\"),\"DIS\",I63+R63)","v":673},null,{"$f":"IF(S63>1,\"DIS\",IF(OR(S63=1,COUNTA(I56:I61)<6),SUM(I56:I61),SUM(I56:I61)-MAX(I56:I61)))","v":412},null,null,null,null,null,null,null,null,{"$f":"IF(T63>1,\"DIS\",IF(T63=1,SUM(R56:R61),IF(COUNT(R56:R61)<$R$2,SUM(R56:R61),SUM(R56:R61)-MAX(R56:R61))))","v":261},{"$f":"SUM(S56:S61)","v":0},{"$f":"SUM(T56:T61)","v":0}]
[]
[null,null,"Equipiers du club de :",null,null,{"$f":"Prepa!D21","v":"CARANTEC"}]
[null,"Ind","Joueurs de la 1ère Journée",null,null,null,null,null,"Tour 1",null,"Ind","Joueurs de la 2ème Journée",null,null,null,null,null,"Tour 2","FOR ABN DIS","FOR ABN DIS"]
["A",{"$f":"IF(C67=\"\",\"\",VLOOKUP(C67,$AE$6:$AF$17,2,FALSE))","v":5.3},"ALLIOUX Jean-François",null,null,null,null,null,82,"A",{"$f":"IF(L67=\"\",\"\",VLOOKUP(L67,$AE$6:$AF$17,2,FALSE))","v":5.3},"ALLIOUX Jean-François",null,null,null,null,null,86,{"$f":"IF(ISTEXT(I67),1,0)","v":0},{"$f":"IF(ISTEXT(R67),1,0)","v":0},null,null,null,null,null,null,null,null,null,null,null,null,null,null,null,null,null,null,null,null,null,null,null,null,null,null,null,null,null,null,null,null,null,null,null,null,null,null,null,null,null,null,null,null,null,null,null,null,null,null,null,null,null,null,null,null,null,null,4,4,5,4,6,5,5,4,3,5,3,5,5,4,5,4,4,7,null,null,null,null,null,null,null,null,4,4,7,3,3,7,4,5,3,5,5,3,6,3,5,7,3,9]
["B",4.4000000000000004,"LECAPITAINE Nicolas",null,null,null,null,null,80,"B",8.4,"PHILIPPE Félix",null,null,null,null,null,75,0,0,null,null,null,null,null,null,null,null,null,null,null,null,null,null,null,null,null,null,null,null,null,null,null,null,null,null,null,null,null,null,null,null,null,null,null,null,null,null,null,null,null,null,null,null,null,null,null,null,null,null,null,null,null,null,null,null,null,null,4,5,6,3,5,5,5,4,3,6,5,4,5,4,4,3,3,6,null,null,null,null,null,null,null,null,4,4,4,2,5,6,4,5,4,3,3,3,6,5,5,4,3,5]
["C",3.8,"MOSTINI Julien",null,null,null,null,null,93,"C",4.5999999999999996,"BOUTTIER Nicolas",null,null,null,null,null,83,0,0,null,null,null,null,null,null,null,null,null,null,null,null,null,null,null,null,null,null,null,null,null,null,null,null,null,null,null,null,null,null,null,null,null,null,null,null,null,null,null,null,null,null,null,null,null,null,null,null,null,null,null,null,null,null,null,null,null,null,4,4,5,4,6,7,5,5,4,6,5,5,6,5,6,5,4,7,null,null,null,null,null,null,null,null,5,5,5,3,4,6,5,3,4,5,5,4,6,6,4,5,3,5]
["D",8.4,"PHILIPPE Félix",null,null,null,null,null,80,"D",3.3,"LE BONHOMME Ronan",null,null,null,null,null,84,0,0,null,null,null,null,null,null,null,null,null,null,null,null,null,null,null,null,null,null,null,null,null,null,null,null,null,null,null,null,null,null,null,null,null,null,null,null,null,null,null,null,null,null,null,null,null,null,null,null,null,null,null,null,null,null,null,null,null,null,3,4,4,4,5,6,4,3,4,4,5,4,5,5,4,7,3,6,null,null,null,null,null,null,null,null,5,5,6,5,5,5,5,7,5,4,4,3,4,4,3,4,4,6]
["E",4.5999999999999996,"BOUTTIER Nicolas",null,null,null,null,null,76,"E","",null,null,null,null,null,null,null,0,0,null,null,null,null,null,null,null,null,null,null,null,null,null,null,null,null,null,null,null,null,null,null,null,null,null,null,null,null,null,null,null,null,null,null,null,null,null,null,null,null,null,null,null,null,null,null,null,null,null,null,null,null,null,null,null,null,null,null,3,4,6,3,5,5,5,4,3,5,5,4,5,4,4,3,3,5,null,null,null,null,null,null,null,null,4,4,6,4,4,6,5,4,3,4,4,3,5,4,4,4,4,6]
["F",3.3,"LE BONHOMME Ronan",null,null,null,null,null,81,"F","",null,null,null,null,null,null,null,0,0,null,null,null,null,null,null,null,null,null,null,null,null,null,null,null,null,null,null,null,null,null,null,null,null,null,null,null,null,null,null,null,null,null,null,null,null,null,null,null,null,null,null,null,null,null,null,null,null,null,null,null,null,null,null,null,null,null,null,5,5,6,3,5,5,4,4,3,4,4,4,7,4,4,4,4,6]
[]
[{"$f":"IF(SUM(R66:R72)>0,\"Classement Final : \",\"Classement 1er jour : \")","v":"Classement Final : "},null,null,{"$f":"IF(COUNT(I67:I72)<6,\"\",VLOOKUP(F65,'Cl.J1+Gen.'!$AH$11:$BL$34,31,FALSE))","v":5},{"$f":"IF(SUM(R67:R72)>0,\"Total des 2 Tours: \",\"Total du Tour 1: \")","v":"Total des 2 Tours: "},null,{"$f":"IF(OR(I74=\"DIS\",R74=\"DIS\"),\"DIS\",I74+R74)","v":641},null,{"$f":"IF(S74>1,\"DIS\",IF(OR(S74=1,COUNTA(I67:I72)<6),SUM(I67:I72),SUM(I67:I72)-MAX(I67:I72)))","v":399},null,null,null,null,null,null,null,null,{"$f":"IF(T74>1,\"DIS\",IF(T74=1,SUM(R67:R72),IF(COUNT(R67:R72)<$R$2,SUM(R67:R72),SUM(R67:R72)-MAX(R67:R72))))","v":242},{"$f":"SUM(S67:S72)","v":0},{"$f":"SUM(T67:T72)","v":0}]
[]
[null,null,"Equipiers du club de :",null,null,{"$f":"Prepa!D23","v":"CH. AUGERVILLE"}]
[null,"Ind","Joueurs de la 1ère Journée",null,null,null,null,null,"Tour 1",null,"Ind","Joueurs de la 2ème Journée",null,null,null,null,null,"Tour 2","FOR ABN DIS","FOR ABN DIS"]
["A",{"$f":"IF(C78=\"\",\"\",VLOOKUP(C78,$AG$6:$AH$17,2,FALSE))","v":6.5},"GAUCHET Thomas",null,null,null,null,null,90,"A",{"$f":"IF(L78=\"\",\"\",VLOOKUP(L78,$AG$6:$AH$17,2,FALSE))","v":11.7},"DEVILLIERS Pierre",null,null,null,null,null,102,{"$f":"IF(ISTEXT(I78),1,0)","v":0},{"$f":"IF(ISTEXT(R78),1,0)","v":0},null,null,null,null,null,null,null,null,null,null,null,null,null,null,null,null,null,null,null,null,null,null,null,null,null,null,null,null,null,null,null,null,null,null,null,null,null,null,null,null,null,null,null,null,null,null,null,null,null,null,null,null,null,null,null,null,null,null,4,6,7,5,5,5,6,5,4,5,5,3,4,5,5,5,5,6,null,null,null,null,null,null,null,null,5,6,7,3,5,7,6,5,3,7,6,8,6,5,6,4,6,7]
["B",9.6,"LAURENT Emmanuel",null,null,null,null,null,84,"B",9.6,"LAURENT Emmanuel",null,null,null,null,null,103,0,0,null,null,null,null,null,null,null,null,null,null,null,null,null,null,null,null,null,null,null,null,null,null,null,null,null,null,null,null,null,null,null,null,null,null,null,null,null,null,null,null,null,null,null,null,null,null,null,null,null,null,null,null,null,null,null,null,null,null,3,5,8,3,5,5,5,5,3,4,6,3,5,6,4,5,3,6,null,null,null,null,null,null,null,null,5,6,6,4,5,5,6,7,3,5,5,6,13,5,5,5,5,7]
["C",8.3000000000000007,"LECONARDEL Jérôme",null,null,null,null,null,83,"C",11.7,"LELONG Alexis",null,null,null,null,null,84,0,0,null,null,null,null,null,null,null,null,null,null,null,null,null,null,null,null,null,null,null,null,null,null,null,null,null,null,null,null,null,null,null,null,null,null,null,null,null,null,null,null,null,null,null,null,null,null,null,null,null,null,null,null,null,null,null,null,null,null,5,5,5,2,5,6,6,4,4,5,4,3,5,6,5,4,4,5,null,null,null,null,null,null,null,null,5,4,4,5,5,6,5,3,4,6,5,3,6,6,3,4,4,6]
["D",11.7,"LELONG Alexis",null,null,null,null,null,83,"D",4.8,"PERICAUD Olivier",null,null,null,null,null,80,0,0,null,null,null,null,null,null,null,null,null,null,null,null,null,null,null,null,null,null,null,null,null,null,null,null,null,null,null,null,null,null,null,null,null,null,null,null,null,null,null,null,null,null,null,null,null,null,null,null,null,null,null,null,null,null,null,null,null,null,6,5,5,4,4,4,5,6,3,5,5,4,5,4,5,3,4,6,null,null,null,null,null,null,null,null,4,5,6,3,5,5,4,4,4,4,4,4,5,4,5,6,3,5]
["E",8.1,"MAUGRION Benoit",null,null,null,null,null,89,"E","",null,null,null,null,null,null,null,0,0,null,null,null,null,null,null,null,null,null,null,null,null,null,null,null,null,null,null,null,null,null,null,null,null,null,null,null,null,null,null,null,null,null,null,null,null,null,null,null,null,null,null,null,null,null,null,null,null,null,null,null,null,null,null,null,null,null,null,5,4,7,3,4,7,8,4,3,5,5,3,5,4,6,7,3,6,null,null,null,null,null,null,null,null,4,5,6,3,5,7,5,6,4,5,4,3,6,4,6,4,4,7]
["F",4.8,"PERICAUD Olivier",null,null,null,null,null,82,"F","",null,null,null,null,null,null,null,0,0,null,null,null,null,null,null,null,null,null,null,null,null,null,null,null,null,null,null,null,null,null,null,null,null,null,null,null,null,null,null,null,null,null,null,null,null,null,null,null,null,null,null,null,null,null,null,null,null,null,null,null,null,null,null,null,null,null,null,5,4,5,4,7,6,4,4,3,5,5,3,5,3,5,4,4,6]
[]
[{"$f":"IF(SUM(R77:R83)>0,\"Classement Final : \",\"Classement 1er jour : \")","v":"Classement Final : "},null,null,{"$f":"IF(COUNT(I78:I83)<6,\"\",VLOOKUP(F76,'Cl.J1+Gen.'!$AH$11:$BL$34,31,FALSE))","v":13},{"$f":"IF(SUM(R78:R83)>0,\"Total des 2 Tours: \",\"Total du Tour 1: \")","v":"Total des 2 Tours: "},null,{"$f":"IF(OR(I85=\"DIS\",R85=\"DIS\"),\"DIS\",I85+R85)","v":687},null,{"$f":"IF(S85>1,\"DIS\",IF(OR(S85=1,COUNTA(I78:I83)<6),SUM(I78:I83),SUM(I78:I83)-MAX(I78:I83)))","v":421},null,null,null,null,null,null,null,null,{"$f":"IF(T85>1,\"DIS\",IF(T85=1,SUM(R78:R83),IF(COUNT(R78:R83)<$R$2,SUM(R78:R83),SUM(R78:R83)-MAX(R78:R83))))","v":266},{"$f":"SUM(S78:S83)","v":0},{"$f":"SUM(T78:T83)","v":0}]
[]
[null,null,"Equipiers du club de :",null,null,{"$f":"Prepa!D25","v":"CHARTRES FONTENAY"}]
[null,"Ind","Joueurs de la 1ère Journée",null,null,null,null,null,"Tour 1",null,"Ind","Joueurs de la 2ème Journée",null,null,null,null,null,"Tour 2","FOR ABN DIS","FOR ABN DIS"]
["A",{"$f":"IF(C89=\"\",\"\",VLOOKUP(C89,$AI$6:$AJ$17,2,FALSE))","v":10.5},"REBOULET Sébastien",null,null,null,null,null,95,"A",{"$f":"IF(L89=\"\",\"\",VLOOKUP(L89,$AI$6:$AJ$17,2,FALSE))","v":15},"DOUCET Benoit",null,null,null,null,null,107,{"$f":"IF(ISTEXT(I89),1,0)","v":0},{"$f":"IF(ISTEXT(R89),1,0)","v":0},null,null,null,null,null,null,null,null,null,null,null,null,null,null,null,null,null,null,null,null,null,null,null,null,null,null,null,null,null,null,null,null,null,null,null,null,null,null,null,null,null,null,null,null,null,null,null,null,null,null,null,null,null,null,null,null,null,null,5,4,5,4,8,6,5,5,3,7,6,5,6,5,8,4,3,6,null,null,null,null,null,null,null,null,6,6,7,3,8,7,5,5,4,7,6,5,7,7,9,6,4,5]
["B",5.9,"MONTOYA Leonardo",null,null,null,null,null,82,"B",10.4,"QUIVIGER Jean-Philippe",null,null,null,null,null,89,0,0,null,null,null,null,null,null,null,null,null,null,null,null,null,null,null,null,null,null,null,null,null,null,null,null,null,null,null,null,null,null,null,null,null,null,null,null,null,null,null,null,null,null,null,null,null,null,null,null,null,null,null,null,null,null,null,null,null,null,5,4,3,4,4,5,5,6,4,5,5,3,6,4,3,4,6,6,null,null,null,null,null,null,null,null,4,5,6,3,5,5,5,4,5,6,6,3,6,6,4,6,4,6]
["C",13.3,"TARIANT Matthieu",null,null,null,null,null,101,"C",5.9,"MONTOYA Leonardo",null,null,null,null,null,87,0,0,null,null,null,null,null,null,null,null,null,null,null,null,null,null,null,null,null,null,null,null,null,null,null,null,null,null,null,null,null,null,null,null,null,null,null,null,null,null,null,null,null,null,null,null,null,null,null,null,null,null,null,null,null,null,null,null,null,null,7,5,7,3,5,10,4,5,3,6,4,6,7,4,7,6,5,7,null,null,null,null,null,null,null,null,3,4,8,4,4,7,4,5,4,7,5,3,6,4,6,4,3,6]
["D",11.8,"OBLIQUE Mathieu",null,null,null,null,null,89,"D",11.8,"OBLIQUE Mathieu",null,null,null,null,null,88,0,0,null,null,null,null,null,null,null,null,null,null,null,null,null,null,null,null,null,null,null,null,null,null,null,null,null,null,null,null,null,null,null,null,null,null,null,null,null,null,null,null,null,null,null,null,null,null,null,null,null,null,null,null,null,null,null,null,null,null,5,5,7,4,4,7,4,5,4,4,5,4,5,5,3,5,5,8,null,null,null,null,null,null,null,null,4,4,6,3,5,5,5,5,5,4,5,5,5,4,9,4,4,6]
["E",10.4,"QUIVIGER Jean-Philippe",null,null,null,null,null,87,"E","",null,null,null,null,null,null,null,0,0,null,null,null,null,null,null,null,null,null,null,null,null,null,null,null,null,null,null,null,null,null,null,null,null,null,null,null,null,null,null,null,null,null,null,null,null,null,null,null,null,null,null,null,null,null,null,null,null,null,null,null,null,null,null,null,null,null,null,4,5,7,3,5,6,5,5,3,4,5,5,5,5,4,5,5,6,null,null,null,null,null,null,null,null,5,5,5,4,5,5,5,5,4,4,7,4,6,5,4,6,4,6]
["F",11.4,"BIZARD Philippe",null,null,null,null,null,83,"F","",null,null,null,null,null,null,null,0,0,null,null,null,null,null,null,null,null,null,null,null,null,null,null,null,null,null,null,null,null,null,null,null,null,null,null,null,null,null,null,null,null,null,null,null,null,null,null,null,null,null,null,null,null,null,null,null,null,null,null,null,null,null,null,null,null,null,null,5,6,6,4,4,6,5,5,3,5,5,3,4,6,4,3,3,6]
[]
[{"$f":"IF(SUM(R88:R94)>0,\"Classement Final : \",\"Classement 1er jour : \")","v":"Classement Final : "},null,null,{"$f":"IF(COUNT(I89:I94)<6,\"\",VLOOKUP(F87,'Cl.J1+Gen.'!$AH$11:$BL$34,31,FALSE))","v":15},{"$f":"IF(SUM(R89:R94)>0,\"Total des 2 Tours: \",\"Total du Tour 1: \")","v":"Total des 2 Tours: "},null,{"$f":"IF(OR(I96=\"DIS\",R96=\"DIS\"),\"DIS\",I96+R96)","v":700},null,{"$f":"IF(S96>1,\"DIS\",IF(OR(S96=1,COUNTA(I89:I94)<6),SUM(I89:I94),SUM(I89:I94)-MAX(I89:I94)))","v":436},null,null,null,null,null,null,null,null,{"$f":"IF(T96>1,\"DIS\",IF(T96=1,SUM(R89:R94),IF(COUNT(R89:R94)<$R$2,SUM(R89:R94),SUM(R89:R94)-MAX(R89:R94))))","v":264},{"$f":"SUM(S89:S94)","v":0},{"$f":"SUM(T89:T94)","v":0}]
[]
[null,null,"Equipiers du club de :",null,null,{"$f":"Prepa!D27","v":"GLORIETTE"}]
[null,"Ind","Joueurs de la 1ère Journée",null,null,null,null,null,"Tour 1",null,"Ind","Joueurs de la 2ème Journée",null,null,null,null,null,"Tour 2","FOR ABN DIS","FOR ABN DIS"]
["A",{"$f":"IF(C100=\"\",\"\",VLOOKUP(C100,$AK$6:$AL$17,2,FALSE))","v":5.3},"CHEVRIER Bertrand",null,null,null,null,null,77,"A",{"$f":"IF(L100=\"\",\"\",VLOOKUP(L100,$AK$6:$AL$17,2,FALSE))","v":21.6},"BROHAN Philippe",null,null,null,null,null,109,{"$f":"IF(ISTEXT(I100),1,0)","v":0},{"$f":"IF(ISTEXT(R100),1,0)","v":0},null,null,null,null,null,null,null,null,null,null,null,null,null,null,null,null,null,null,null,null,null,null,null,null,null,null,null,null,null,null,null,null,null,null,null,null,null,null,null,null,null,null,null,null,null,null,null,null,null,null,null,null,null,null,null,null,null,null,5,3,5,4,5,5,4,4,3,5,5,4,3,6,3,4,4,5,null,null,null,null,null,null,null,null,5,5,6,4,7,7,5,5,4,5,5,4,7,8,13,6,5,8]
["B",12.8,"ROGER Jeremie",null,null,null,null,null,101,"B",3.9,"CARETTE Benjamin",null,null,null,null,null,76,0,0,null,null,null,null,null,null,null,null,null,null,null,null,null,null,null,null,null,null,null,null,null,null,null,null,null,null,null,null,null,null,null,null,null,null,null,null,null,null,null,null,null,null,null,null,null,null,null,null,null,null,null,null,null,null,null,null,null,null,5,5,7,4,4,6,5,3,3,7,5,8,6,4,11,4,5,9,null,null,null,null,null,null,null,null,4,4,4,3,4,6,3,5,3,4,4,4,6,3,4,6,3,6]
["C",3.9,"CARETTE Benjamin",null,null,null,null,null,81,"C",13.2,"RAYNAUD Laurent",null,null,null,null,null,98,0,0,null,null,null,null,null,null,null,null,null,null,null,null,null,null,null,null,null,null,null,null,null,null,null,null,null,null,null,null,null,null,null,null,null,null,null,null,null,null,null,null,null,null,null,null,null,null,null,null,null,null,null,null,null,null,null,null,null,null,5,5,6,4,4,7,5,4,3,4,4,3,6,4,4,4,3,6,null,null,null,null,null,null,null,null,6,5,7,4,6,7,5,5,3,5,6,4,5,6,6,6,6,6]
["D",17.8,"DONADIO Jerome",null,null,null,null,null,100,"D",5.3,"CHEVRIER Bertrand",null,null,null,null,null,87,0,0,null,null,null,null,null,null,null,null,null,null,null,null,null,null,null,null,null,null,null,null,null,null,null,null,null,null,null,null,null,null,null,null,null,null,null,null,null,null,null,null,null,null,null,null,null,null,null,null,null,null,null,null,null,null,null,null,null,null,4,5,5,4,6,6,7,6,7,6,6,3,5,5,9,5,4,7,null,null,null,null,null,null,null,null,4,4,6,3,6,6,4,4,3,4,5,5,5,5,9,5,3,6]
["E",13.2,"RAYNAUD Laurent",null,null,null,null,null,95,"E","",null,null,null,null,null,null,null,0,0,null,null,null,null,null,null,null,null,null,null,null,null,null,null,null,null,null,null,null,null,null,null,null,null,null,null,null,null,null,null,null,null,null,null,null,null,null,null,null,null,null,null,null,null,null,null,null,null,null,null,null,null,null,null,null,null,null,null,7,5,7,4,5,5,6,5,4,5,5,3,6,6,6,5,4,7,null,null,null,null,null,null,null,null,7,4,5,4,4,5,5,5,3,4,4,8,5,4,7,4,3,6]
["F",21.6,"BROHAN Philippe",null,null,null,null,null,100,"F","",null,null,null,null,null,null,null,0,0,null,null,null,null,null,null,null,null,null,null,null,null,null,null,null,null,null,null,null,null,null,null,null,null,null,null,null,null,null,null,null,null,null,null,null,null,null,null,null,null,null,null,null,null,null,null,null,null,null,null,null,null,null,null,null,null,null,null,5,7,8,3,5,6,5,5,6,5,5,4,6,5,8,5,5,7]
[]
[{"$f":"IF(SUM(R99:R105)>0,\"Classement Final : \",\"Classement 1er jour : \")","v":"Classement Final : "},null,null,{"$f":"IF(COUNT(I100:I105)<6,\"\",VLOOKUP(F98,'Cl.J1+Gen.'!$AH$11:$BL$34,31,FALSE))","v":18},{"$f":"IF(SUM(R100:R105)>0,\"Total des 2 Tours: \",\"Total du Tour 1: \")","v":"Total des 2 Tours: "},null,{"$f":"IF(OR(I107=\"DIS\",R107=\"DIS\"),\"DIS\",I107+R107)","v":714},null,{"$f":"IF(S107>1,\"DIS\",IF(OR(S107=1,COUNTA(I100:I105)<6),SUM(I100:I105),SUM(I100:I105)-MAX(I100:I105)))","v":453},null,null,null,null,null,null,null,null,{"$f":"IF(T107>1,\"DIS\",IF(T107=1,SUM(R100:R105),IF(COUNT(R100:R105)<$R$2,SUM(R100:R105),SUM(R100:R105)-MAX(R100:R105))))","v":261},{"$f":"SUM(S100:S105)","v":0},{"$f":"SUM(T100:T105)","v":0}]
[]
[null,null,"Equipiers du club de :",null,null,{"$f":"Prepa!D29","v":"GUERANDE"}]
[null,"Ind","Joueurs de la 1ère Journée",null,null,null,null,null,"Tour 1",null,"Ind","Joueurs de la 2ème Journée",null,null,null,null,null,"Tour 2","FOR ABN DIS","FOR ABN DIS"]
["A",{"$f":"IF(C111=\"\",\"\",VLOOKUP(C111,$AM$6:$AN$17,2,FALSE))","v":4.2},"GENTIL Florian",null,null,null,null,null,79,"A",{"$f":"IF(L111=\"\",\"\",VLOOKUP(L111,$AM$6:$AN$17,2,FALSE))","v":0.2},"LEBRETON Eric",null,null,null,null,null,74,{"$f":"IF(ISTEXT(I111),1,0)","v":0},{"$f":"IF(ISTEXT(R111),1,0)","v":0},null,null,null,null,null,null,null,null,null,null,null,null,null,null,null,null,null,null,null,null,null,null,null,null,null,null,null,null,null,null,null,null,null,null,null,null,null,null,null,null,null,null,null,null,null,null,null,null,null,null,null,null,null,null,null,null,null,null,3,5,5,4,4,7,5,4,3,5,4,3,5,4,4,4,3,7,null,null,null,null,null,null,null,null,5,4,5,3,4,5,5,4,4,4,4,3,4,4,5,4,2,5]
["B",0.8,"METAYER Benoist",null,null,null,null,null,70,"B",4.2,"GENTIL Florian",null,null,null,null,null,81,0,0,null,null,null,null,null,null,null,null,null,null,null,null,null,null,null,null,null,null,null,null,null,null,null,null,null,null,null,null,null,null,null,null,null,null,null,null,null,null,null,null,null,null,null,null,null,null,null,null,null,null,null,null,null,null,null,null,null,null,4,4,4,3,4,6,4,4,3,4,4,3,5,4,3,4,3,4,null,null,null,null,null,null,null,null,4,4,5,4,4,5,6,6,3,4,4,4,6,7,3,3,3,6]
["C",3.2,"VLETTER Morne",null,null,null,null,null,74,"C",0.8,"METAYER Benoist",null,null,null,null,null,73,0,0,null,null,null,null,null,null,null,null,null,null,null,null,null,null,null,null,null,null,null,null,null,null,null,null,null,null,null,null,null,null,null,null,null,null,null,null,null,null,null,null,null,null,null,null,null,null,null,null,null,null,null,null,null,null,null,null,null,null,6,4,4,3,4,5,4,5,4,4,4,3,5,4,4,4,3,4,null,null,null,null,null,null,null,null,4,4,5,3,4,6,4,5,3,4,4,3,5,4,4,4,3,4]
["D",6.1,"ROHEL Benjamin",null,null,null,null,null,82,"D",5.2,"BAYLON Alexandre",null,null,null,null,null,82,0,0,null,null,null,null,null,null,null,null,null,null,null,null,null,null,null,null,null,null,null,null,null,null,null,null,null,null,null,null,null,null,null,null,null,null,null,null,null,null,null,null,null,null,null,null,null,null,null,null,null,null,null,null,null,null,null,null,null,null,5,5,4,5,6,5,4,4,4,5,5,3,4,4,5,4,4,6,null,null,null,null,null,null,null,null,4,5,6,3,4,6,4,6,3,5,5,3,6,5,4,4,4,5]
["E",0.2,"LEBRETON Eric",null,null,null,null,null,80,"E","",null,null,null,null,null,null,null,0,0,null,null,null,null,null,null,null,null,null,null,null,null,null,null,null,null,null,null,null,null,null,null,null,null,null,null,null,null,null,null,null,null,null,null,null,null,null,null,null,null,null,null,null,null,null,null,null,null,null,null,null,null,null,null,null,null,null,null,5,4,6,3,4,7,4,5,3,3,6,3,5,4,5,5,3,5,null,null,null,null,null,null,null,null,3,4,5,4,4,5,4,4,3,5,4,4,4,4,3,3,3,5]
["F",5.0999999999999996,"GAUVIN Ronan",null,null,null,null,null,79,"F","",null,null,null,null,null,null,null,0,0,null,null,null,null,null,null,null,null,null,null,null,null,null,null,null,null,null,null,null,null,null,null,null,null,null,null,null,null,null,null,null,null,null,null,null,null,null,null,null,null,null,null,null,null,null,null,null,null,null,null,null,null,null,null,null,null,null,null,5,4,6,4,4,6,5,4,3,4,4,4,5,4,5,4,2,6]
[]
[{"$f":"IF(SUM(R110:R116)>0,\"Classement Final : \",\"Classement 1er jour : \")","v":"Classement Final : "},null,null,{"$f":"IF(COUNT(I111:I116)<6,\"\",VLOOKUP(F109,'Cl.J1+Gen.'!$AH$11:$BL$34,31,FALSE))","v":1},{"$f":"IF(SUM(R111:R116)>0,\"Total des 2 Tours: \",\"Total du Tour 1: \")","v":"Total des 2 Tours: "},null,{"$f":"IF(OR(I118=\"DIS\",R118=\"DIS\"),\"DIS\",I118+R118)","v":610},null,{"$f":"IF(S118>1,\"DIS\",IF(OR(S118=1,COUNTA(I111:I116)<6),SUM(I111:I116),SUM(I111:I116)-MAX(I111:I116)))","v":382},null,null,null,null,null,null,null,null,{"$f":"IF(T118>1,\"DIS\",IF(T118=1,SUM(R111:R116),IF(COUNT(R111:R116)<$R$2,SUM(R111:R116),SUM(R111:R116)-MAX(R111:R116))))","v":228},{"$f":"SUM(S111:S116)","v":0},{"$f":"SUM(T111:T116)","v":0}]
[]
[null,null,"Equipiers du club de :",null,null,{"$f":"Prepa!D31","v":"ILE D'OR"}]
[null,"Ind","Joueurs de la 1ère Journée",null,null,null,null,null,"Tour 1",null,"Ind","Joueurs de la 2ème Journée",null,null,null,null,null,"Tour 2","FOR ABN DIS","FOR ABN DIS"]
["A",{"$f":"IF(C122=\"\",\"\",VLOOKUP(C122,$AO$6:$AP$17,2,FALSE))","v":8.1},"CHAILLOU Cyrille",null,null,null,null,null,91,"A",{"$f":"IF(L122=\"\",\"\",VLOOKUP(L122,$AO$6:$AP$17,2,FALSE))","v":6.4},"TEITGEN Antoine",null,null,null,null,null,88,{"$f":"IF(ISTEXT(I122),1,0)","v":0},{"$f":"IF(ISTEXT(R122),1,0)","v":0},null,null,null,null,null,null,null,null,null,null,null,null,null,null,null,null,null,null,null,null,null,null,null,null,null,null,null,null,null,null,null,null,null,null,null,null,null,null,null,null,null,null,null,null,null,null,null,null,null,null,null,null,null,null,null,null,null,null,4,6,6,4,6,6,5,5,3,5,5,6,5,5,3,6,5,6,null,null,null,null,null,null,null,null,5,5,5,4,6,7,4,5,4,4,4,8,5,4,3,5,4,6]
["B",-0.3,"KLEIN Rodolphe",null,null,null,null,null,90,"B",6,"NOMBLOT Antoine",null,null,null,null,null,83,0,0,null,null,null,null,null,null,null,null,null,null,null,null,null,null,null,null,null,null,null,null,null,null,null,null,null,null,null,null,null,null,null,null,null,null,null,null,null,null,null,null,null,null,null,null,null,null,null,null,null,null,null,null,null,null,null,null,null,null,6,4,4,7,10,6,3,4,4,6,4,4,7,4,4,4,3,6,null,null,null,null,null,null,null,null,4,4,4,4,4,6,4,6,3,4,4,3,5,4,9,5,3,7]
["C",-2.1,"LUCAS Benoît",null,null,null,null,null,76,"C",-2.2000000000000002,"LUCAS Olivier",null,null,null,null,null,76,0,0,null,null,null,null,null,null,null,null,null,null,null,null,null,null,null,null,null,null,null,null,null,null,null,null,null,null,null,null,null,null,null,null,null,null,null,null,null,null,null,null,null,null,null,null,null,null,null,null,null,null,null,null,null,null,null,null,null,null,4,4,6,4,5,5,7,4,3,4,3,3,5,3,4,4,3,5,null,null,null,null,null,null,null,null,3,4,4,4,4,5,5,5,3,7,4,3,3,4,5,4,3,6]
["D",-2.2000000000000002,"LUCAS Olivier",null,null,null,null,null,75,"D",-2.1,"LUCAS Benoît",null,null,null,null,null,73,0,0,null,null,null,null,null,null,null,null,null,null,null,null,null,null,null,null,null,null,null,null,null,null,null,null,null,null,null,null,null,null,null,null,null,null,null,null,null,null,null,null,null,null,null,null,null,null,null,null,null,null,null,null,null,null,null,null,null,null,3,4,5,5,4,5,4,4,3,4,5,5,4,4,4,4,3,5,null,null,null,null,null,null,null,null,4,4,4,4,5,5,5,4,3,5,5,2,4,4,4,4,3,4]
["E",6.4,"TEITGEN Antoine",null,null,null,null,null,91,"E","",null,null,null,null,null,null,null,0,0,null,null,null,null,null,null,null,null,null,null,null,null,null,null,null,null,null,null,null,null,null,null,null,null,null,null,null,null,null,null,null,null,null,null,null,null,null,null,null,null,null,null,null,null,null,null,null,null,null,null,null,null,null,null,null,null,null,null,4,4,6,4,5,6,4,6,4,6,4,7,5,4,4,5,5,8,null,null,null,null,null,null,null,null,4,5,5,3,4,6,6,4,3,5,4,5,6,5,4,5,3,4]
["F",6,"NOMBLOT Antoine",null,null,null,null,null,75,"F","",null,null,null,null,null,null,null,0,0,null,null,null,null,null,null,null,null,null,null,null,null,null,null,null,null,null,null,null,null,null,null,null,null,null,null,null,null,null,null,null,null,null,null,null,null,null,null,null,null,null,null,null,null,null,null,null,null,null,null,null,null,null,null,null,null,null,null,4,4,5,3,4,5,4,4,4,4,4,2,5,4,5,5,3,6]
[]
[{"$f":"IF(SUM(R121:R127)>0,\"Classement Final : \",\"Classement 1er jour : \")","v":"Classement Final : "},null,null,{"$f":"IF(COUNT(I122:I127)<6,\"\",VLOOKUP(F120,'Cl.J1+Gen.'!$AH$11:$BL$34,31,FALSE))","v":4},{"$f":"IF(SUM(R122:R127)>0,\"Total des 2 Tours: \",\"Total du Tour 1: \")","v":"Total des 2 Tours: "},null,{"$f":"IF(OR(I129=\"DIS\",R129=\"DIS\"),\"DIS\",I129+R129)","v":639},null,{"$f":"IF(S129>1,\"DIS\",IF(OR(S129=1,COUNTA(I122:I127)<6),SUM(I122:I127),SUM(I122:I127)-MAX(I122:I127)))","v":407},null,null,null,null,null,null,null,null,{"$f":"IF(T129>1,\"DIS\",IF(T129=1,SUM(R122:R127),IF(COUNT(R122:R127)<$R$2,SUM(R122:R127),SUM(R122:R127)-MAX(R122:R127))))","v":232},{"$f":"SUM(S122:S127)","v":0},{"$f":"SUM(T122:T127)","v":0}]
[]
[null,null,"Equipiers du club de :",null,null,{"$f":"Prepa!D33","v":"LAC AU DUC"}]
[null,"Ind","Joueurs de la 1ère Journée",null,null,null,null,null,"Tour 1",null,"Ind","Joueurs de la 2ème Journée",null,null,null,null,null,"Tour 2","FOR ABN DIS","FOR ABN DIS"]
["A",{"$f":"IF(C133=\"\",\"\",VLOOKUP(C133,$AQ$6:$AR$17,2,FALSE))","v":5},"URVOIS Patrice",null,null,null,null,null,91,"A",{"$f":"IF(L133=\"\",\"\",VLOOKUP(L133,$AQ$6:$AR$17,2,FALSE))","v":9.5},"COUDE Jerome",null,null,null,null,null,99,{"$f":"IF(ISTEXT(I133),1,0)","v":0},{"$f":"IF(ISTEXT(R133),1,0)","v":0},null,null,null,null,null,null,null,null,null,null,null,null,null,null,null,null,null,null,null,null,null,null,null,null,null,null,null,null,null,null,null,null,null,null,null,null,null,null,null,null,null,null,null,null,null,null,null,null,null,null,null,null,null,null,null,null,null,null,9,4,5,5,5,7,5,7,3,5,4,3,5,5,4,5,4,6,null,null,null,null,null,null,null,null,5,6,7,5,8,7,4,5,5,4,6,5,6,5,5,6,4,6]
["B",5.4,"BOUJU Pierre",null,null,null,null,null,86,"B",5.7,"CAPELLE Thomas",null,null,null,null,null,104,0,0,null,null,null,null,null,null,null,null,null,null,null,null,null,null,null,null,null,null,null,null,null,null,null,null,null,null,null,null,null,null,null,null,null,null,null,null,null,null,null,null,null,null,null,null,null,null,null,null,null,null,null,null,null,null,null,null,null,null,4,5,5,4,5,5,5,4,6,5,5,4,6,4,6,4,3,6,null,null,null,null,null,null,null,null,5,9,5,3,6,7,5,6,4,4,8,14,5,4,5,4,4,6]
["C",3.6,"TURMEAU Cédric",null,null,null,null,null,78,"C",5.4,"BOUJU Pierre",null,null,null,null,null,80,0,0,null,null,null,null,null,null,null,null,null,null,null,null,null,null,null,null,null,null,null,null,null,null,null,null,null,null,null,null,null,null,null,null,null,null,null,null,null,null,null,null,null,null,null,null,null,null,null,null,null,null,null,null,null,null,null,null,null,null,4,5,5,3,5,6,4,5,3,4,5,4,6,4,4,4,2,5,null,null,null,null,null,null,null,null,4,3,6,3,5,5,4,5,3,4,5,3,7,3,6,4,4,6]
["D",9.5,"COUDE Jerome",null,null,null,null,null,81,"D",3.6,"TURMEAU Cédric",null,null,null,null,null,78,0,0,null,null,null,null,null,null,null,null,null,null,null,null,null,null,null,null,null,null,null,null,null,null,null,null,null,null,null,null,null,null,null,null,null,null,null,null,null,null,null,null,null,null,null,null,null,null,null,null,null,null,null,null,null,null,null,null,null,null,3,5,5,5,4,7,4,4,3,4,6,4,5,5,3,4,4,6,null,null,null,null,null,null,null,null,5,5,6,4,4,5,4,3,3,5,4,3,5,4,4,4,4,6]
["E",7.9,"JACQ Gilles",null,null,null,null,null,92,"E","",null,null,null,null,null,null,null,0,0,null,null,null,null,null,null,null,null,null,null,null,null,null,null,null,null,null,null,null,null,null,null,null,null,null,null,null,null,null,null,null,null,null,null,null,null,null,null,null,null,null,null,null,null,null,null,null,null,null,null,null,null,null,null,null,null,null,null,5,5,5,6,4,6,5,5,4,6,5,4,8,4,5,4,5,6,null,null,null,null,null,null,null,null,6,6,6,4,6,7,4,5,5,6,6,3,6,5,4,7,3,5]
["F",5.7,"CAPELLE Thomas",null,null,null,null,null,93,"F","",null,null,null,null,null,null,null,0,0,null,null,null,null,null,null,null,null,null,null,null,null,null,null,null,null,null,null,null,null,null,null,null,null,null,null,null,null,null,null,null,null,null,null,null,null,null,null,null,null,null,null,null,null,null,null,null,null,null,null,null,null,null,null,null,null,null,null,7,6,6,3,6,7,5,4,3,5,5,3,5,7,7,6,3,5]
[]
[{"$f":"IF(SUM(R132:R138)>0,\"Classement Final : \",\"Classement 1er jour : \")","v":"Classement Final : "},null,null,{"$f":"IF(COUNT(I133:I138)<6,\"\",VLOOKUP(F131,'Cl.J1+Gen.'!$AH$11:$BL$34,31,FALSE))","v":12},{"$f":"IF(SUM(R133:R138)>0,\"Total des 2 Tours: \",\"Total du Tour 1: \")","v":"Total des 2 Tours: "},null,{"$f":"IF(OR(I140=\"DIS\",R140=\"DIS\"),\"DIS\",I140+R140)","v":685},null,{"$f":"IF(S140>1,\"DIS\",IF(OR(S140=1,COUNTA(I133:I138)<6),SUM(I133:I138),SUM(I133:I138)-MAX(I133:I138)))","v":428},null,null,null,null,null,null,null,null,{"$f":"IF(T140>1,\"DIS\",IF(T140=1,SUM(R133:R138),IF(COUNT(R133:R138)<$R$2,SUM(R133:R138),SUM(R133:R138)-MAX(R133:R138))))","v":257},{"$f":"SUM(S133:S138)","v":0},{"$f":"SUM(T133:T138)","v":0}]
[]
[null,null,"Equipiers du club de :",null,null,{"$f":"Prepa!D35","v":"LAVAL"}]
[null,"Ind","Joueurs de la 1ère Journée",null,null,null,null,null,"Tour 1",null,"Ind","Joueurs de la 2ème Journée",null,null,null,null,null,"Tour 2","FOR ABN DIS","FOR ABN DIS"]
["A",{"$f":"IF(C144=\"\",\"\",VLOOKUP(C144,$AS$6:$AT$17,2,FALSE))","v":6.4},"PETITPAS Bernard",null,null,null,null,null,82,"A",{"$f":"IF(L144=\"\",\"\",VLOOKUP(L144,$AS$6:$AT$17,2,FALSE))","v":6.4},"PETITPAS Bernard",null,null,null,null,null,82,{"$f":"IF(ISTEXT(I144),1,0)","v":0},{"$f":"IF(ISTEXT(R144),1,0)","v":0},null,null,null,null,null,null,null,null,null,null,null,null,null,null,null,null,null,null,null,null,null,null,null,null,null,null,null,null,null,null,null,null,null,null,null,null,null,null,null,null,null,null,null,null,null,null,null,null,null,null,null,null,null,null,null,null,null,null,5,5,6,3,5,7,4,5,3,4,6,3,6,5,4,4,2,5,null,null,null,null,null,null,null,null,5,5,5,4,5,6,5,3,3,5,5,3,5,4,4,5,3,7]
["B",4.7,"BENOIST Stéphane",null,null,null,null,null,80,"B",2.8,"POIRRIER-MORVAN Cyril",null,null,null,null,null,83,0,0,null,null,null,null,null,null,null,null,null,null,null,null,null,null,null,null,null,null,null,null,null,null,null,null,null,null,null,null,null,null,null,null,null,null,null,null,null,null,null,null,null,null,null,null,null,null,null,null,null,null,null,null,null,null,null,null,null,null,4,4,5,4,4,5,6,4,3,4,4,3,8,4,4,4,4,6,null,null,null,null,null,null,null,null,4,4,5,4,4,5,5,4,4,4,5,3,8,4,8,4,3,5]
["C",10.199999999999999,"PAILLARD Jean-Luc",null,null,null,null,null,95,"C",4.7,"BENOIST Stéphane",null,null,null,null,null,85,0,0,null,null,null,null,null,null,null,null,null,null,null,null,null,null,null,null,null,null,null,null,null,null,null,null,null,null,null,null,null,null,null,null,null,null,null,null,null,null,null,null,null,null,null,null,null,null,null,null,null,null,null,null,null,null,null,null,null,null,5,5,6,3,6,5,6,6,3,5,6,4,7,5,5,6,4,8,null,null,null,null,null,null,null,null,4,3,5,5,4,6,4,4,4,5,5,2,6,4,9,5,4,6]
["D",2.8,"POIRRIER-MORVAN Cyril",null,null,null,null,null,83,"D",2.1,"CHAVETON Rémi",null,null,null,null,null,86,0,0,null,null,null,null,null,null,null,null,null,null,null,null,null,null,null,null,null,null,null,null,null,null,null,null,null,null,null,null,null,null,null,null,null,null,null,null,null,null,null,null,null,null,null,null,null,null,null,null,null,null,null,null,null,null,null,null,null,null,4,4,6,3,4,6,4,4,4,4,5,3,5,5,8,5,4,5,null,null,null,null,null,null,null,null,4,5,5,4,6,6,4,6,4,6,5,3,5,4,4,7,3,5]
["E",2.1,"CHAVETON Rémi",null,null,null,null,null,86,"E","",null,null,null,null,null,null,null,0,0,null,null,null,null,null,null,null,null,null,null,null,null,null,null,null,null,null,null,null,null,null,null,null,null,null,null,null,null,null,null,null,null,null,null,null,null,null,null,null,null,null,null,null,null,null,null,null,null,null,null,null,null,null,null,null,null,null,null,4,4,6,5,6,6,5,4,3,5,6,4,6,4,4,6,3,5,null,null,null,null,null,null,null,null,3,4,5,3,6,6,5,6,3,4,4,5,5,4,4,4,3,5]
["F",4.8,"DUBOIS Sébastien",null,null,null,null,null,86,"F","",null,null,null,null,null,null,null,0,0,null,null,null,null,null,null,null,null,null,null,null,null,null,null,null,null,null,null,null,null,null,null,null,null,null,null,null,null,null,null,null,null,null,null,null,null,null,null,null,null,null,null,null,null,null,null,null,null,null,null,null,null,null,null,null,null,null,null,5,5,5,3,4,5,4,6,4,5,5,4,5,4,6,5,4,7]
[]
[{"$f":"IF(SUM(R143:R149)>0,\"Classement Final : \",\"Classement 1er jour : \")","v":"Classement Final : "},null,null,{"$f":"IF(COUNT(I144:I149)<6,\"\",VLOOKUP(F142,'Cl.J1+Gen.'!$AH$11:$BL$34,31,FALSE))","v":8},{"$f":"IF(SUM(R144:R149)>0,\"Total des 2 Tours: \",\"Total du Tour 1: \")","v":"Total des 2 Tours: "},null,{"$f":"IF(OR(I151=\"DIS\",R151=\"DIS\"),\"DIS\",I151+R151)","v":667},null,{"$f":"IF(S151>1,\"DIS\",IF(OR(S151=1,COUNTA(I144:I149)<6),SUM(I144:I149),SUM(I144:I149)-MAX(I144:I149)))","v":417},null,null,null,null,null,null,null,null,{"$f":"IF(T151>1,\"DIS\",IF(T151=1,SUM(R144:R149),IF(COUNT(R144:R149)<$R$2,SUM(R144:R149),SUM(R144:R149)-MAX(R144:R149))))","v":250},{"$f":"SUM(S144:S149)","v":0},{"$f":"SUM(T144:T149)","v":0}]
[]
[null,null,"Equipiers du club de :",null,null,{"$f":"Prepa!D37","v":"ORLEANS DONNERY"}]
[null,"Ind","Joueurs de la 1ère Journée",null,null,null,null,null,"Tour 1",null,"Ind","Joueurs de la 2ème Journée",null,null,null,null,null,"Tour 2","FOR ABN DIS","FOR ABN DIS"]
["A",{"$f":"IF(C155=\"\",\"\",VLOOKUP(C155,$AU$6:$AV$17,2,FALSE))","v":10.9},"LASSOUDRY Stephan",null,null,null,null,null,94,"A",{"$f":"IF(L155=\"\",\"\",VLOOKUP(L155,$AU$6:$AV$17,2,FALSE))","v":""},null,null,null,null,null,null,"ABS",{"$f":"IF(ISTEXT(I155),1,0)","v":0},{"$f":"IF(ISTEXT(R155),1,0)","v":1},null,null,null,null,null,null,null,null,null,null,null,null,null,null,null,null,null,null,null,null,null,null,null,null,null,null,null,null,null,null,null,null,null,null,null,null,null,null,null,null,null,null,null,null,null,null,null,null,null,null,null,null,null,null,null,null,null,null,4,4,5,4,5,8,5,4,4,4,5,9,4,6,6,3,6,8]
["B","",null,null,null,null,null,null,"ABS","B",15.4,"MARECHAL Maxime",null,null,null,null,null,95,1,0,null,null,null,null,null,null,null,null,null,null,null,null,null,null,null,null,null,null,null,null,null,null,null,null,null,null,null,null,null,null,null,null,null,null,null,null,null,null,null,null,null,null,null,null,null,null,null,null,null,null,null,null,null,null,null,null,null,null,null,null,null,null,null,null,null,null,null,null,null,null,null,null,null,null,null,null,null,null,null,null,null,null,null,null,4,5,7,4,5,5,5,5,3,5,6,6,5,11,6,4,4,5]
["C",15.4,"MARECHAL Maxime",null,null,null,null,null,92,"C",7.2,"BOUTEILLY Laurent",null,null,null,null,null,87,0,0,null,null,null,null,null,null,null,null,null,null,null,null,null,null,null,null,null,null,null,null,null,null,null,null,null,null,null,null,null,null,null,null,null,null,null,null,null,null,null,null,null,null,null,null,null,null,null,null,null,null,null,null,null,null,null,null,null,null,5,5,5,3,5,7,5,6,3,5,6,4,6,7,4,5,4,7,null,null,null,null,null,null,null,null,4,4,5,5,5,7,7,4,3,6,4,3,6,6,4,5,3,6]
["D",7.2,"BOUTEILLY Laurent",null,null,null,null,null,83,"D",11.8,"PRADIER Aymeric",null,null,null,null,null,88,0,0,null,null,null,null,null,null,null,null,null,null,null,null,null,null,null,null,null,null,null,null,null,null,null,null,null,null,null,null,null,null,null,null,null,null,null,null,null,null,null,null,null,null,null,null,null,null,null,null,null,null,null,null,null,null,null,null,null,null,3,4,5,3,5,7,4,5,3,6,6,4,5,5,6,3,3,6,null,null,null,null,null,null,null,null,4,5,5,3,6,5,5,5,3,5,5,4,6,8,4,4,4,7]
["E",10.6,"FERRIER Benjamin",null,null,null,null,null,89,"E","",null,null,null,null,null,null,null,0,0,null,null,null,null,null,null,null,null,null,null,null,null,null,null,null,null,null,null,null,null,null,null,null,null,null,null,null,null,null,null,null,null,null,null,null,null,null,null,null,null,null,null,null,null,null,null,null,null,null,null,null,null,null,null,null,null,null,null,6,5,5,4,6,6,5,4,4,4,4,4,6,4,7,5,3,7,null,null,null,null,null,null,null,null,0,0,0,0,0,0,0,0,0,0,0,0,0,0,0,0,0,0]
["F",11.8,"PRADIER Aymeric",null,null,null,null,null,88,"F","",null,null,null,null,null,null,null,0,0,null,null,null,null,null,null,null,null,null,null,null,null,null,null,null,null,null,null,null,null,null,null,null,null,null,null,null,null,null,null,null,null,null,null,null,null,null,null,null,null,null,null,null,null,null,null,null,null,null,null,null,null,null,null,null,null,null,null,5,5,5,4,5,7,5,5,4,6,4,3,5,5,6,4,4,6,null,null,null,null,null,null,null,null,5,5,5,4,6,7,4,4,3,3,4,4,6,6,7,5,5,6]
[]
[{"$f":"IF(SUM(R154:R160)>0,\"Classement Final : \",\"Classement 1er jour : \")","v":"Classement Final : "},null,null,{"$f":"IF(COUNT(I155:I160)<6,\"\",VLOOKUP(F153,'Cl.J1+Gen.'!$AH$11:$BL$34,31,FALSE))","v":""},{"$f":"IF(SUM(R155:R160)>0,\"Total des 2 Tours: \",\"Total du Tour 1: \")","v":"Total des 2 Tours: "},null,{"$f":"IF(OR(I162=\"DIS\",R162=\"DIS\"),\"DIS\",I162+R162)","v":716},null,{"$f":"IF(S162>1,\"DIS\",IF(OR(S162=1,COUNTA(I155:I160)<6),SUM(I155:I160),SUM(I155:I160)-MAX(I155:I160)))","v":446},null,null,null,null,null,null,null,null,{"$f":"IF(T162>1,\"DIS\",IF(T162=1,SUM(R155:R160),IF(COUNT(R155:R160)<$R$2,SUM(R155:R160),SUM(R155:R160)-MAX(R155:R160))))","v":270},{"$f":"SUM(S155:S160)","v":1},{"$f":"SUM(T155:T160)","v":1}]
[]
[null,null,"Equipiers du club de :",null,null,{"$f":"Prepa!D39","v":"VAL DE L'INDRE"}]
[null,"Ind","Joueurs de la 1ère Journée",null,null,null,null,null,"Tour 1",null,"Ind","Joueurs de la 2ème Journée",null,null,null,null,null,"Tour 2","FOR ABN DIS","FOR ABN DIS"]
["A",{"$f":"IF(C166=\"\",\"\",VLOOKUP(C166,$AW$6:$AX$17,2,FALSE))","v":"1,3"},"DORANGEON Gabriel",null,null,null,null,null,73,"A",{"$f":"IF(L166=\"\",\"\",VLOOKUP(L166,$AW$6:$AX$17,2,FALSE))","v":"1,3"},"DORANGEON Gabriel",null,null,null,null,null,73,{"$f":"IF(ISTEXT(I166),1,0)","v":0},{"$f":"IF(ISTEXT(R166),1,0)","v":0},null,null,null,null,null,null,null,null,null,null,null,null,null,null,null,null,null,null,null,null,null,null,null,null,null,null,null,null,null,null,null,null,null,null,null,null,null,null,null,null,null,null,null,null,null,null,null,null,null,null,null,null,null,null,null,null,null,null,4,4,6,3,3,5,5,4,3,4,4,4,3,4,4,4,3,6,null,null,null,null,null,null,null,null,4,4,5,2,4,4,4,4,4,4,6,2,6,3,4,5,3,5]
["B","5,8","VANDOMMELLE Loic",null,null,null,null,null,73,"B","11,5","DORANGEON Patrick",null,null,null,null,null,97,0,0,null,null,null,null,null,null,null,null,null,null,null,null,null,null,null,null,null,null,null,null,null,null,null,null,null,null,null,null,null,null,null,null,null,null,null,null,null,null,null,null,null,null,null,null,null,null,null,null,null,null,null,null,null,null,null,null,null,null,5,4,5,3,4,4,4,4,3,4,4,3,6,4,4,3,4,5,null,null,null,null,null,null,null,null,5,5,8,4,5,8,5,5,5,4,5,5,8,6,4,6,3,6]
["C","6,4","BOUCHERON Philippe",null,null,null,null,null,91,"C","6,4","BOUCHERON Philippe",null,null,null,null,null,89,0,0,null,null,null,null,null,null,null,null,null,null,null,null,null,null,null,null,null,null,null,null,null,null,null,null,null,null,null,null,null,null,null,null,null,null,null,null,null,null,null,null,null,null,null,null,null,null,null,null,null,null,null,null,null,null,null,null,null,null,4,5,7,6,5,7,4,5,4,5,5,4,4,6,7,4,3,6,null,null,null,null,null,null,null,null,4,7,6,3,6,7,4,5,3,6,5,4,5,5,3,6,3,7]
["D","6,7","MARIAU Victor",null,null,null,null,null,94,"D","6,7","MARIAU Victor",null,null,null,null,null,90,0,0,null,null,null,null,null,null,null,null,null,null,null,null,null,null,null,null,null,null,null,null,null,null,null,null,null,null,null,null,null,null,null,null,null,null,null,null,null,null,null,null,null,null,null,null,null,null,null,null,null,null,null,null,null,null,null,null,null,null,3,6,6,3,7,6,5,6,4,5,6,5,6,4,10,4,3,5,null,null,null,null,null,null,null,null,8,4,5,3,6,6,5,6,3,5,4,8,6,3,5,5,3,5]
["E","11","BRAJARD Fabrice",null,null,null,null,null,104,"E","",null,null,null,null,null,null,null,0,0,null,null,null,null,null,null,null,null,null,null,null,null,null,null,null,null,null,null,null,null,null,null,null,null,null,null,null,null,null,null,null,null,null,null,null,null,null,null,null,null,null,null,null,null,null,null,null,null,null,null,null,null,null,null,null,null,null,null,6,6,6,4,6,7,5,4,3,6,6,8,7,5,7,6,4,8,null,null,null,null,null,null,null,null,5,6,6,3,5,6,6,5,7,5,5,4,9,7,10,6,5,6]
["F","11,5","DORANGEON Patrick",null,null,null,null,null,98,"F","",null,null,null,null,null,null,null,0,0,null,null,null,null,null,null,null,null,null,null,null,null,null,null,null,null,null,null,null,null,null,null,null,null,null,null,null,null,null,null,null,null,null,null,null,null,null,null,null,null,null,null,null,null,null,null,null,null,null,null,null,null,null,null,null,null,null,null,7,5,8,5,5,7,5,4,4,5,5,3,7,5,3,8,5,7]
[]
[{"$f":"IF(SUM(R165:R171)>0,\"Classement Final : \",\"Classement 1er jour : \")","v":"Classement Final : "},null,null,{"$f":"IF(COUNT(I166:I171)<6,\"\",VLOOKUP(F164,'Cl.J1+Gen.'!$AH$11:$BL$34,31,FALSE))","v":10},{"$f":"IF(SUM(R166:R171)>0,\"Total des 2 Tours: \",\"Total du Tour 1: \")","v":"Total des 2 Tours: "},null,{"$f":"IF(OR(I173=\"DIS\",R173=\"DIS\"),\"DIS\",I173+R173)","v":681},null,{"$f":"IF(S173>1,\"DIS\",IF(OR(S173=1,COUNTA(I166:I171)<6),SUM(I166:I171),SUM(I166:I171)-MAX(I166:I171)))","v":429},null,null,null,null,null,null,null,null,{"$f":"IF(T173>1,\"DIS\",IF(T173=1,SUM(R166:R171),IF(COUNT(R166:R171)<$R$2,SUM(R166:R171),SUM(R166:R171)-MAX(R166:R171))))","v":252},{"$f":"SUM(S166:S171)","v":0},{"$f":"SUM(T166:T171)","v":0}]
[]
[null,null,"Equipiers du club de :",null,null,{"$f":"Prepa!D41","v":"ROCHERS SEVIGNE"}]
[null,"Ind","Joueurs de la 1ère Journée",null,null,null,null,null,"Tour 1",null,"Ind","Joueurs de la 2ème Journée",null,null,null,null,null,"Tour 2","FOR ABN DIS","FOR ABN DIS"]
["A",{"$f":"IF(C177=\"\",\"\",VLOOKUP(C177,$AY$6:$AZ$17,2,FALSE))","v":4.8},"PARRY Richard",null,null,null,null,null,81,"A",{"$f":"IF(L177=\"\",\"\",VLOOKUP(L177,$AY$6:$AZ$17,2,FALSE))","v":4.8},"PARRY Richard",null,null,null,null,null,74,{"$f":"IF(ISTEXT(I177),1,0)","v":0},{"$f":"IF(ISTEXT(R177),1,0)","v":0},null,null,null,null,null,null,null,null,null,null,null,null,null,null,null,null,null,null,null,null,null,null,null,null,null,null,null,null,null,null,null,null,null,null,null,null,null,null,null,null,null,null,null,null,null,null,null,null,null,null,null,null,null,null,null,null,null,null,4,5,6,4,5,6,4,5,4,4,4,3,6,4,5,4,3,5,null,null,null,null,null,null,null,null,4,3,5,3,6,5,4,4,3,4,4,3,5,5,4,5,3,4]
["B",9.6999999999999993,"OGER Bertrand",null,null,null,null,null,86,"B",9.6999999999999993,"OGER Bertrand",null,null,null,null,null,88,0,0,null,null,null,null,null,null,null,null,null,null,null,null,null,null,null,null,null,null,null,null,null,null,null,null,null,null,null,null,null,null,null,null,null,null,null,null,null,null,null,null,null,null,null,null,null,null,null,null,null,null,null,null,null,null,null,null,null,null,5,5,6,5,4,5,4,5,3,5,5,6,6,5,4,4,3,6,null,null,null,null,null,null,null,null,5,5,7,4,6,6,4,5,4,5,4,3,5,5,6,5,3,6]
["C",8,"FANSHAWE Cliff",null,null,null,null,null,90,"C",8,"FANSHAWE Cliff",null,null,null,null,null,92,0,0,null,null,null,null,null,null,null,null,null,null,null,null,null,null,null,null,null,null,null,null,null,null,null,null,null,null,null,null,null,null,null,null,null,null,null,null,null,null,null,null,null,null,null,null,null,null,null,null,null,null,null,null,null,null,null,null,null,null,4,7,5,4,5,6,5,5,4,5,5,5,4,5,7,4,4,6,null,null,null,null,null,null,null,null,4,5,5,5,6,6,6,4,4,5,5,3,6,5,9,4,4,6]
["D",11.2,"CROIZEAN Jean Philippe",null,null,null,null,null,95,"D",11.2,"CROIZEAN Jean Philippe",null,null,null,null,null,81,0,0,null,null,null,null,null,null,null,null,null,null,null,null,null,null,null,null,null,null,null,null,null,null,null,null,null,null,null,null,null,null,null,null,null,null,null,null,null,null,null,null,null,null,null,null,null,null,null,null,null,null,null,null,null,null,null,null,null,null,4,5,6,4,5,7,5,4,4,9,5,4,7,5,6,5,4,6,null,null,null,null,null,null,null,null,4,4,5,3,5,6,4,7,3,4,5,2,5,7,4,4,3,6]
["E",9,"GONTIER Michael",null,null,null,null,null,88,"E","",null,null,null,null,null,null,null,0,0,null,null,null,null,null,null,null,null,null,null,null,null,null,null,null,null,null,null,null,null,null,null,null,null,null,null,null,null,null,null,null,null,null,null,null,null,null,null,null,null,null,null,null,null,null,null,null,null,null,null,null,null,null,null,null,null,null,null,5,5,6,4,5,7,6,5,3,5,7,4,5,4,4,5,3,5,null,null,null,null,null,null,null,null,5,5,5,3,10,7,6,5,3,6,4,5,6,8,5,7,4,5]
["F",18.600000000000001,"WALLET Laurent",null,null,null,null,null,"ABN","F","",null,null,null,null,null,null,null,1,0,null,null,null,null,null,null,null,null,null,null,null,null,null,null,null,null,null,null,null,null,null,null,null,null,null,null,null,null,null,null,null,null,null,null,null,null,null,null,null,null,null,null,null,null,null,null,null,null,null,null,null,null,null,null,null,null,null,null,0,0,0,0,0,0,0,0,0,0,0,0,0,0,0,0,0,0]
[]
[{"$f":"IF(SUM(R176:R182)>0,\"Classement Final : \",\"Classement 1er jour : \")","v":"Classement Final : "},null,null,{"$f":"IF(COUNT(I177:I182)<6,\"\",VLOOKUP(F175,'Cl.J1+Gen.'!$AH$11:$BL$34,31,FALSE))","v":""},{"$f":"IF(SUM(R177:R182)>0,\"Total des 2 Tours: \",\"Total du Tour 1: \")","v":"Total des 2 Tours: "},null,{"$f":"IF(OR(I184=\"DIS\",R184=\"DIS\"),\"DIS\",I184+R184)","v":683},null,{"$f":"IF(S184>1,\"DIS\",IF(OR(S184=1,COUNTA(I177:I182)<6),SUM(I177:I182),SUM(I177:I182)-MAX(I177:I182)))","v":440},null,null,null,null,null,null,null,null,{"$f":"IF(T184>1,\"DIS\",IF(T184=1,SUM(R177:R182),IF(COUNT(R177:R182)<$R$2,SUM(R177:R182),SUM(R177:R182)-MAX(R177:R182))))","v":243},{"$f":"SUM(S177:S182)","v":1},{"$f":"SUM(T177:T182)","v":0}]
[]
[null,null,"Equipiers du club de :",null,null,{"$f":"Prepa!D43","v":"SABLE SOLESMES"}]
[null,"Ind","Joueurs de la 1ère Journée",null,null,null,null,null,"Tour 1",null,"Ind","Joueurs de la 2ème Journée",null,null,null,null,null,"Tour 2","FOR ABN DIS","FOR ABN DIS"]
["A",{"$f":"IF(C188=\"\",\"\",VLOOKUP(C188,$BA$6:$BB$17,2,FALSE))","v":0.3},"MOREAU Romain",null,null,null,null,null,77,"A",{"$f":"IF(L188=\"\",\"\",VLOOKUP(L188,$BA$6:$BB$17,2,FALSE))","v":0.3},"MOREAU Romain",null,null,null,null,null,78,{"$f":"IF(ISTEXT(I188),1,0)","v":0},{"$f":"IF(ISTEXT(R188),1,0)","v":0},null,null,null,null,null,null,null,null,null,null,null,null,null,null,null,null,null,null,null,null,null,null,null,null,null,null,null,null,null,null,null,null,null,null,null,null,null,null,null,null,null,null,null,null,null,null,null,null,null,null,null,null,null,null,null,null,null,null,5,4,5,3,5,5,5,4,4,5,4,3,5,5,3,4,3,5,null,null,null,null,null,null,null,null,4,4,5,3,4,5,4,4,3,4,4,4,6,6,4,4,4,6]
["B",6.3,"POTTIER Fabien",null,null,null,null,null,82,"B",6.3,"POTTIER Fabien",null,null,null,null,null,80,0,0,null,null,null,null,null,null,null,null,null,null,null,null,null,null,null,null,null,null,null,null,null,null,null,null,null,null,null,null,null,null,null,null,null,null,null,null,null,null,null,null,null,null,null,null,null,null,null,null,null,null,null,null,null,null,null,null,null,null,4,4,5,5,5,6,4,6,3,5,4,3,5,5,4,4,4,6,null,null,null,null,null,null,null,null,5,4,5,4,5,7,4,5,2,4,4,4,5,5,5,4,3,5]
["C",3.5,"OBIANG Jean De Dieu",null,null,null,null,null,75,"C",4.0999999999999996,"RENARD Jérôme",null,null,null,null,null,77,0,0,null,null,null,null,null,null,null,null,null,null,null,null,null,null,null,null,null,null,null,null,null,null,null,null,null,null,null,null,null,null,null,null,null,null,null,null,null,null,null,null,null,null,null,null,null,null,null,null,null,null,null,null,null,null,null,null,null,null,4,4,6,3,5,5,5,3,4,6,4,2,5,3,4,4,3,5,null,null,null,null,null,null,null,null,4,4,6,3,4,6,5,5,4,4,4,3,5,4,3,5,3,5]
["D",4.0999999999999996,"RENARD Jérôme",null,null,null,null,null,78,"D",3.5,"OBIANG Jean De Dieu",null,null,null,null,null,81,0,0,null,null,null,null,null,null,null,null,null,null,null,null,null,null,null,null,null,null,null,null,null,null,null,null,null,null,null,null,null,null,null,null,null,null,null,null,null,null,null,null,null,null,null,null,null,null,null,null,null,null,null,null,null,null,null,null,null,null,3,4,5,2,4,5,4,4,4,3,5,6,6,5,4,6,3,5,null,null,null,null,null,null,null,null,5,5,5,4,4,5,5,5,4,6,4,3,6,4,4,3,3,6]
["E",3.8,"HOUDAYER Jean-Marc",null,null,null,null,null,92,"E","",null,null,null,null,null,null,null,0,0,null,null,null,null,null,null,null,null,null,null,null,null,null,null,null,null,null,null,null,null,null,null,null,null,null,null,null,null,null,null,null,null,null,null,null,null,null,null,null,null,null,null,null,null,null,null,null,null,null,null,null,null,null,null,null,null,null,null,5,6,5,6,5,6,4,4,3,6,7,3,5,5,6,5,4,7,null,null,null,null,null,null,null,null,3,4,5,3,4,6,5,4,3,4,5,3,4,4,4,4,3,6]
["F",4.8,"DEZE Christophe",null,null,null,null,null,77,"F","",null,null,null,null,null,null,null,0,0,null,null,null,null,null,null,null,null,null,null,null,null,null,null,null,null,null,null,null,null,null,null,null,null,null,null,null,null,null,null,null,null,null,null,null,null,null,null,null,null,null,null,null,null,null,null,null,null,null,null,null,null,null,null,null,null,null,null,5,5,5,5,3,5,5,4,3,4,4,3,6,4,3,5,3,5]
[]
[{"$f":"IF(SUM(R187:R193)>0,\"Classement Final : \",\"Classement 1er jour : \")","v":"Classement Final : "},null,null,{"$f":"IF(COUNT(I188:I193)<6,\"\",VLOOKUP(F186,'Cl.J1+Gen.'!$AH$11:$BL$34,31,FALSE))","v":2},{"$f":"IF(SUM(R188:R193)>0,\"Total des 2 Tours: \",\"Total du Tour 1: \")","v":"Total des 2 Tours: "},null,{"$f":"IF(OR(I195=\"DIS\",R195=\"DIS\"),\"DIS\",I195+R195)","v":624},null,{"$f":"IF(S195>1,\"DIS\",IF(OR(S195=1,COUNTA(I188:I193)<6),SUM(I188:I193),SUM(I188:I193)-MAX(I188:I193)))","v":389},null,null,null,null,null,null,null,null,{"$f":"IF(T195>1,\"DIS\",IF(T195=1,SUM(R188:R193),IF(COUNT(R188:R193)<$R$2,SUM(R188:R193),SUM(R188:R193)-MAX(R188:R193))))","v":235},{"$f":"SUM(S188:S193)","v":0},{"$f":"SUM(T188:T193)","v":0}]
[]
[null,null,"Equipiers du club de :",null,null,{"$f":"Prepa!D45","v":"SABLES D'OLONNE"}]
[null,"Ind","Joueurs de la 1ère Journée",null,null,null,null,null,"Tour 1",null,"Ind","Joueurs de la 2ème Journée",null,null,null,null,null,"Tour 2","FOR ABN DIS","FOR ABN DIS"]
["A",{"$f":"IF(C199=\"\",\"\",VLOOKUP(C199,$BC$6:$BD$17,2,FALSE))","v":5.3},"BAUD Raphaël",null,null,null,null,null,86,"A",{"$f":"IF(L199=\"\",\"\",VLOOKUP(L199,$BC$6:$BD$17,2,FALSE))","v":5.3},"BAUD Raphaël",null,null,null,null,null,81,{"$f":"IF(ISTEXT(I199),1,0)","v":0},{"$f":"IF(ISTEXT(R199),1,0)","v":0},null,null,null,null,null,null,null,null,null,null,null,null,null,null,null,null,null,null,null,null,null,null,null,null,null,null,null,null,null,null,null,null,null,null,null,null,null,null,null,null,null,null,null,null,null,null,null,null,null,null,null,null,null,null,null,null,null,null,4,5,6,3,4,5,6,5,3,5,5,5,8,6,4,4,4,4,null,null,null,null,null,null,null,null,4,5,5,3,4,6,4,5,4,5,4,3,6,4,6,4,3,6]
["B",5.3,"FONFREIDE Vincent",null,null,null,null,null,95,"B",5.3,"FONFREIDE Vincent",null,null,null,null,null,90,0,0,null,null,null,null,null,null,null,null,null,null,null,null,null,null,null,null,null,null,null,null,null,null,null,null,null,null,null,null,null,null,null,null,null,null,null,null,null,null,null,null,null,null,null,null,null,null,null,null,null,null,null,null,null,null,null,null,null,null,6,4,5,6,5,6,5,5,4,5,5,4,9,6,4,4,5,7,null,null,null,null,null,null,null,null,4,7,6,3,4,6,5,6,3,4,5,6,5,4,6,5,5,6]
["C",3.1,"RIHANI Habib",null,null,null,null,null,84,"C",2.6,"CERVERA Yann",null,null,null,null,null,84,0,0,null,null,null,null,null,null,null,null,null,null,null,null,null,null,null,null,null,null,null,null,null,null,null,null,null,null,null,null,null,null,null,null,null,null,null,null,null,null,null,null,null,null,null,null,null,null,null,null,null,null,null,null,null,null,null,null,null,null,5,4,5,5,5,5,4,5,2,4,5,7,8,3,4,4,4,5,null,null,null,null,null,null,null,null,4,4,5,4,5,6,5,4,4,4,4,4,6,5,4,6,4,6]
["D",8.3000000000000007,"DELABAUDINIERE Claude",null,null,null,null,null,98,"D",7.8,"TESSE Guillaume",null,null,null,null,null,96,0,0,null,null,null,null,null,null,null,null,null,null,null,null,null,null,null,null,null,null,null,null,null,null,null,null,null,null,null,null,null,null,null,null,null,null,null,null,null,null,null,null,null,null,null,null,null,null,null,null,null,null,null,null,null,null,null,null,null,null,5,4,6,4,5,7,5,5,6,5,5,4,8,6,6,5,4,8,null,null,null,null,null,null,null,null,4,4,5,4,4,7,5,4,11,7,5,4,6,5,5,6,5,5]
["E",7.5,"SOMBRET Laurent",null,null,null,null,null,99,"E","",null,null,null,null,null,null,null,0,0,null,null,null,null,null,null,null,null,null,null,null,null,null,null,null,null,null,null,null,null,null,null,null,null,null,null,null,null,null,null,null,null,null,null,null,null,null,null,null,null,null,null,null,null,null,null,null,null,null,null,null,null,null,null,null,null,null,null,6,6,5,5,6,6,4,6,3,5,5,6,5,6,9,4,5,7,null,null,null,null,null,null,null,null,5,3,6,5,6,6,6,5,4,5,5,3,5,6,8,4,4,5]
["F",2.6,"CERVERA Yann",null,null,null,null,null,83,"F","",null,null,null,null,null,null,null,0,0,null,null,null,null,null,null,null,null,null,null,null,null,null,null,null,null,null,null,null,null,null,null,null,null,null,null,null,null,null,null,null,null,null,null,null,null,null,null,null,null,null,null,null,null,null,null,null,null,null,null,null,null,null,null,null,null,null,null,4,5,5,4,6,6,5,5,3,5,4,3,6,4,4,4,3,7]
[]
[{"$f":"IF(SUM(R198:R204)>0,\"Classement Final : \",\"Classement 1er jour : \")","v":"Classement Final : "},null,null,{"$f":"IF(COUNT(I199:I204)<6,\"\",VLOOKUP(F197,'Cl.J1+Gen.'!$AH$11:$BL$34,31,FALSE))","v":16},{"$f":"IF(SUM(R199:R204)>0,\"Total des 2 Tours: \",\"Total du Tour 1: \")","v":"Total des 2 Tours: "},null,{"$f":"IF(OR(I206=\"DIS\",R206=\"DIS\"),\"DIS\",I206+R206)","v":701},null,{"$f":"IF(S206>1,\"DIS\",IF(OR(S206=1,COUNTA(I199:I204)<6),SUM(I199:I204),SUM(I199:I204)-MAX(I199:I204)))","v":446},null,null,null,null,null,null,null,null,{"$f":"IF(T206>1,\"DIS\",IF(T206=1,SUM(R199:R204),IF(COUNT(R199:R204)<$R$2,SUM(R199:R204),SUM(R199:R204)-MAX(R199:R204))))","v":255},{"$f":"SUM(S199:S204)","v":0},{"$f":"SUM(T199:T204)","v":0}]
[]
[null,null,"Equipiers du club de :",null,null,{"$f":"Prepa!D47","v":"SAINT CAST"}]
[null,"Ind","Joueurs de la 1ère Journée",null,null,null,null,null,"Tour 1",null,"Ind","Joueurs de la 2ème Journée",null,null,null,null,null,"Tour 2","FOR ABN DIS","FOR ABN DIS"]
["A",{"$f":"IF(C210=\"\",\"\",VLOOKUP(C210,$BE$6:$BF$17,2,FALSE))","v":-0.1},"LEFEUVRE Philippe",null,null,null,null,null,77,"A",{"$f":"IF(L210=\"\",\"\",VLOOKUP(L210,$BE$6:$BF$17,2,FALSE))","v":-0.1},"LEFEUVRE Philippe",null,null,null,null,null,73,{"$f":"IF(ISTEXT(I210),1,0)","v":0},{"$f":"IF(ISTEXT(R210),1,0)","v":0},null,null,null,null,null,null,null,null,null,null,null,null,null,null,null,null,null,null,null,null,null,null,null,null,null,null,null,null,null,null,null,null,null,null,null,null,null,null,null,null,null,null,null,null,null,null,null,null,null,null,null,null,null,null,null,null,null,null,4,4,6,4,4,5,5,4,4,4,4,4,5,4,4,4,3,5,null,null,null,null,null,null,null,null,5,4,6,3,4,5,4,4,3,4,4,2,5,5,4,3,3,5]
["B",5.0999999999999996,"ESCALONA Jonathan",null,null,null,null,null,80,"B",5.0999999999999996,"ESCALONA Jonathan",null,null,null,null,null,84,0,0,null,null,null,null,null,null,null,null,null,null,null,null,null,null,null,null,null,null,null,null,null,null,null,null,null,null,null,null,null,null,null,null,null,null,null,null,null,null,null,null,null,null,null,null,null,null,null,null,null,null,null,null,null,null,null,null,null,null,4,4,5,4,4,5,5,4,4,4,4,4,5,3,8,3,3,7,null,null,null,null,null,null,null,null,4,5,5,3,5,5,5,5,4,5,5,5,5,4,4,5,4,6]
["C",0.8,"LETZELTER Frédéric",null,null,null,null,null,82,"C",0.8,"LETZELTER Frédéric",null,null,null,null,null,85,0,0,null,null,null,null,null,null,null,null,null,null,null,null,null,null,null,null,null,null,null,null,null,null,null,null,null,null,null,null,null,null,null,null,null,null,null,null,null,null,null,null,null,null,null,null,null,null,null,null,null,null,null,null,null,null,null,null,null,null,6,5,6,3,4,6,4,4,4,4,4,3,7,5,6,4,3,4,null,null,null,null,null,null,null,null,4,4,5,4,4,6,5,5,4,5,4,5,7,6,4,4,3,6]
["D",4.8,"BESNOUX Alain",null,null,null,null,null,91,"D",4.8,"BESNOUX Alain",null,null,null,null,null,95,0,0,null,null,null,null,null,null,null,null,null,null,null,null,null,null,null,null,null,null,null,null,null,null,null,null,null,null,null,null,null,null,null,null,null,null,null,null,null,null,null,null,null,null,null,null,null,null,null,null,null,null,null,null,null,null,null,null,null,null,4,4,5,3,6,6,6,5,4,6,5,6,6,5,5,3,5,7,null,null,null,null,null,null,null,null,5,5,7,3,5,7,5,4,4,5,5,5,6,6,8,5,4,6]
["E",5.6,"LAURENT Antoine",null,null,null,null,null,83,"E","",null,null,null,null,null,null,null,0,0,null,null,null,null,null,null,null,null,null,null,null,null,null,null,null,null,null,null,null,null,null,null,null,null,null,null,null,null,null,null,null,null,null,null,null,null,null,null,null,null,null,null,null,null,null,null,null,null,null,null,null,null,null,null,null,null,null,null,4,4,6,3,4,5,4,5,4,4,5,4,5,5,6,4,5,6]
["F",10.3,"LEVAVASSEUR Sylvain",null,null,null,null,null,97,"F","",null,null,null,null,null,null,null,0,0,null,null,null,null,null,null,null,null,null,null,null,null,null,null,null,null,null,null,null,null,null,null,null,null,null,null,null,null,null,null,null,null,null,null,null,null,null,null,null,null,null,null,null,null,null,null,null,null,null,null,null,null,null,null,null,null,null,null,4,5,7,4,6,7,5,8,4,7,4,3,5,7,6,6,3,6]
[]
[{"$f":"IF(SUM(R209:R215)>0,\"Classement Final : \",\"Classement 1er jour : \")","v":"Classement Final : "},null,null,{"$f":"IF(COUNT(I210:I215)<6,\"\",VLOOKUP(F208,'Cl.J1+Gen.'!$AH$11:$BL$34,31,FALSE))","v":7},{"$f":"IF(SUM(R210:R215)>0,\"Total des 2 Tours: \",\"Total du Tour 1: \")","v":"Total des 2 Tours: "},null,{"$f":"IF(OR(I217=\"DIS\",R217=\"DIS\"),\"DIS\",I217+R217)","v":655},null,{"$f":"IF(S217>1,\"DIS\",IF(OR(S217=1,COUNTA(I210:I215)<6),SUM(I210:I215),SUM(I210:I215)-MAX(I210:I215)))","v":413},null,null,null,null,null,null,null,null,{"$f":"IF(T217>1,\"DIS\",IF(T217=1,SUM(R210:R215),IF(COUNT(R210:R215)<$R$2,SUM(R210:R215),SUM(R210:R215)-MAX(R210:R215))))","v":242},{"$f":"SUM(S210:S215)","v":0},{"$f":"SUM(T210:T215)","v":0}]
[]
[null,null,"Equipiers du club de :",null,null,{"$f":"Prepa!D49","v":"SAINT-BRIEUC"}]
[null,"Ind","Joueurs de la 1ère Journée",null,null,null,null,null,"Tour 1",null,"Ind","Joueurs de la 2ème Journée",null,null,null,null,null,"Tour 2","FOR ABN DIS","FOR ABN DIS"]
["A",{"$f":"IF(C221=\"\",\"\",VLOOKUP(C221,$BG$6:$BH$17,2,FALSE))","v":10.199999999999999},"THETIOT Samuel",null,null,null,null,null,101,"A",{"$f":"IF(L221=\"\",\"\",VLOOKUP(L221,$BG$6:$BH$17,2,FALSE))","v":11.5},"BULLOCK Georges",null,null,null,null,null,103,{"$f":"IF(ISTEXT(I221),1,0)","v":0},{"$f":"IF(ISTEXT(R221),1,0)","v":0},null,null,null,null,null,null,null,null,null,null,null,null,null,null,null,null,null,null,null,null,null,null,null,null,null,null,null,null,null,null,null,null,null,null,null,null,null,null,null,null,null,null,null,null,null,null,null,null,null,null,null,null,null,null,null,null,null,null,7,4,8,3,8,8,6,6,5,6,5,3,5,4,6,6,4,7,null,null,null,null,null,null,null,null,5,9,5,5,7,7,6,4,4,5,5,3,6,6,7,5,8,6]
["B",7.6,"SENGER Nicolas",null,null,null,null,null,90,"B",7.6,"SENGER Nicolas",null,null,null,null,null,83,0,0,null,null,null,null,null,null,null,null,null,null,null,null,null,null,null,null,null,null,null,null,null,null,null,null,null,null,null,null,null,null,null,null,null,null,null,null,null,null,null,null,null,null,null,null,null,null,null,null,null,null,null,null,null,null,null,null,null,null,4,5,5,3,6,8,5,6,3,5,4,3,6,5,4,5,4,9,null,null,null,null,null,null,null,null,7,5,6,3,5,5,5,4,4,4,4,3,6,5,4,3,4,6]
["C",13.2,"SOURDRILLE Kevin",null,null,null,null,null,100,"C",1.5,"ROUAULT Emmanuel",null,null,null,null,null,83,0,0,null,null,null,null,null,null,null,null,null,null,null,null,null,null,null,null,null,null,null,null,null,null,null,null,null,null,null,null,null,null,null,null,null,null,null,null,null,null,null,null,null,null,null,null,null,null,null,null,null,null,null,null,null,null,null,null,null,null,6,6,6,4,5,7,6,5,3,5,7,3,6,8,6,6,3,8,null,null,null,null,null,null,null,null,5,5,5,4,4,6,5,4,2,4,5,4,6,5,6,4,3,6]
["D",9.4,"DURROUX Jean-Christophe",null,null,null,null,null,97,"D",7,"MARTEL Olivier",null,null,null,null,null,87,0,0,null,null,null,null,null,null,null,null,null,null,null,null,null,null,null,null,null,null,null,null,null,null,null,null,null,null,null,null,null,null,null,null,null,null,null,null,null,null,null,null,null,null,null,null,null,null,null,null,null,null,null,null,null,null,null,null,null,null,4,5,8,7,6,7,5,5,4,3,6,6,5,6,5,5,4,6,null,null,null,null,null,null,null,null,4,4,5,4,4,6,6,5,4,5,5,7,4,6,3,5,3,7]
["E",1.5,"ROUAULT Emmanuel",null,null,null,null,null,86,"E","",null,null,null,null,null,null,null,0,0,null,null,null,null,null,null,null,null,null,null,null,null,null,null,null,null,null,null,null,null,null,null,null,null,null,null,null,null,null,null,null,null,null,null,null,null,null,null,null,null,null,null,null,null,null,null,null,null,null,null,null,null,null,null,null,null,null,null,4,3,8,4,5,7,4,5,3,4,4,4,7,4,6,5,4,5]
["F",7,"MARTEL Olivier",null,null,null,null,null,87,"F","",null,null,null,null,null,null,null,0,0,null,null,null,null,null,null,null,null,null,null,null,null,null,null,null,null,null,null,null,null,null,null,null,null,null,null,null,null,null,null,null,null,null,null,null,null,null,null,null,null,null,null,null,null,null,null,null,null,null,null,null,null,null,null,null,null,null,null,4,4,5,6,5,6,5,5,3,5,4,4,5,8,5,4,4,5]
[]
[{"$f":"IF(SUM(R220:R226)>0,\"Classement Final : \",\"Classement 1er jour : \")","v":"Classement Final : "},null,null,{"$f":"IF(COUNT(I221:I226)<6,\"\",VLOOKUP(F219,'Cl.J1+Gen.'!$AH$11:$BL$34,31,FALSE))","v":17},{"$f":"IF(SUM(R221:R226)>0,\"Total des 2 Tours: \",\"Total du Tour 1: \")","v":"Total des 2 Tours: "},null,{"$f":"IF(OR(I228=\"DIS\",R228=\"DIS\"),\"DIS\",I228+R228)","v":713},null,{"$f":"IF(S228>1,\"DIS\",IF(OR(S228=1,COUNTA(I221:I226)<6),SUM(I221:I226),SUM(I221:I226)-MAX(I221:I226)))","v":460},null,null,null,null,null,null,null,null,{"$f":"IF(T228>1,\"DIS\",IF(T228=1,SUM(R221:R226),IF(COUNT(R221:R226)<$R$2,SUM(R221:R226),SUM(R221:R226)-MAX(R221:R226))))","v":253},{"$f":"SUM(S221:S226)","v":0},{"$f":"SUM(T221:T226)","v":0}]
[]
[null,null,"Equipiers du club de :",null,null,{"$f":"Prepa!D51","v":"SARGE/LE MANS"}]
[null,"Ind","Joueurs de la 1ère Journée",null,null,null,null,null,"Tour 1",null,"Ind","Joueurs de la 2ème Journée",null,null,null,null,null,"Tour 2","FOR ABN DIS","FOR ABN DIS"]
["A",{"$f":"IF(C232=\"\",\"\",VLOOKUP(C232,$BI$6:$BJ$17,2,FALSE))","v":9.5},"LAUDIERE Cédric",null,null,null,null,null,82,"A",{"$f":"IF(L232=\"\",\"\",VLOOKUP(L232,$BI$6:$BJ$17,2,FALSE))","v":9.5},"LAUDIERE Cédric",null,null,null,null,null,86,{"$f":"IF(ISTEXT(I232),1,0)","v":0},{"$f":"IF(ISTEXT(R232),1,0)","v":0},null,null,null,null,null,null,null,null,null,null,null,null,null,null,null,null,null,null,null,null,null,null,null,null,null,null,null,null,null,null,null,null,null,null,null,null,null,null,null,null,null,null,null,null,null,null,null,null,null,null,null,null,null,null,null,null,null,null,4,4,5,4,4,6,4,6,3,4,5,3,4,5,6,5,3,7,null,null,null,null,null,null,null,null,3,4,5,4,7,5,5,4,4,5,7,5,6,5,4,4,3,6]
["B",4.9000000000000004,"MIRATON Vladimir",null,null,null,null,null,79,"B",4.9000000000000004,"MIRATON Vladimir",null,null,null,null,null,81,0,0,null,null,null,null,null,null,null,null,null,null,null,null,null,null,null,null,null,null,null,null,null,null,null,null,null,null,null,null,null,null,null,null,null,null,null,null,null,null,null,null,null,null,null,null,null,null,null,null,null,null,null,null,null,null,null,null,null,null,4,5,6,2,4,4,5,6,4,3,7,3,5,4,6,3,2,6,null,null,null,null,null,null,null,null,5,5,6,2,4,5,5,5,3,4,5,4,5,4,5,4,4,6]
["C",6.7,"PECQUENARD Sébastien",null,null,null,null,null,81,"C",6.7,"PECQUENARD Sébastien",null,null,null,null,null,82,0,0,null,null,null,null,null,null,null,null,null,null,null,null,null,null,null,null,null,null,null,null,null,null,null,null,null,null,null,null,null,null,null,null,null,null,null,null,null,null,null,null,null,null,null,null,null,null,null,null,null,null,null,null,null,null,null,null,null,null,3,4,6,4,5,5,4,5,4,5,5,4,4,5,4,4,4,6,null,null,null,null,null,null,null,null,3,5,5,4,5,5,4,4,4,6,4,4,5,4,6,4,4,6]
["D",6.8,"PELTIER Jean-Philippe",null,null,null,null,null,79,"D",6.8,"PELTIER Jean-Philippe",null,null,null,null,null,90,0,0,null,null,null,null,null,null,null,null,null,null,null,null,null,null,null,null,null,null,null,null,null,null,null,null,null,null,null,null,null,null,null,null,null,null,null,null,null,null,null,null,null,null,null,null,null,null,null,null,null,null,null,null,null,null,null,null,null,null,3,5,5,3,5,7,4,4,5,4,4,4,4,4,4,5,3,6,null,null,null,null,null,null,null,null,5,5,5,4,6,5,5,6,5,4,5,2,6,4,6,5,5,7]
["E",10.6,"BARRIQUAULT Laurent",null,null,null,null,null,90,"E","",null,null,null,null,null,null,null,0,0,null,null,null,null,null,null,null,null,null,null,null,null,null,null,null,null,null,null,null,null,null,null,null,null,null,null,null,null,null,null,null,null,null,null,null,null,null,null,null,null,null,null,null,null,null,null,null,null,null,null,null,null,null,null,null,null,null,null,6,4,6,6,4,5,4,4,3,5,5,6,5,5,6,5,4,7]
["F",7,"ISAAC Willy",null,null,null,null,null,81,"F","",null,null,null,null,null,null,null,0,0,null,null,null,null,null,null,null,null,null,null,null,null,null,null,null,null,null,null,null,null,null,null,null,null,null,null,null,null,null,null,null,null,null,null,null,null,null,null,null,null,null,null,null,null,null,null,null,null,null,null,null,null,null,null,null,null,null,null,4,4,6,3,5,4,4,6,3,6,5,5,5,5,5,3,3,5]
[]
[{"$f":"IF(SUM(R231:R237)>0,\"Classement Final : \",\"Classement 1er jour : \")","v":"Classement Final : "},null,null,{"$f":"IF(COUNT(I232:I237)<6,\"\",VLOOKUP(F230,'Cl.J1+Gen.'!$AH$11:$BL$34,31,FALSE))","v":6},{"$f":"IF(SUM(R232:R237)>0,\"Total des 2 Tours: \",\"Total du Tour 1: \")","v":"Total des 2 Tours: "},null,{"$f":"IF(OR(I239=\"DIS\",R239=\"DIS\"),\"DIS\",I239+R239)","v":651},null,{"$f":"IF(S239>1,\"DIS\",IF(OR(S239=1,COUNTA(I232:I237)<6),SUM(I232:I237),SUM(I232:I237)-MAX(I232:I237)))","v":402},null,null,null,null,null,null,null,null,{"$f":"IF(T239>1,\"DIS\",IF(T239=1,SUM(R232:R237),IF(COUNT(R232:R237)<$R$2,SUM(R232:R237),SUM(R232:R237)-MAX(R232:R237))))","v":249},{"$f":"SUM(S232:S237)","v":0},{"$f":"SUM(T232:T237)","v":0}]
[]
[null,null,"Equipiers du club de :",null,null,{"$f":"Prepa!D53","v":"VAL DE L'INDRE"}]
[null,"Ind","Joueurs de la 1ère Journée",null,null,null,null,null,"Tour 1",null,"Ind","Joueurs de la 2ème Journée",null,null,null,null,null,"Tour 2","FOR ABN DIS","FOR ABN DIS"]
["A",{"$f":"IF(C243=\"\",\"\",VLOOKUP(C243,$BK$6:$BL$17,2,FALSE))","v":""},null,null,null,null,null,null,null,"A",{"$f":"IF(L243=\"\",\"\",VLOOKUP(L243,$BK$6:$BL$17,2,FALSE))","v":""},null,null,null,null,null,null,null,{"$f":"IF(ISTEXT(I243),1,0)","v":0},{"$f":"IF(ISTEXT(R243),1,0)","v":0}]
["B","",null,null,null,null,null,null,null,"B","",null,null,null,null,null,null,null,0,0]
["C","",null,null,null,null,null,null,null,"C","",null,null,null,null,null,null,null,0,0]
["D","",null,null,null,null,null,null,null,"D","",null,null,null,null,null,null,null,0,0]
["E","",null,null,null,null,null,null,null,"E","",null,null,null,null,null,null,null,0,0]
["F","",null,null,null,null,null,null,null,"F","",null,null,null,null,null,null,null,0,0]
[]
[{"$f":"IF(SUM(R242:R248)>0,\"Classement Final : \",\"Classement 1er jour : \")","v":"Classement 1er jour : "},null,null,{"$f":"IF(COUNT(I243:I248)<6,\"\",VLOOKUP(F241,'Cl.J1+Gen.'!$AH$11:$BL$34,31,FALSE))","v":""},{"$f":"IF(SUM(R243:R248)>0,\"Total des 2 Tours: \",\"Total du Tour 1: \")","v":"Total du Tour 1: "},null,{"$f":"IF(OR(I250=\"DIS\",R250=\"DIS\"),\"DIS\",I250+R250)","v":0},null,{"$f":"IF(S250>1,\"DIS\",IF(OR(S250=1,COUNTA(I243:I248)<6),SUM(I243:I248),SUM(I243:I248)-MAX(I243:I248)))","v":0},null,null,null,null,null,null,null,null,{"$f":"IF(T250>1,\"DIS\",IF(T250=1,SUM(R243:R248),IF(COUNT(R243:R248)<$R$2,SUM(R243:R248),SUM(R243:R248)-MAX(R243:R248))))","v":0},{"$f":"SUM(S243:S248)","v":0},{"$f":"SUM(T243:T248)","v":0}]
[]
[null,null,"Equipiers du club de :",null,null,{"$f":"Prepa!D55","v":0}]
[null,"Ind","Joueurs de la 1ère Journée",null,null,null,null,null,"Tour 1",null,"Ind","Joueurs de la 2ème Journée",null,null,null,null,null,"Tour 2","FOR ABN DIS","FOR ABN DIS"]
["A",{"$f":"IF(C254=\"\",\"\",VLOOKUP(C254,$BM$6:$BN$17,2,FALSE))","v":""},null,null,null,null,null,null,null,"A",{"$f":"IF(L254=\"\",\"\",VLOOKUP(L254,$BM$6:$BN$17,2,FALSE))","v":""},null,null,null,null,null,null,null,{"$f":"IF(ISTEXT(I254),1,0)","v":0},{"$f":"IF(ISTEXT(R254),1,0)","v":0}]
["B","",null,null,null,null,null,null,null,"B","",null,null,null,null,null,null,null,0,0]
["C","",null,null,null,null,null,null,null,"C","",null,null,null,null,null,null,null,0,0]
["D","",null,null,null,null,null,null,null,"D","",null,null,null,null,null,null,null,0,0]
["E","",null,null,null,null,null,null,null,"E","",null,null,null,null,null,null,null,0,0]
["F","",null,null,null,null,null,null,null,"F","",null,null,null,null,null,null,null,0,0]
[]
[{"$f":"IF(SUM(R253:R259)>0,\"Classement Final : \",\"Classement 1er jour : \")","v":"Classement 1er jour : "},null,null,{"$f":"IF(COUNT(I254:I259)<6,\"\",VLOOKUP(F252,'Cl.J1+Gen.'!$AH$11:$BL$34,31,FALSE))","v":""},{"$f":"IF(SUM(R254:R259)>0,\"Total des 2 Tours: \",\"Total du Tour 1: \")","v":"Total du Tour 1: "},null,{"$f":"IF(OR(I261=\"DIS\",R261=\"DIS\"),\"DIS\",I261+R261)","v":0},null,{"$f":"IF(S261>1,\"DIS\",IF(OR(S261=1,COUNTA(I254:I259)<6),SUM(I254:I259),SUM(I254:I259)-MAX(I254:I259)))","v":0},null,null,null,null,null,null,null,null,{"$f":"IF(T261>1,\"DIS\",IF(T261=1,SUM(R254:R259),IF(COUNT(R254:R259)<$R$2,SUM(R254:R259),SUM(R254:R259)-MAX(R254:R259))))","v":0},{"$f":"SUM(S254:S259)","v":0},{"$f":"SUM(T254:T259)","v":0}]
[]
[null,null,"Equipiers du club de :",null,null,{"$f":"Prepa!D57","v":0}]
[null,"Ind","Joueurs de la 1ère Journée",null,null,null,null,null,"Tour 1",null,"Ind","Joueurs de la 2ème Journée",null,null,null,null,null,"Tour 2","FOR ABN DIS","FOR ABN DIS"]
["A",{"$f":"IF(C265=\"\",\"\",VLOOKUP(C265,$BO$6:$BP$17,2,FALSE))","v":""},null,null,null,null,null,null,null,"A",{"$f":"IF(L265=\"\",\"\",VLOOKUP(L265,$BO$6:$BP$17,2,FALSE))","v":""},null,null,null,null,null,null,null,{"$f":"IF(ISTEXT(I265),1,0)","v":0},{"$f":"IF(ISTEXT(R265),1,0)","v":0}]
["B","",null,null,null,null,null,null,null,"B","",null,null,null,null,null,null,null,0,0]
["C","",null,null,null,null,null,null,null,"C","",null,null,null,null,null,null,null,0,0]
["D","",null,null,null,null,null,null,null,"D","",null,null,null,null,null,null,null,0,0]
["E","",null,null,null,null,null,null,null,"E","",null,null,null,null,null,null,null,0,0]
["F","",null,null,null,null,null,null,null,"F","",null,null,null,null,null,null,null,0,0]
[]
[{"$f":"IF(SUM(R264:R270)>0,\"Classement Final : \",\"Classement 1er jour : \")","v":"Classement 1er jour : "},null,null,{"$f":"IF(COUNT(I265:I270)<6,\"\",VLOOKUP(F263,'Cl.J1+Gen.'!$AH$11:$BL$34,31,FALSE))","v":""},{"$f":"IF(SUM(R265:R270)>0,\"Total des 2 Tours: \",\"Total du Tour 1: \")","v":"Total du Tour 1: "},null,{"$f":"IF(OR(I272=\"DIS\",R272=\"DIS\"),\"DIS\",I272+R272)","v":0},null,{"$f":"IF(S272>1,\"DIS\",IF(OR(S272=1,COUNTA(I265:I270)<6),SUM(I265:I270),SUM(I265:I270)-MAX(I265:I270)))","v":0},null,null,null,null,null,null,null,null,{"$f":"IF(T272>1,\"DIS\",IF(T272=1,SUM(R265:R270),IF(COUNT(R265:R270)<$R$2,SUM(R265:R270),SUM(R265:R270)-MAX(R265:R270))))","v":0},{"$f":"SUM(S265:S270)","v":0},{"$f":"SUM(T265:T270)","v":0}]

{"sheet":"Cl.J1+Gen.","index":4,"n_rows":34,"n_cols":64,"rows_kept":34,"cut":false,"hidden":false,"merged":[[8,31,9,31],[8,19,9,19],[8,20,9,20],[8,22,9,22],[8,21,9,21],[8,23,9,23],[8,30,9,30],[8,24,9,24],[8,1,9,2],[8,0,9,0],[0,0,0,19],[8,9,9,9],[8,17,9,17],[8,10,9,10],[8,18,9,18],[6,2,6,19],[8,3,8,8],[8,11,8,16]]}
["CETTE FEUILLE SE REMPLIT AUTOMATIQUEMENT AVEC LES INFORMATIONS DES FEUILLES \"Tour1\" ET \"Tour2\".VOUS POUVEZ, SI NECESSAIRE, FAIRE APPARAITRE  OU MASQUER LES DEPARTAGES EN CLIQUANT SUR LES BOUTONS CONCERNES",null,null,null,null,null,null,null,null,null,null,null,null,null,null,null,null,null,null,null,null,null,null,null,null,null,null,null,null,null,null,null,null,{"$f":"Prepa!E8","v":2}]
[null,null,{"$f":"Prepa!D2","v":"INTERCLUBS PROMOTION Mid Amateurs MESSIEURS"}]
[null,null,{"$f":"Prepa!D4","v":"Ligue de"}]
[]
[null,null,{"$f":"Prepa!D6","v":"Date     Golf de …"}]
[]
[null,null,"TABLEAU DE RESULTATS"]
[null,null,null,null,null,null,null,null,null,null,null,null,null,null,null,null,null,null,{"$f":"Donnees!$R$2","v":4}]
["Rang","CLUB",null,"JOUEURS 1er JOUR",null,null,null,null,null,"Score Jour 1","DIS","JOUEURS 2ème JOUR",null,null,null,null,null,"Score Jour 2","DIS","TOTAL","1er Dép.","2ème Dép.","3ème Dép.","4ème Dép.","5ème Dép.",null,null,null,null,null,null,"Rang"]
[null,null,null,"A","B","C","D","E","F",null,null,"A","B","C","D","E","F"]
[1,{"$f":"Donnees!$F$109","v":"GUERANDE"},null,{"$f":"Donnees!$I$111","v":79},{"$f":"Donnees!$I$112","v":70},{"$f":"Donnees!$I$113","v":74},{"$f":"Donnees!$I$114","v":82},{"$f":"Donnees!$I$115","v":80},{"$f":"Donnees!$I$116","v":79},{"$f":"Donnees!$I$118","v":382},{"$f":"Donnees!$S$118","v":0},{"$f":"Donnees!$R$111","v":74},{"$f":"Donnees!$R$112","v":81},{"$f":"Donnees!$R$113","v":73},{"$f":"Donnees!$R$114","v":82},{"$f":"Donnees!$R$115","v":0},{"$f":"Donnees!$R$116","v":0},{"$f":"Donnees!$R$118","v":228},{"$f":"Donnees!$T$118","v":0},{"$f":"Donnees!$G$118","v":610},{"$f":"IF(OR(K11>0,S11>0),\"DIS\",MAX(D11:I11)+MAX(L11:Q11))","v":164},{"$f":"SMALL($D11:$I11,1)+IF($S$8=3,SMALL($L11:$Q11,4),IF($S$8=4,SMALL($L11:$Q11,3),IF($S$8=5,SMALL($L11:$Q11,2),SMALL($L11:$Q11,1))))","v":143},{"$f":"SMALL($D11:$I11,2)+IF($S$8=3,SMALL($L11:$Q11,5),IF($S$8=4,SMALL($L11:$Q11,4),IF($S$8=5,SMALL($L11:$Q11,3),SMALL($L11:$Q11,2))))","v":148},{"$f":"SMALL($D11:$I11,3)+IF($S$8=3,0,IF($S$8=4,SMALL($L11:$Q11,3),IF($S$8=5,SMALL($L11:$Q11,4),SMALL($L11:$Q11,3))))","v":152},{"$f":"SMALL($D11:$I11,4)+IF($S$8=3,0,IF($S$8=4,0,IF($S$8=5,SMALL($L11:$Q11,5),SMALL($L11:$Q11,4))))","v":79},{"$f":"IF(U11=\"dis\",999,IF(U11<100,0&U11,U11))","v":164},{"$f":"IF(V11<100,0&V11,V11)","v":143},{"$f":"IF(W11<100,0&W11,W11)","v":148},{"$f":"IF(X11<100,0&X11,X11)","v":152},{"$f":"IF(Y11<100,0&Y11,Y11)","v":"079"},{"$f":"CONCATENATE(Z11,AA11,AB11,AC11,AD11)","v":"164143148152079"},1,null,"ALENCON/ARCONNA",null,79,81,76,81,79,93,396,0,81,82,76,80,0,0,237,0,633,175,152,159,155,81,175,152,159,155,"081","175152159155081",3]
[2,{"$f":"Donnees!$F$186","v":"SABLE SOLESMES"},null,{"$f":"Donnees!$I$188","v":77},{"$f":"Donnees!$I$189","v":82},{"$f":"Donnees!$I$190","v":75},{"$f":"Donnees!$I$191","v":78},{"$f":"Donnees!$I$192","v":92},{"$f":"Donnees!$I$193","v":77},{"$f":"Donnees!$I$195","v":389},{"$f":"Donnees!$S$195","v":0},{"$f":"Donnees!$R$188","v":78},{"$f":"Donnees!$R$189","v":80},{"$f":"Donnees!$R$190","v":77},{"$f":"Donnees!$R$191","v":81},{"$f":"Donnees!$R$192","v":0},{"$f":"Donnees!$R$193","v":0},{"$f":"Donnees!$R$195","v":235},{"$f":"Donnees!$T$195","v":0},{"$f":"Donnees!$G$195","v":624},173,152,155,154,78,173,152,155,154,"078","173152155154078",2,null,"BOIS D'O",null,102,93,90,107,97,83,465,0,80,87,86,87,0,0,253,0,718,194,163,176,173,97,194,163,176,173,"097","194163176173097",20]
[3,{"$f":"Donnees!$F$10","v":"ALENCON/ARCONNA"},null,{"$f":"Donnees!$I$12","v":79},{"$f":"Donnees!$I$13","v":81},{"$f":"Donnees!$I$14","v":76},{"$f":"Donnees!$I$15","v":81},{"$f":"Donnees!$I$16","v":79},{"$f":"Donnees!$I$17","v":93},{"$f":"Donnees!$I$19","v":396},{"$f":"Donnees!$S$19","v":0},{"$f":"Donnees!$R$12","v":81},{"$f":"Donnees!$R$13","v":82},{"$f":"Donnees!$R$14","v":76},{"$f":"Donnees!$R$15","v":80},{"$f":"Donnees!$R$16","v":0},{"$f":"Donnees!$R$17","v":0},{"$f":"Donnees!$R$19","v":237},{"$f":"Donnees!$T$19","v":0},{"$f":"Donnees!$G$19","v":633},175,152,159,155,81,175,152,159,155,"081","175152159155081",3,null,"BREST ABERS",null,95,89,94,88,95,103,461,0,89,89,84,90,0,0,262,0,723,193,172,178,178,95,193,172,178,178,"095","193172178178095",21]
[4,{"$f":"Donnees!$F$120","v":"ILE D'OR"},null,{"$f":"Donnees!$I$122","v":91},{"$f":"Donnees!$I$123","v":90},{"$f":"Donnees!$I$124","v":76},{"$f":"Donnees!$I$125","v":75},{"$f":"Donnees!$I$126","v":91},{"$f":"Donnees!$I$127","v":75},{"$f":"Donnees!$I$129","v":407},{"$f":"Donnees!$S$129","v":0},{"$f":"Donnees!$R$122","v":88},{"$f":"Donnees!$R$123","v":83},{"$f":"Donnees!$R$124","v":76},{"$f":"Donnees!$R$125","v":73},{"$f":"Donnees!$R$126","v":0},{"$f":"Donnees!$R$127","v":0},{"$f":"Donnees!$R$129","v":232},{"$f":"Donnees!$T$129","v":0},{"$f":"Donnees!$G$129","v":639},179,148,151,149,90,179,148,151,149,"090","179148151149090",4,null,"BREST IROISE",null,85,94,91,89,90,91,446,0,99,80,88,86,0,0,254,0,700,193,165,175,170,91,193,165,175,170,"091","193165175170091",14]
[5,{"$f":"Donnees!$F$65","v":"CARANTEC"},null,{"$f":"Donnees!$I$67","v":82},{"$f":"Donnees!$I$68","v":80},{"$f":"Donnees!$I$69","v":93},{"$f":"Donnees!$I$70","v":80},{"$f":"Donnees!$I$71","v":76},{"$f":"Donnees!$I$72","v":81},{"$f":"Donnees!$I$74","v":399},{"$f":"Donnees!$S$74","v":0},{"$f":"Donnees!$R$67","v":86},{"$f":"Donnees!$R$68","v":75},{"$f":"Donnees!$R$69","v":83},{"$f":"Donnees!$R$70","v":84},{"$f":"Donnees!$R$71","v":0},{"$f":"Donnees!$R$72","v":0},{"$f":"Donnees!$R$74","v":242},{"$f":"Donnees!$T$74","v":0},{"$f":"Donnees!$G$74","v":641},179,151,163,155,81,179,151,163,155,"081","179151163155081",5,null,"CAP MALO",null,81,78,84,76,99,93,412,0,91,94,91,79,0,0,261,0,673,193,155,169,160,84,193,155,169,160,"084","193155169160084",9]
[6,{"$f":"Donnees!$F$230","v":"SARGE/LE MANS"},null,{"$f":"Donnees!$I$232","v":82},{"$f":"Donnees!$I$233","v":79},{"$f":"Donnees!$I$234","v":81},{"$f":"Donnees!$I$235","v":79},{"$f":"Donnees!$I$236","v":90},{"$f":"Donnees!$I$237","v":81},{"$f":"Donnees!$I$239","v":402},{"$f":"Donnees!$S$239","v":0},{"$f":"Donnees!$R$232","v":86},{"$f":"Donnees!$R$233","v":81},{"$f":"Donnees!$R$234","v":82},{"$f":"Donnees!$R$235","v":90},{"$f":"Donnees!$R$236","v":0},{"$f":"Donnees!$R$237","v":0},{"$f":"Donnees!$R$239","v":249},{"$f":"Donnees!$T$239","v":0},{"$f":"Donnees!$G$239","v":651},180,160,161,162,81,180,160,161,162,"081","180160161162081",6,null,"CARANTEC",null,82,80,93,80,76,81,399,0,86,75,83,84,0,0,242,0,641,179,151,163,155,81,179,151,163,155,"081","179151163155081",5]
[7,{"$f":"Donnees!$F$208","v":"SAINT CAST"},null,{"$f":"Donnees!$I$210","v":77},{"$f":"Donnees!$I$211","v":80},{"$f":"Donnees!$I$212","v":82},{"$f":"Donnees!$I$213","v":91},{"$f":"Donnees!$I$214","v":83},{"$f":"Donnees!$I$215","v":97},{"$f":"Donnees!$I$217","v":413},{"$f":"Donnees!$S$217","v":0},{"$f":"Donnees!$R$210","v":73},{"$f":"Donnees!$R$211","v":84},{"$f":"Donnees!$R$212","v":85},{"$f":"Donnees!$R$213","v":95},{"$f":"Donnees!$R$214","v":0},{"$f":"Donnees!$R$215","v":0},{"$f":"Donnees!$R$217","v":242},{"$f":"Donnees!$T$217","v":0},{"$f":"Donnees!$G$217","v":655},192,150,164,155,83,192,150,164,155,"083","192150164155083",7,null,"CH. AUGERVILLE",null,90,84,83,83,89,82,421,0,102,103,84,80,0,0,266,0,687,193,162,167,163,84,193,162,167,163,"084","193162167163084",13]
[8,{"$f":"Donnees!$F$142","v":"LAVAL"},null,{"$f":"Donnees!$I$144","v":82},{"$f":"Donnees!$I$145","v":80},{"$f":"Donnees!$I$146","v":95},{"$f":"Donnees!$I$147","v":83},{"$f":"Donnees!$I$148","v":86},{"$f":"Donnees!$I$149","v":86},{"$f":"Donnees!$I$151","v":417},{"$f":"Donnees!$S$151","v":0},{"$f":"Donnees!$R$144","v":82},{"$f":"Donnees!$R$145","v":83},{"$f":"Donnees!$R$146","v":85},{"$f":"Donnees!$R$147","v":86},{"$f":"Donnees!$R$148","v":0},{"$f":"Donnees!$R$149","v":0},{"$f":"Donnees!$R$151","v":250},{"$f":"Donnees!$T$151","v":0},{"$f":"Donnees!$G$151","v":667},181,162,165,165,86,181,162,165,165,"086","181162165165086",8,null,"CHARTRES FONTENAY",null,95,82,101,89,87,83,436,0,107,89,87,88,0,0,264,0,700,208,169,171,174,89,208,169,171,174,"089","208169171174089",15]
[9,{"$f":"Donnees!$F$54","v":"CAP MALO"},null,{"$f":"Donnees!$I$56","v":81},{"$f":"Donnees!$I$57","v":78},{"$f":"Donnees!$I$58","v":84},{"$f":"Donnees!$I$59","v":76},{"$f":"Donnees!$I$60","v":99},{"$f":"Donnees!$I$61","v":93},{"$f":"Donnees!$I$63","v":412},{"$f":"Donnees!$S$63","v":0},{"$f":"Donnees!$R$56","v":91},{"$f":"Donnees!$R$57","v":94},{"$f":"Donnees!$R$58","v":91},{"$f":"Donnees!$R$59","v":79},{"$f":"Donnees!$R$60","v":0},{"$f":"Donnees!$R$61","v":0},{"$f":"Donnees!$R$63","v":261},{"$f":"Donnees!$T$63","v":0},{"$f":"Donnees!$G$63","v":673},193,155,169,160,84,193,155,169,160,"084","193155169160084",9,null,"GLORIETTE",null,77,101,81,100,95,100,453,0,109,76,98,87,0,0,261,0,714,210,153,168,171,100,210,153,168,171,100,"210153168171100",18]
[10,{"$f":"Donnees!$F$164","v":"VAL DE L'INDRE"},null,{"$f":"Donnees!$I$166","v":73},{"$f":"Donnees!$I$167","v":73},{"$f":"Donnees!$I$168","v":91},{"$f":"Donnees!$I$169","v":94},{"$f":"Donnees!$I$170","v":104},{"$f":"Donnees!$I$171","v":98},{"$f":"Donnees!$I$173","v":429},{"$f":"Donnees!$S$173","v":0},{"$f":"Donnees!$R$166","v":73},{"$f":"Donnees!$R$167","v":97},{"$f":"Donnees!$R$168","v":89},{"$f":"Donnees!$R$169","v":90},{"$f":"Donnees!$R$170","v":0},{"$f":"Donnees!$R$171","v":0},{"$f":"Donnees!$R$173","v":252},{"$f":"Donnees!$T$173","v":0},{"$f":"Donnees!$G$173","v":681},201,146,162,164,94,201,146,162,164,"094","201146162164094",10,null,"GUERANDE",null,79,70,74,82,80,79,382,0,74,81,73,82,0,0,228,0,610,164,143,148,152,79,164,143,148,152,"079","164143148152079",1]
[11,{"$f":"Donnees!$F$175","v":"ROCHERS SEVIGNE"},null,{"$f":"Donnees!$I$177","v":81},{"$f":"Donnees!$I$178","v":86},{"$f":"Donnees!$I$179","v":90},{"$f":"Donnees!$I$180","v":95},{"$f":"Donnees!$I$181","v":88},{"$f":"Donnees!$I$182","v":"ABN"},{"$f":"Donnees!$I$184","v":440},{"$f":"Donnees!$S$184","v":1},{"$f":"Donnees!$R$177","v":74},{"$f":"Donnees!$R$178","v":88},{"$f":"Donnees!$R$179","v":92},{"$f":"Donnees!$R$180","v":81},{"$f":"Donnees!$R$181","v":0},{"$f":"Donnees!$R$182","v":0},{"$f":"Donnees!$R$184","v":243},{"$f":"Donnees!$T$184","v":0},{"$f":"Donnees!$G$184","v":683},"DIS",155,167,162,90,999,155,167,162,"090","999155167162090",11,null,"ILE D'OR",null,91,90,76,75,91,75,407,0,88,83,76,73,0,0,232,0,639,179,148,151,149,90,179,148,151,149,"090","179148151149090",4]
[12,{"$f":"Donnees!$F$131","v":"LAC AU DUC"},null,{"$f":"Donnees!$I$133","v":91},{"$f":"Donnees!$I$134","v":86},{"$f":"Donnees!$I$135","v":78},{"$f":"Donnees!$I$136","v":81},{"$f":"Donnees!$I$137","v":92},{"$f":"Donnees!$I$138","v":93},{"$f":"Donnees!$I$140","v":428},{"$f":"Donnees!$S$140","v":0},{"$f":"Donnees!$R$133","v":99},{"$f":"Donnees!$R$134","v":104},{"$f":"Donnees!$R$135","v":80},{"$f":"Donnees!$R$136","v":78},{"$f":"Donnees!$R$137","v":0},{"$f":"Donnees!$R$138","v":0},{"$f":"Donnees!$R$140","v":257},{"$f":"Donnees!$T$140","v":0},{"$f":"Donnees!$G$140","v":685},197,156,161,164,91,197,156,161,164,"091","197156161164091",12,null,"LAC AU DUC",null,91,86,78,81,92,93,428,0,99,104,80,78,0,0,257,0,685,197,156,161,164,91,197,156,161,164,"091","197156161164091",12]
[13,{"$f":"Donnees!$F$76","v":"CH. AUGERVILLE"},null,{"$f":"Donnees!$I$78","v":90},{"$f":"Donnees!$I$79","v":84},{"$f":"Donnees!$I$80","v":83},{"$f":"Donnees!$I$81","v":83},{"$f":"Donnees!$I$82","v":89},{"$f":"Donnees!$I$83","v":82},{"$f":"Donnees!$I$85","v":421},{"$f":"Donnees!$S$85","v":0},{"$f":"Donnees!$R$78","v":102},{"$f":"Donnees!$R$79","v":103},{"$f":"Donnees!$R$80","v":84},{"$f":"Donnees!$R$81","v":80},{"$f":"Donnees!$R$82","v":0},{"$f":"Donnees!$R$83","v":0},{"$f":"Donnees!$R$85","v":266},{"$f":"Donnees!$T$85","v":0},{"$f":"Donnees!$G$85","v":687},193,162,167,163,84,193,162,167,163,"084","193162167163084",13,null,"LAVAL",null,82,80,95,83,86,86,417,0,82,83,85,86,0,0,250,0,667,181,162,165,165,86,181,162,165,165,"086","181162165165086",8]
[14,{"$f":"Donnees!$F$43","v":"BREST IROISE"},null,{"$f":"Donnees!$I$45","v":85},{"$f":"Donnees!$I$46","v":94},{"$f":"Donnees!$I$47","v":91},{"$f":"Donnees!$I$48","v":89},{"$f":"Donnees!$I$49","v":90},{"$f":"Donnees!$I$50","v":91},{"$f":"Donnees!$I$52","v":446},{"$f":"Donnees!$S$52","v":0},{"$f":"Donnees!$R$45","v":99},{"$f":"Donnees!$R$46","v":80},{"$f":"Donnees!$R$47","v":88},{"$f":"Donnees!$R$48","v":86},{"$f":"Donnees!$R$49","v":0},{"$f":"Donnees!$R$50","v":0},{"$f":"Donnees!$R$52","v":254},{"$f":"Donnees!$T$52","v":0},{"$f":"Donnees!$G$52","v":700},193,165,175,170,91,193,165,175,170,"091","193165175170091",14,null,"ORLEANS DONNERY",null,94,"ABS",92,83,89,88,446,1,"ABS",95,87,88,0,0,270,1,716,"DIS",170,176,176,92,999,170,176,176,"092","999170176176092",19]
[15,{"$f":"Donnees!$F$87","v":"CHARTRES FONTENAY"},null,{"$f":"Donnees!$I$89","v":95},{"$f":"Donnees!$I$90","v":82},{"$f":"Donnees!$I$91","v":101},{"$f":"Donnees!$I$92","v":89},{"$f":"Donnees!$I$93","v":87},{"$f":"Donnees!$I$94","v":83},{"$f":"Donnees!$I$96","v":436},{"$f":"Donnees!$S$96","v":0},{"$f":"Donnees!$R$89","v":107},{"$f":"Donnees!$R$90","v":89},{"$f":"Donnees!$R$91","v":87},{"$f":"Donnees!$R$92","v":88},{"$f":"Donnees!$R$93","v":0},{"$f":"Donnees!$R$94","v":0},{"$f":"Donnees!$R$96","v":264},{"$f":"Donnees!$T$96","v":0},{"$f":"Donnees!$G$96","v":700},208,169,171,174,89,208,169,171,174,"089","208169171174089",15,null,"ROCHERS SEVIGNE",null,81,86,90,95,88,"ABN",440,1,74,88,92,81,0,0,243,0,683,"DIS",155,167,162,90,999,155,167,162,"090","999155167162090",11]
[16,{"$f":"Donnees!$F$197","v":"SABLES D'OLONNE"},null,{"$f":"Donnees!$I$199","v":86},{"$f":"Donnees!$I$200","v":95},{"$f":"Donnees!$I$201","v":84},{"$f":"Donnees!$I$202","v":98},{"$f":"Donnees!$I$203","v":99},{"$f":"Donnees!$I$204","v":83},{"$f":"Donnees!$I$206","v":446},{"$f":"Donnees!$S$206","v":0},{"$f":"Donnees!$R$199","v":81},{"$f":"Donnees!$R$200","v":90},{"$f":"Donnees!$R$201","v":84},{"$f":"Donnees!$R$202","v":96},{"$f":"Donnees!$R$203","v":0},{"$f":"Donnees!$R$204","v":0},{"$f":"Donnees!$R$206","v":255},{"$f":"Donnees!$T$206","v":0},{"$f":"Donnees!$G$206","v":701},195,164,168,167,95,195,164,168,167,"095","195164168167095",16,null,"SABLE SOLESMES",null,77,82,75,78,92,77,389,0,78,80,77,81,0,0,235,0,624,173,152,155,154,78,173,152,155,154,"078","173152155154078",2]
[17,{"$f":"Donnees!$F$219","v":"SAINT-BRIEUC"},null,{"$f":"Donnees!$I$221","v":101},{"$f":"Donnees!$I$222","v":90},{"$f":"Donnees!$I$223","v":100},{"$f":"Donnees!$I$224","v":97},{"$f":"Donnees!$I$225","v":86},{"$f":"Donnees!$I$226","v":87},{"$f":"Donnees!$I$228","v":460},{"$f":"Donnees!$S$228","v":0},{"$f":"Donnees!$R$221","v":103},{"$f":"Donnees!$R$222","v":83},{"$f":"Donnees!$R$223","v":83},{"$f":"Donnees!$R$224","v":87},{"$f":"Donnees!$R$225","v":0},{"$f":"Donnees!$R$226","v":0},{"$f":"Donnees!$R$228","v":253},{"$f":"Donnees!$T$228","v":0},{"$f":"Donnees!$G$228","v":713},204,169,170,173,97,204,169,170,173,"097","204169170173097",17,null,"SABLES D'OLONNE",null,86,95,84,98,99,83,446,0,81,90,84,96,0,0,255,0,701,195,164,168,167,95,195,164,168,167,"095","195164168167095",16]
[18,{"$f":"Donnees!$F$98","v":"GLORIETTE"},null,{"$f":"Donnees!$I$100","v":77},{"$f":"Donnees!$I$101","v":101},{"$f":"Donnees!$I$102","v":81},{"$f":"Donnees!$I$103","v":100},{"$f":"Donnees!$I$104","v":95},{"$f":"Donnees!$I$105","v":100},{"$f":"Donnees!$I$107","v":453},{"$f":"Donnees!$S$107","v":0},{"$f":"Donnees!$R$100","v":109},{"$f":"Donnees!$R$101","v":76},{"$f":"Donnees!$R$102","v":98},{"$f":"Donnees!$R$103","v":87},{"$f":"Donnees!$R$104","v":0},{"$f":"Donnees!$R$105","v":0},{"$f":"Donnees!$R$107","v":261},{"$f":"Donnees!$T$107","v":0},{"$f":"Donnees!$G$107","v":714},210,153,168,171,100,210,153,168,171,100,"210153168171100",18,null,"SAINT CAST",null,77,80,82,91,83,97,413,0,73,84,85,95,0,0,242,0,655,192,150,164,155,83,192,150,164,155,"083","192150164155083",7]
[19,{"$f":"Donnees!$F$153","v":"ORLEANS DONNERY"},null,{"$f":"Donnees!$I$155","v":94},{"$f":"Donnees!$I$156","v":"ABS"},{"$f":"Donnees!$I$157","v":92},{"$f":"Donnees!$I$158","v":83},{"$f":"Donnees!$I$159","v":89},{"$f":"Donnees!$I$160","v":88},{"$f":"Donnees!$I$162","v":446},{"$f":"Donnees!$S$162","v":1},{"$f":"Donnees!$R$155","v":"ABS"},{"$f":"Donnees!$R$156","v":95},{"$f":"Donnees!$R$157","v":87},{"$f":"Donnees!$R$158","v":88},{"$f":"Donnees!$R$159","v":0},{"$f":"Donnees!$R$160","v":0},{"$f":"Donnees!$R$162","v":270},{"$f":"Donnees!$T$162","v":1},{"$f":"Donnees!$G$162","v":716},"DIS",170,176,176,92,999,170,176,176,"092","999170176176092",19,null,"SAINT-BRIEUC",null,101,90,100,97,86,87,460,0,103,83,83,87,0,0,253,0,713,204,169,170,173,97,204,169,170,173,"097","204169170173097",17]
[20,{"$f":"Donnees!$F$21","v":"BOIS D'O"},null,{"$f":"Donnees!$I$23","v":102},{"$f":"Donnees!$I$24","v":93},{"$f":"Donnees!$I$25","v":90},{"$f":"Donnees!$I$26","v":107},{"$f":"Donnees!$I$27","v":97},{"$f":"Donnees!$I$28","v":83},{"$f":"Donnees!$I$30","v":465},{"$f":"Donnees!$S$30","v":0},{"$f":"Donnees!$R$23","v":80},{"$f":"Donnees!$R$24","v":87},{"$f":"Donnees!$R$25","v":86},{"$f":"Donnees!$R$26","v":87},{"$f":"Donnees!$R$27","v":0},{"$f":"Donnees!$R$28","v":0},{"$f":"Donnees!$R$30","v":253},{"$f":"Donnees!$T$30","v":0},{"$f":"Donnees!$G$30","v":718},194,163,176,173,97,194,163,176,173,"097","194163176173097",20,null,"SARGE/LE MANS",null,82,79,81,79,90,81,402,0,86,81,82,90,0,0,249,0,651,180,160,161,162,81,180,160,161,162,"081","180160161162081",6]
[21,{"$f":"Donnees!$F$32","v":"BREST ABERS"},null,{"$f":"Donnees!$I$34","v":95},{"$f":"Donnees!$I$35","v":89},{"$f":"Donnees!$I$36","v":94},{"$f":"Donnees!$I$37","v":88},{"$f":"Donnees!$I$38","v":95},{"$f":"Donnees!$I$39","v":103},{"$f":"Donnees!$I$41","v":461},{"$f":"Donnees!$S$41","v":0},{"$f":"Donnees!$R$34","v":89},{"$f":"Donnees!$R$35","v":89},{"$f":"Donnees!$R$36","v":84},{"$f":"Donnees!$R$37","v":90},{"$f":"Donnees!$R$38","v":0},{"$f":"Donnees!$R$39","v":0},{"$f":"Donnees!$R$41","v":262},{"$f":"Donnees!$T$41","v":0},{"$f":"Donnees!$G$41","v":723},193,172,178,178,95,193,172,178,178,"095","193172178178095",21,null,"VAL DE L'INDRE",null,73,73,91,94,104,98,429,0,73,97,89,90,0,0,252,0,681,201,146,162,164,94,201,146,162,164,"094","201146162164094",10]
[22,{"$f":"Donnees!$F$241","v":"VAL DE L'INDRE"},null,{"$f":"Donnees!$I$243","v":0},{"$f":"Donnees!$I$244","v":0},{"$f":"Donnees!$I$245","v":0},{"$f":"Donnees!$I$246","v":0},{"$f":"Donnees!$I$247","v":0},{"$f":"Donnees!$I$248","v":0},{"$f":"Donnees!$I$250","v":0},{"$f":"Donnees!$S$250","v":0},{"$f":"Donnees!$R$243","v":0},{"$f":"Donnees!$R$244","v":0},{"$f":"Donnees!$R$245","v":0},{"$f":"Donnees!$R$246","v":0},{"$f":"Donnees!$R$247","v":0},{"$f":"Donnees!$R$248","v":0},{"$f":"Donnees!$R$250","v":0},{"$f":"Donnees!$T$250","v":0},{"$f":"Donnees!$G$250","v":0},{"$f":"IF(OR(K32>0,S32>0),\"DIS\",MAX(D32:I32)+MAX(L32:Q32))","v":0},{"$f":"SMALL($D32:$I32,1)+IF($S$8=3,SMALL($L32:$Q32,4),IF($S$8=4,SMALL($L32:$Q32,3),IF($S$8=5,SMALL($L32:$Q32,2),SMALL($L32:$Q32,1))))","v":0},{"$f":"SMALL($D32:$I32,2)+IF($S$8=3,SMALL($L32:$Q32,5),IF($S$8=4,SMALL($L32:$Q32,4),IF($S$8=5,SMALL($L32:$Q32,3),SMALL($L32:$Q32,2))))","v":0},{"$f":"SMALL($D32:$I32,3)+IF($S$8=3,0,IF($S$8=4,SMALL($L32:$Q32,3),IF($S$8=5,SMALL($L32:$Q32,4),SMALL($L32:$Q32,3))))","v":0},{"$f":"SMALL($D32:$I32,4)+IF($S$8=3,0,IF($S$8=4,0,IF($S$8=5,SMALL($L32:$Q32,5),SMALL($L32:$Q32,4))))","v":0},{"$f":"IF(U32=\"dis\",999,IF(U32<100,0&U32,U32))","v":"00"},{"$f":"IF(V32<100,0&V32,V32)","v":"00"},{"$f":"IF(W32<100,0&W32,W32)","v":"00"},{"$f":"IF(X32<100,0&X32,X32)","v":"00"},{"$f":"IF(Y32<100,0&Y32,Y32)","v":"00"},{"$f":"CONCATENATE(Z32,AA32,AB32,AC32,AD32)","v":"0000000000"},22,null,null,null,null,null,null,null,null,null,null,null,null,null,null,null,null,null,null,null,null,null,null,null,null,null,null,null,null,null,null,null,22]
[23,{"$f":"Donnees!$F$252","v":0},null,{"$f":"Donnees!$I$254","v":0},{"$f":"Donnees!$I$255","v":0},{"$f":"Donnees!$I$256","v":0},{"$f":"Donnees!$I$257","v":0},{"$f":"Donnees!$I$258","v":0},{"$f":"Donnees!$I$259","v":0},{"$f":"Donnees!$I$261","v":0},{"$f":"Donnees!$S$261","v":0},{"$f":"Donnees!$R$254","v":0},{"$f":"Donnees!$R$255","v":0},{"$f":"Donnees!$R$256","v":0},{"$f":"Donnees!$R$257","v":0},{"$f":"Donnees!$R$258","v":0},{"$f":"Donnees!$R$259","v":0},{"$f":"Donnees!$R$261","v":0},{"$f":"Donnees!$T$261","v":0},{"$f":"Donnees!$G$261","v":0},0,0,0,0,0,"00","00","00","00","00","0000000000",23,null,null,null,null,null,null,null,null,null,null,null,null,null,null,null,null,null,null,null,null,null,null,null,null,null,null,null,null,null,null,null,23]
[24,{"$f":"Donnees!$F$263","v":0},null,{"$f":"Donnees!$I$265","v":0},{"$f":"Donnees!$I$266","v":0},{"$f":"Donnees!$I$267","v":0},{"$f":"Donnees!$I$268","v":0},{"$f":"Donnees!$I$269","v":0},{"$f":"Donnees!$I$270","v":0},{"$f":"Donnees!$I$272","v":0},{"$f":"Donnees!$S$272","v":0},{"$f":"Donnees!$R$265","v":0},{"$f":"Donnees!$R$266","v":0},{"$f":"Donnees!$R$267","v":0},{"$f":"Donnees!$R$268","v":0},{"$f":"Donnees!$R$269","v":0},{"$f":"Donnees!$R$270","v":0},{"$f":"Donnees!$R$272","v":0},{"$f":"Donnees!$T$272","v":0},{"$f":"Donnees!$G$272","v":0},0,0,0,0,0,"00","00","00","00","00","0000000000",24,null,null,null,null,null,null,null,null,null,null,null,null,null,null,null,null,null,null,null,null,null,null,null,null,null,null,null,null,null,null,null,24]